Workbook

Sheet INDICE
A2: ESTADO DE RENDIMIENTO ECONOMICO -2014
B4: EMPRESA
B6: MONTEVIDEO
B8: AMBITO GEOGRAFICO CENTRO
B9: CANELONES
B10: LAS PIEDRAS
B11: SISTEMA ATLANTIDA
B12: CIUDAD DE LA COSTA
B13: FLORIDA
B14: DURAZNO
B16: AMBITO GEOGRAFICO LITORAL SUR
B17: SAN JOSE
B18: COLONIA
B19: FLORES
B20: SORIANO
B22: AMBITO GEOGRAFICO LITORAL NORTE
B23: PAYSANDU
B24: RIO NEGRO
B25: SALTO
B26: ARTIGAS
B28: AMBITO GEOGRAFICO NORESTE
B29: RIVERA
B30: TACUAREMBO
B31: CERRO LARGO
B33: AMBITO GEOGRAFICO SURESTE
B34: TREINTA Y TRES
B35: ROCHA
B36: LAVALLEJA
B38: U.G.D.

Sheet A-OSE-ACT
A2: EMPRESA | B2: ESTADO DE RENDIMIENTO ECONÓMICO (a valores históricos) | G2: PERÍODO ENERO-DICIEMBRE-2014
A4: CONCEPTO | B4: AGUA POTABLE
B5: USINA | C5: PERFORACIÓN | D5: MIXTO | E5: SUB-TOTAL | F5: SANEAMIENTO | G5: OTROS INGRESOS | H5: TOTAL
A6: INGRESOS | B6: 0 | C6: 0 | D6: 0 | E6: 0 | F6: 0 | G6: 0 | H6: 0
A7: Ingresos Variables | B7: 4176678291 | C7: 184343367 | D7: 596633017 | E7: 4957654675 | H7: 4957654675
A8: Ingresos Fijos | B8: 1773423626 | C8: 119976260 | D8: 368210240 | E8: 2261610126 | H8: 2261610126
A9: INGRESOS DE EXPLOTACION | B9: 5950101917 | C9: 304319627 | D9: 964843257 | E9: 7219264801 | H9: 7219264801
A10: Ingresos Alcantarillado | F10: 976450489 | H10: 976450489
A11: Ingresos Upas | G11: 3462490 | H11: 3462490
A12: Otros Ingresos | B12: 244160896 | C12: 18001360 | D12: 65402385 | E12: 327564641 | F12: 1215740 | G12: 10466291 | H12: 339246672
A13: TOTAL ING. DE EXPLOTACION | B13: 6194262813 | C13: 322320987 | D13: 1030245642 | E13: 7546829442 | F13: 977666229 | G13: 13928781 | H13: 8538424452
A14: COSTOS DE EXPLOTACION | B14: 0 | C14: 0 | D14: 0 | E14: 0 | F14: 0 | G14: 0 | H14: 0
A15: OPERATIVO | B15: 0 | C15: 0 | D15: 0 | E15: 0 | F15: 0 | G15: 0 | H15: 0
A16: Costo Operativo Var | B16: 1028705589 | C16: 58208085 | D16: 207335647 | E16: 1294249321 | F16: 161331613 | G16: 0 | H16: 1455580934
A17: Costo Operativo Fijo | B17: 1585661303 | C17: 215926441 | D17: 509365850 | E17: 2310953594 | F17: 605573891 | G17: 0 | H17: 2916527485
A18: TOTAL OPERATIVO | B18: 2614366892 | C18: 274134526 | D18: 716701497 | E18: 3605202915 | F18: 766905504 | G18: 0 | H18: 4372108419
A19: NO OPERATIVO | B19: 0 | C19: 0 | D19: 0 | E19: 0 | F19: 0 | G19: 0 | H19: 0
A20: COMERCIALIZACION | B20: 0 | C20: 0 | D20: 0 | E20: 0 | F20: 0 | G20: 0 | H20: 0
A21: Comercial Propios | B21: 1146801116 | C21: 104699859 | D21: 347944587 | E21: 1599445562 | F21: 192292328 | G21: 0 | H21: 1791737890
A22: Comercial Asignados | B22: 472790125 | C22: 27718783 | D22: 88598496 | E22: 589107404 | F22: 66211769 | G22: 0 | H22: 655319173
A23: Comercialización Upas | B23: 0 | C23: 0 | D23: 0 | E23: 0 | F23: 0 | G23: 5858215 | H23: 5858215
A24: TOTAL COMERCIALIZACION | B24: 1619591241 | C24: 132418642 | D24: 436543083 | E24: 2188552966 | F24: 258504097 | G24: 5858215 | H24: 2452915278
A25: ADMINISTRACION | B25: 0 | C25: 0 | D25: 0 | E25: 0 | F25: 0 | G25: 0 | H25: 0
A26: Administración Propios | B26: 323614235 | C26: 39535765 | D26: 97402624 | E26: 460552624 | F26: 63653670 | G26: 0 | H26: 524206294
A27: Administ. Asignados | B27: 790464564 | C27: 44334948 | D27: 141709319 | E27: 976508831 | F27: 116119998 | G27: 0 | H27: 1092628829
A28: Gastos Fiscales | B28: 329384137 | C28: 16619574 | D28: 53121715 | E28: 399125426 | F28: 53391384 | G28: 0 | H28: 452516810
A29: TOTAL ADMINISTRACION | B29: 1443462936 | C29: 100490287 | D29: 292233658 | E29: 1836186881 | F29: 233165052 | G29: 0 | H29: 2069351933
A30: TOTAL NO OPERATIVO | B30: 3063054177 | C30: 232908929 | D30: 728776741 | E30: 4024739847 | F30: 491669149 | G30: 5858215 | H30: 4522267211
A31: COSTO DE EXPLOTACION | B31: 5677421069 | C31: 507043455 | D31: 1445478238 | E31: 7629942762 | F31: 1258574653 | G31: 5858215 | H31: 8894375630
A32: RESULTADO DE EXPLOTACION | B32: 516841744 | C32: -184722468 | D32: -415232596 | E32: -83113320 | F32: -280908424 | G32: 8070566 | H32: -355951178
A33: DIVERSOS Y EXTRAORDINARIOS | B33: 0 | C33: 0 | D33: 0 | E33: 0 | F33: 0 | G33: 0 | H33: 0
A34: Ingresos Div. y Extr | B34: 89464310 | C34: 5156133 | D34: 16480721 | E34: 111101164 | F34: 12769133 | G34: 0 | H34: 123870297
A35: Gtos. Div. y Extraor | B35: 13820037 | C35: 795226 | D35: 2541810 | E35: 17157073 | F35: 1975942 | G35: 0 | H35: 19133015
A36: RESULTADOS DIV. Y EXTRAORDINARIOS | B36: 75644273 | C36: 4360907 | D36: 13938911 | E36: 93944091 | F36: 10793191 | G36: 0 | H36: 104737282
A37: FINANCIEROS | B37: 0 | C37: 0 | D37: 0 | E37: 0 | F37: 0 | G37: 0 | H37: 0
A38: Ingresos Financieros | B38: 225003774 | C38: 11028169 | D38: 35249714 | E38: 271281657 | F38: 37348148 | G38: 0 | H38: 308629805
A39: Gastos Financieros | B39: 880541177 | C39: 51596292 | D39: 164919000 | E39: 1097056469 | F39: 123391134 | G39: 0 | H39: 1220447603
A40: RESULTADO FINANCIERO | B40: -655537403 | C40: -40568123 | D40: -129669286 | E40: -825774812 | F40: -86042986 | G40: 0 | H40: -911817798
A41: I.R.A.E. | B41: -728363365 | C41: -37900684 | D41: -121143258 | E41: -887407307 | F41: -114960616 | H41: -1002367923
A42: RESULTADO NETO | B42: 665311979 | C42: -183029000 | D42: -409819713 | E42: 72463266 | F42: -241197603 | G42: 8070566 | H42: -160663771

Sheet B-OSE-ACT
A3: E M P R E S A
C5: C O S T O S T O T A L E S
B9: C O N C E P T O | C9: C O S T O S O P E R A T I V O S
C12: AGUA | D12: ALCANTARILLADO | E12: TOTAL
B14: RETRIBUCIONES AL PERSONAL | C14: 962373813.4 | D14: 161546032.6 | E14: 1123919846
B16: MATERIALES Y SUMINISTROS | C16: 560750206.4 | D16: 30992780.42 | E16: 591742986.8
B18: ENERGIA Y FLUÍDOS | C18: 699755653.4 | D18: 90236587.03 | E18: 789992240.4
B20: SERVICIOS CONTRATADOS | C20: 320859406.2 | D20: 182777841 | E20: 503637247.3
B22: GASTOS VARIOS | C22: 170766175.4 | D22: 15227414.21 | E22: 185993589.6
B24: AMORTIZACIÓN | C24: 890697660.2 | D24: 286124848.7 | E24: 1176822509
B27: TOTAL | C27: 3605202915 | D27: 766905504 | E27: 4372108419
B32: C O N C E P T O | C32: C O S T O D E A D M I N I S T R A T I V O - C O M E R C I A L
C35: COMERCIALIZACION | D35: ADMINISTRACION | E35: COMERC. UPAS | F35: ADM.ASIGNADOS | G35: COM.ASIGNADOS
B37: RETRIBUCIONES AL PERSONAL | C37: 741905041.8 | D37: 226297509.3 | E37: 3275728.46 | F37: 806123906.8 | G37: 255787582.9
B39: MATERIALES Y SUMINISTROS | C39: 93637614.51 | D39: 10709637.18 | E39: 1424918.622 | F39: 25920320.35 | G39: 15550432.8
B41: ENERGIA Y FLUÍDOS | C41: 6316162.359 | D41: 87795969.7 | E41: 24278.31688 | F41: 12750259.25 | G41: 1900256.809
B43: SERVICIOS CONTRATADOS | C43: 571065043 | D43: 95441474.62 | E43: 476956.984 | F43: 260800920.2 | G43: 330952335.4
B45: GASTOS VARIOS | C45: 215045686 | D45: 39288250.23 | E45: 494668.5914 | F45: -95870576.6 | G45: 39193150.6
B47: AMORTIZACIÓN | C47: 163768342.4 | D47: 64673453 | E47: 161664.0261 | F47: 82903998.94 | G47: 11935414.53
B51: TOTAL | C51: 1791737890 | D51: 524206294 | E51: 5858215 | F51: 1092628829 | G51: 655319173
B54: FISCALES | E54: 452516810
A58: C O S T O D E E X P L O T A C I O N | G58: 8894375630

Sheet C-OSE-ACT
A3: COBERTURAS,COSTOS E INGRESOS PROMEDIO
A5: E M P R E S A
B9: 1. COMPOSICION DEL COSTO PROPIO POR CONEXIÓN | C9: OPERATIVOS | D9: 0 | E9: ADMISTRATIVO-COMERCIAL
C11: AGUA | D11: ALCANTARILLADO
C12: ($/conex.agua) | D12: ($/conex.desague) | E12: ($/conex.agua)
B14: RETRIBUCIONES AL PERSONAL | C14: 882.3 | D14: 573.3279127 | E14: 887.65
B16: MATERIALES Y SUMINISTROS | C16: 514.1 | D16: 109.9935778 | E16: 95.67
B18: ENERGIA Y FLUÍDOS | C18: 641.54 | D18: 320.2502299 | E18: 86.28
B20: SERVICIOS CONTRATADOS | C20: 294.16 | D20: 648.6797377 | E20: 611.05
B22: GASTOS VARIOS | C22: 156.56 | D22: 54.04219132 | E22: 233.17
B24: AMORTIZACIÓN | C24: 816.59 | D24: 1015.458935 | E24: 209.44
B28: TOTAL | C28: 3305.25 | D28: 2721.752585 | E28: 2123.26
B31: 2.CONEXIONES (promedio anual) | C31: 1090751 | D31: 281769
B34: 3.COBERTURAS COSTO/INGRESO
B36: 3.1 COSTO DE EXPLOTACION/ INGRESO DE EXPLOT. | C36: 1.01 | D36: 1.29 | E36: 0
B38: 3.2 FINANCIERO | C38: 3.95
B40: 3.3 TOTAL | C40: 0.99 | D40: 1.23
B43: 4.M3 ELEVADOS | C43: 346481580
B45: 5.M3 FACTURADOS | C45: 164745130
B48: 6. COSTO PROMEDIO
B50: 6.1 COSTO VARIABLE/ M3ELEVADOS | C50: 3.74
B52: 6.2 COSTO VARIABLE / M3FACTURADOS | C52: 7.86
B54: 6.3 COSTO EXPLOTACION/M3FACT | C54: 46.31
B56: 6.4 TOTAL/M3FACT | C56: 47.69
B59: 7. INGRESOS PROMEDIO
B61: 7.1 VARIABLE/M3 FACT | C61: 30.09
B63: 7.2 FIJO/CONEXIONES | C63: 172.79
B65: 7.3 INGRESO EXPLOTACION/M3FACT7 | C65: 45.81
B67: 7.4 TOTAL/M3FACT | C67: 48.13

Sheet A-MDEO-600
A2: MONTEVIDEO | B2: ESTADO DE RENDIMIENTO ECONÓMICO (a valores históricos) | G2: PERÍODO ENERO-DICIEMBRE-2014
A4: CONCEPTO | B4: AGUA POTABLE
B5: USINA | C5: PERFORACIÓN | D5: MIXTO | E5: SUB-TOTAL | F5: SANEAMIENTO | G5: OTROS INGRESOS | H5: TOTAL
A6: INGRESOS | B6: 0 | C6: 0 | D6: 0 | E6: 0 | F6: 0 | G6: 0 | H6: 0
A7: Ingresos Variables | B7: 2542338741 | C7: 0 | D7: 0 | E7: 2542338741 | H7: 2542338741
A8: Ingresos Fijos | B8: 904507606 | C8: 0 | D8: 0 | E8: 904507606 | H8: 904507606
A9: INGRESOS DE EXPLOTACION | B9: 3446846347 | C9: 0 | D9: 0 | E9: 3446846347 | H9: 3446846347
A10: Ingresos Alcantarillado | F10: 0 | H10: 0
A11: Ingresos Upas | G11: 3462490 | H11: 3462490
A12: Otros Ingresos | B12: 95452974 | C12: 0 | D12: 0 | E12: 95452974 | F12: 0 | G12: 10464570 | H12: 105917544
A13: TOTAL ING. DE EXPLOTACION | B13: 3542299321 | C13: 0 | D13: 0 | E13: 3542299321 | F13: 0 | G13: 13927060 | H13: 3556226381
A14: COSTOS DE EXPLOTACION | B14: 0 | C14: 0 | D14: 0 | E14: 0 | F14: 0 | G14: 0 | H14: 0
A15: OPERATIVO | B15: 0 | C15: 0 | D15: 0 | E15: 0 | F15: 0 | G15: 0 | H15: 0
A16: Costo Operativo Var | B16: 675118280 | C16: 0 | D16: 0 | E16: 675118280 | F16: 0 | G16: 0 | H16: 675118280
A17: Costo Operativo Fijo | B17: 756459430 | C17: 0 | D17: 0 | E17: 756459430 | F17: 0 | G17: 0 | H17: 756459430
A18: TOTAL OPERATIVO | B18: 1431577710 | C18: 0 | D18: 0 | E18: 1431577710 | F18: 0 | G18: 0 | H18: 1431577710
A19: NO OPERATIVO | B19: 0 | C19: 0 | D19: 0 | E19: 0 | F19: 0 | G19: 0 | H19: 0
A20: COMERCIALIZACION | B20: 0 | C20: 0 | D20: 0 | E20: 0 | F20: 0 | G20: 0 | H20: 0
A21: Comercial Propios | B21: 533283340 | C21: 0 | D21: 0 | E21: 533283340 | F21: 0 | G21: 0 | H21: 533283340
A22: Comercial Asignados | B22: 304628702 | C22: 0 | D22: 0 | E22: 304628702 | F22: 0 | G22: 0 | H22: 304628702
A23: Comercialización Upas | B23: 0 | C23: 0 | D23: 0 | E23: 0 | F23: 0 | G23: 5858215 | H23: 5858215
A24: TOTAL COMERCIALIZACION | B24: 837912042 | C24: 0 | D24: 0 | E24: 837912042 | F24: 0 | G24: 5858215 | H24: 843770257
A25: ADMINISTRACION | B25: 0 | C25: 0 | D25: 0 | E25: 0 | F25: 0 | G25: 0 | H25: 0
A26: Administración Propios | B26: 108171645 | C26: 0 | D26: 0 | E26: 108171645 | F26: 0 | G26: 0 | H26: 108171645
A27: Administ. Asignados | B27: 487239942 | C27: 0 | D27: 0 | E27: 487239942 | F27: 0 | G27: 0 | H27: 487239942
A28: Gastos Fiscales | B28: 182648689 | C28: 0 | D28: 0 | E28: 182648689 | F28: 0 | G28: 0 | H28: 182648689
A29: TOTAL ADMINISTRACION | B29: 778060276 | C29: 0 | D29: 0 | E29: 778060276 | F29: 0 | G29: 0 | H29: 778060276
A30: TOTAL NO OPERATIVO | B30: 1615972318 | C30: 0 | D30: 0 | E30: 1615972318 | F30: 0 | G30: 5858215 | H30: 1621830533
A31: COSTO DE EXPLOTACION | B31: 3047550028 | C31: 0 | D31: 0 | E31: 3047550028 | F31: 0 | G31: 5858215 | H31: 3053408243
A32: RESULTADO DE EXPLOTACION | B32: 494749293 | C32: 0 | D32: 0 | E32: 494749293 | F32: 0 | G32: 8068845 | H32: 502818138
A33: DIVERSOS Y EXTRAORDINARIOS | B33: 0 | C33: 0 | D33: 0 | E33: 0 | F33: 0 | G33: 0 | H33: 0
A34: Ingresos Div. y Extr | B34: 56665764 | C34: 0 | D34: 0 | E34: 56665764 | F34: 0 | G34: 0 | H34: 56665764
A35: Gtos. Div. y Extraor | B35: 8739518 | C35: 0 | D35: 0 | E35: 8739518 | F35: 0 | G35: 0 | H35: 8739518
A36: RESULTADOS DIV. Y EXTRAORDINARIOS | B36: 47926246 | C36: 0 | D36: 0 | E36: 47926246 | F36: 0 | G36: 0 | H36: 47926246
A37: FINANCIEROS | B37: 0 | C37: 0 | D37: 0 | E37: 0 | F37: 0 | G37: 0 | H37: 0
A38: Ingresos Financieros | B38: 121199288 | C38: 0 | D38: 0 | E38: 121199288 | F38: 0 | G38: 0 | H38: 121199288
A39: Gastos Financieros | B39: 567041916 | C39: 0 | D39: 0 | E39: 567041916 | F39: 0 | G39: 0 | H39: 567041916
A40: RESULTADO FINANCIERO | B40: -445842628 | C40: 0 | D40: 0 | E40: -445842628 | F40: 0 | G40: 0 | H40: -445842628
A41: I.R.A.E. | B41: -416527540 | C41: 0 | D41: 0 | E41: -416527540 | F41: 0 | H41: -416527540
A42: RESULTADO NETO | B42: 513360451 | C42: 0 | D42: 0 | E42: 513360451 | F42: 0 | G42: 8068845 | H42: 521429296

Sheet B-MDEO-600
A3: M O N T E V I D E O
C5: C O S T O S T O T A L E S
B9: C O N C E P T O | C9: C O S T O S O P E R A T I V O S
C12: AGUA | D12: ALCANTARILLADO | E12: TOTAL
B14: RETRIBUCIONES AL PERSONAL | C14: 287564612.8 | D14: 0 | E14: 287564612.8
B16: MATERIALES Y SUMINISTROS | C16: 341865378.8 | D16: 0 | E16: 341865378.8
B18: ENERGIA Y FLUÍDOS | C18: 390899461.2 | D18: 0 | E18: 390899461.2
B20: SERVICIOS CONTRATADOS | C20: 126497586.3 | D20: 0 | E20: 126497586.3
B22: GASTOS VARIOS | C22: 67629266.66 | D22: 0 | E22: 67629266.66
B24: AMORTIZACIÓN | C24: 217121404.2 | D24: 0 | E24: 217121404.2
B27: TOTAL | C27: 1431577710 | D27: 0 | E27: 1431577710 | G27: 0.6905716989
B32: C O N C E P T O | C32: C O S T O D E A D M I N I S T R A T I V O - C O M E R C I A L
C35: COMERCIALIZACION | D35: ADMINISTRACION | E35: TOTAL
B37: RETRIBUCIONES AL PERSONAL | C37: 161146166.8 | D37: 42349655.65 | E37: 203495822.4
B39: MATERIALES Y SUMINISTROS | C39: 28869879.44 | D39: 2719282.46 | E39: 31589161.9
B41: ENERGIA Y FLUÍDOS | C41: 2216766.82 | D41: 35820801.95 | E41: 38037568.77
B43: SERVICIOS CONTRATADOS | C43: 157122609.2 | D43: 20372099.03 | E43: 177494708.3
B45: GASTOS VARIOS | C45: 77658522.59 | D45: 4674147.16 | E45: 82332669.75
B47: AMORTIZACIÓN | C47: 106269395.2 | D47: 2235658.75 | E47: 108505053.9
B51: TOTAL | C51: 533283340 | D51: 108171645 | E51: 641454985 | G51: 0.3094283011
A56: C O S T O D E E X P L O T A C I O N | G56: 2073032695

Sheet C-MDEO-600
A3: COBERTURAS,COSTOS E INGRESOS PROMEDIO
A5: M O N T E V I D E O
B9: 1. COMPOSICION DEL COSTO PROPIO POR CONEXIÓN | C9: OPERATIVOS | D9: 0 | E9: ADMISTRATIVO-COMERCIAL
C11: AGUA | D11: ALCANTARILLADO
C12: ($/conex.agua) | D12: ($/conex.desague) | E12: ($/conex.agua)
B14: RETRIBUCIONES AL PERSONAL | C14: 816.74 | E14: 577.97
B16: MATERIALES Y SUMINISTROS | C16: 970.97 | E16: 89.72
B18: ENERGIA Y FLUÍDOS | C18: 1110.24 | E18: 108.03
B20: SERVICIOS CONTRATADOS | C20: 359.28 | E20: 504.12
B22: GASTOS VARIOS | C22: 192.08 | E22: 233.84
B24: AMORTIZACIÓN | C24: 616.67 | E24: 308.18
B28: TOTAL | C28: 4065.98 | E28: 1821.86
B31: 2.CONEXIONES (promedio anual) | C31: 352087
B34: 3.COBERTURAS COSTO/INGRESO
B36: 3.1 COSTO DE EXPLOTACION/ INGRESO DE EXPLOT. | C36: 0.86 | E36: 0
B38: 3.3 TOTAL | C38: 0.86
B41: 4.M3 ELEVADOS | C41: 176838800
B43: 5.M3 FACTURADOS | C43: 78995570
B46: 6. COSTO PROMEDIO
B48: 6.1 COSTO VARIABLE/ M3ELEVADOS | C48: 3.82
B50: 6.2 COSTO VARIABLE / M3FACTURADOS | C50: 8.55
B52: 6.3 COSTO EXPLOTACION/M3FACT | C52: 38.58
B54: 6.4 TOTAL/M3FACT | C54: 40.59
B57: 7. INGRESOS PROMEDIO
B59: 7.1 VARIABLE/M3 FACT | C59: 32.18
B61: 7.2 FIJO/CONEXIONES | C61: 214.08
B63: 7.3 INGRESO EXPLOTACION/M3FACT | C63: 44.84
B65: 7.4 TOTAL/M3FACT | C65: 47.09

Sheet A-400-AG-CENTRO
A2: AMBITO GEOGRAFICO CENTRO | B2: ESTADO DE RENDIMIENTO ECONÓMICO (a valores históricos) | G2: PERÍODO ENERO-DICIEMBRE-2014
A4: CONCEPTO | B4: AGUA POTABLE
B5: USINA | C5: PERFORACIÓN | D5: MIXTO | E5: SUB-TOTAL | F5: SANEAMIENTO | G5: OTROS INGRESOS | H5: TOTAL
A6: INGRESOS | B6: 0 | C6: 0 | D6: 0 | E6: 0 | F6: 0 | G6: 0 | H6: 0
A7: Ingresos Variables | B7: 601717054 | C7: 5969765 | D7: 128980583 | E7: 736667402 | H7: 736667402
A8: Ingresos Fijos | B8: 298204970 | C8: 3994848 | D8: 110472216 | E8: 412672034 | H8: 412672034
A9: INGRESOS DE EXPLOTACION | B9: 899922024 | C9: 9964613 | D9: 239452799 | E9: 1149339436 | H9: 1149339436
A10: Ingresos Alcantarillado | F10: 172008074 | H10: 172008074
A11: Ingresos Upas | G11: 0 | H11: 0
A12: Otros Ingresos | B12: 57470010 | C12: 457597 | D12: 19124252 | E12: 77051859 | F12: 814463 | G12: 0 | H12: 77866322
A13: TOTAL ING. DE EXPLOTACION | B13: 957392034 | C13: 10422210 | D13: 258577051 | E13: 1226391295 | F13: 172822537 | G13: 0 | H13: 1399213832
A14: COSTOS DE EXPLOTACION | B14: 0 | C14: 0 | D14: 0 | E14: 0 | F14: 0 | G14: 0 | H14: 0
A15: OPERATIVO | B15: 0 | C15: 0 | D15: 0 | E15: 0 | F15: 0 | G15: 0 | H15: 0
A16: Costo Operativo Var | B16: 73223074 | C16: 2070505 | D16: 35818359 | E16: 111111938 | F16: 36200965 | G16: 0 | H16: 147312903
A17: Costo Operativo Fijo | B17: 272279724 | C17: 18025294 | D17: 116917659 | E17: 407222677 | F17: 190530292 | G17: 0 | H17: 597752969
A18: TOTAL OPERATIVO | B18: 345502798 | C18: 20095799 | D18: 152736018 | E18: 518334615 | F18: 226731257 | G18: 0 | H18: 745065872
A19: NO OPERATIVO | B19: 0 | C19: 0 | D19: 0 | E19: 0 | F19: 0 | G19: 0 | H19: 0
A20: COMERCIALIZACION | B20: 0 | C20: 0 | D20: 0 | E20: 0 | F20: 0 | G20: 0 | H20: 0
A21: Comercial Propios | B21: 289835962 | C21: 5906994 | D21: 99836831 | E21: 395579787 | F21: 44693654 | G21: 0 | H21: 440273441
A22: Comercial Asignados | B22: 82333272 | C22: 896283 | D22: 22236967 | E22: 105466522 | F22: 14862297 | G22: 0 | H22: 120328819
A23: Comercialización Upas | B23: 0 | C23: 0 | D23: 0 | E23: 0 | F23: 0 | G23: 0 | H23: 0
A24: TOTAL COMERCIALIZACION | B24: 372169234 | C24: 6803277 | D24: 122073798 | E24: 501046309 | F24: 59555951 | G24: 0 | H24: 560602260
A25: ADMINISTRACION | B25: 0 | C25: 0 | D25: 0 | E25: 0 | F25: 0 | G25: 0 | H25: 0
A26: Administración Propios | B26: 81512546 | C26: 1316820 | D26: 21070736 | E26: 103900102 | F26: 11625261 | G26: 0 | H26: 115525363
A27: Administ. Asignados | B27: 131688375 | C27: 1433565 | D27: 35567030 | E27: 168688970 | F27: 23771578 | G27: 0 | H27: 192460548
A28: Gastos Fiscales | B28: 49365224 | C28: 537392 | D28: 13332797 | E28: 63235413 | F28: 8911107 | G28: 0 | H28: 72146520
A29: TOTAL ADMINISTRACION | B29: 262566145 | C29: 3287777 | D29: 69970563 | E29: 335824485 | F29: 44307946 | G29: 0 | H29: 380132431
A30: TOTAL NO OPERATIVO | B30: 634735379 | C30: 10091054 | D30: 192044361 | E30: 836870794 | F30: 103863897 | G30: 0 | H30: 940734691
A31: COSTO DE EXPLOTACION | B31: 980238177 | C31: 30186853 | D31: 344780379 | E31: 1355205409 | F31: 330595154 | G31: 0 | H31: 1685800563
A32: RESULTADO DE EXPLOTACION | B32: -22846143 | C32: -19764643 | D32: -86203328 | E32: -128814114 | F32: -157772617 | G32: 0 | H32: -286586731
A33: DIVERSOS Y EXTRAORDINARIOS | B33: 0 | C33: 0 | D33: 0 | E33: 0 | F33: 0 | G33: 0 | H33: 0
A34: Ingresos Div. y Extr | B34: 15315294 | C34: 166723 | D34: 4136426 | E34: 19618443 | F34: 2764623 | G34: 0 | H34: 22383066
A35: Gtos. Div. y Extraor | B35: 2362066 | C35: 25714 | D35: 637958 | E35: 3025738 | F35: 426386 | G35: 0 | H35: 3452124
A36: RESULTADOS DIV. Y EXTRAORDINARIOS | B36: 12953228 | C36: 141009 | D36: 3498468 | E36: 16592705 | F36: 2338237 | G36: 0 | H36: 18930942
A37: FINANCIEROS | B37: 0 | C37: 0 | D37: 0 | E37: 0 | F37: 0 | G37: 0 | H37: 0
A38: Ingresos Financieros | B38: 32757038 | C38: 356594 | D38: 8847179 | E38: 41960811 | F38: 5913100 | G38: 0 | H38: 47873911
A39: Gastos Financieros | B39: 153256787 | C39: 1668360 | D39: 41392331 | E39: 196317478 | F39: 27664975 | G39: 0 | H39: 223982453
A40: RESULTADO FINANCIERO | B40: -120499749 | C40: -1311766 | D40: -32545152 | E40: -154356667 | F40: -21751875 | G40: 0 | H40: -176108542
A41: I.R.A.E. | B41: -112576638 | C41: -1225514 | D41: -30405240 | E41: -144207392 | F41: -20321644 | H41: -164529036
A42: RESULTADO NETO | B42: -17816026 | C42: -19709886 | D42: -84844772 | E42: -122370684 | F42: -156864611 | G42: 0 | H42: -279235295

Sheet B-400-AG-CENTRO
A3: AMBITO GEOGRAFICO CENTRO
C5: C O S T O S T O T A L E S
B9: C O N C E P T O | C9: C O S T O S O P E R A T I V O S
C12: AGUA | D12: ALCANTARILLADO | E12: TOTAL
B14: RETRIBUCIONES AL PERSONAL | C14: 159734949 | D14: 56955483.15 | E14: 216690432.1
B16: MATERIALES Y SUMINISTROS | C16: 42564772.24 | D16: 8707417.946 | E16: 51272190.18
B18: ENERGIA Y FLUÍDOS | C18: 52356898.18 | D18: 19213251.66 | E18: 71570149.84
B20: SERVICIOS CONTRATADOS | C20: 43346813.02 | D20: 48314383.25 | E20: 91661196.27
B22: GASTOS VARIOS | C22: 23401897.41 | D22: 7389797.734 | E22: 30791695.15
B24: AMORTIZACIÓN | C24: 196929285.7 | D24: 86150923.12 | E24: 283080208.8
B27: TOTAL | C27: 518334615.5 | D27: 226731256.9 | E27: 745065872.3 | G27: 0.5727466397
B32: C O N C E P T O | C32: C O S T O D E A D M I N I S T R A T I V O - C O M E R C I A L
C35: COMERCIALIZACION | D35: ADMINISTRACION | E35: TOTAL
B37: RETRIBUCIONES AL PERSONAL | C37: 191691589.4 | D37: 53564262.79 | E37: 245255852.2
B39: MATERIALES Y SUMINISTROS | C39: 25775442.68 | D39: 1529665.582 | E39: 27305108.26
B41: ENERGIA Y FLUÍDOS | C41: 1052849.266 | D41: 14855725.03 | E41: 15908574.3
B43: SERVICIOS CONTRATADOS | C43: 136289398.9 | D43: 27016939.77 | E43: 163306338.6
B45: GASTOS VARIOS | C45: 64802014.87 | D45: 7927890.607 | E45: 72729905.48
B47: AMORTIZACIÓN | C47: 20662145.94 | D47: 10630879.79 | E47: 31293025.72
B51: TOTAL | C51: 440273441 | D51: 115525363.6 | E51: 555798804.6 | G51: 0.4272533603
A56: C O S T O D E E X P L O T A C I O N | G56: 1300864677

Sheet C-400-AG-CENTRO
A3: COBERTURAS,COSTOS E INGRESOS PROMEDIO
A5: A M B I T O G E O G R A F I C O C E N T R O
B9: 1. COMPOSICION DEL COSTO PROPIO POR CONEXIÓN | C9: OPERATIVOS | D9: 0 | E9: ADMISTRATIVO-COMERCIAL
C11: AGUA | D11: ALCANTARILLADO
C12: ($/conex.agua) | D12: ($/conex.desague) | E12: ($/conex.agua)
B14: RETRIBUCIONES AL PERSONAL | C14: 688.49 | D14: 1113.172738 | E14: 1057.1
B16: MATERIALES Y SUMINISTROS | C16: 183.46 | D16: 170.1830929 | E16: 117.69
B18: ENERGIA Y FLUÍDOS | C18: 225.67 | D18: 375.5155215 | E18: 68.57
B20: SERVICIOS CONTRATADOS | C20: 186.83 | D20: 944.2858057 | E20: 703.88
B22: GASTOS VARIOS | C22: 100.87 | D22: 144.4307189 | E22: 313.48
B24: AMORTIZACIÓN | C24: 848.8 | D24: 1683.786243 | E24: 134.88
B28: TOTAL | C28: 2234.12 | D28: 4431.37412 | E28: 2395.6
B31: 2.CONEXIONES (promedio anual) | C31: 232008 | D31: 51165
B34: 3.COBERTURAS COSTO/INGRESO
B36: 3.1 COSTO DE EXPLOTACION/ INGRESO DE EXPLOT. | C36: 1.11 | D36: 1.91 | E36: 0
B38: 3.3 TOTAL | C38: 1.1 | D38: 1.86
B41: 4.M3 ELEVADOS | C41: 56546970
B43: 5.M3 FACTURADOS | C43: 26631320
B46: 6. COSTO PROMEDIO
B48: 6.1 COSTO VARIABLE/ M3ELEVADOS | C48: 1.96
B50: 6.2 COSTO VARIABLE / M3FACTURADOS | C50: 4.17
B52: 6.3 COSTO EXPLOTACION/M3FACT | C52: 50.89
B54: 6.4 TOTAL/M3FACT | C54: 52.96
B57: 7. INGRESOS PROMEDIO
B59: 7.1 VARIABLE/M3 FACT | C59: 27.66
B61: 7.2 FIJO/CONEXIONES | C61: 148.22
B63: 7.3 INGRESO EXPLOTACION/M3FACT | C63: 46.05
B65: 7.4 TOTAL/M3FACT | C65: 48.36

Sheet A-CAN-401
A2: CANELONES | B2: ESTADO DE RENDIMIENTO ECONÓMICO (a valores históricos) | G2: PERÍODO ENERO-DICIEMBRE-2014
A4: CONCEPTO | B4: AGUA POTABLE
B5: USINA | C5: PERFORACIÓN | D5: MIXTO | E5: SUB-TOTAL | F5: SANEAMIENTO | G5: OTROS INGRESOS | H5: TOTAL
A6: INGRESOS | B6: 0 | C6: 0 | D6: 0 | E6: 0 | F6: 0 | G6: 0 | H6: 0
A7: Ingresos Variables | B7: 80380067 | C7: 0 | D7: 29741286 | E7: 110121353 | H7: 110121353
A8: Ingresos Fijos | B8: 35400585 | C8: 0 | D8: 18465215 | E8: 53865800 | H8: 53865800
A9: INGRESOS DE EXPLOTACION | B9: 115780652 | C9: 0 | D9: 48206501 | E9: 163987153 | H9: 163987153
A10: Ingresos Alcantarillado | F10: 36626087 | H10: 36626087
A11: Ingresos Upas | G11: 0 | H11: 0
A12: Otros Ingresos | B12: 5141891 | C12: 0 | D12: 3506199 | E12: 8648090 | F12: 16939 | G12: 0 | H12: 8665029
A13: TOTAL ING. DE EXPLOTACION | B13: 120922543 | C13: 0 | D13: 51712700 | E13: 172635243 | F13: 36643026 | G13: 0 | H13: 209278269
A14: COSTOS DE EXPLOTACION | B14: 0 | C14: 0 | D14: 0 | E14: 0 | F14: 0 | G14: 0 | H14: 0
A15: OPERATIVO | B15: 0 | C15: 0 | D15: 0 | E15: 0 | F15: 0 | G15: 0 | H15: 0
A16: Costo Operativo Var | B16: 23406963 | C16: 0 | D16: 7784789 | E16: 31191752 | F16: 14102342 | G16: 0 | H16: 45294094
A17: Costo Operativo Fijo | B17: 95151655 | C17: 0 | D17: 37410379 | E17: 132562034 | F17: 68574766 | G17: 0 | H17: 201136800
A18: TOTAL OPERATIVO | B18: 118558618 | C18: 0 | D18: 45195168 | E18: 163753786 | F18: 82677108 | G18: 0 | H18: 246430894
A19: NO OPERATIVO | B19: 0 | C19: 0 | D19: 0 | E19: 0 | F19: 0 | G19: 0 | H19: 0
A20: COMERCIALIZACION | B20: 0 | C20: 0 | D20: 0 | E20: 0 | F20: 0 | G20: 0 | H20: 0
A21: Comercial Propios | B21: 43103378 | C21: 0 | D21: 23035701 | E21: 66139079 | F21: 10885419 | G21: 0 | H21: 77024498
A22: Comercial Asignados | B22: 10399030 | C22: 0 | D22: 4447160 | E22: 14846190 | F22: 3151207 | G22: 0 | H22: 17997397
A23: Comercialización Upas | B23: 0 | C23: 0 | D23: 0 | E23: 0 | F23: 0 | G23: 0 | H23: 0
A24: TOTAL COMERCIALIZACION | B24: 53502408 | C24: 0 | D24: 27482861 | E24: 80985269 | F24: 14036626 | G24: 0 | H24: 95021895
A25: ADMINISTRACION | B25: 0 | C25: 0 | D25: 0 | E25: 0 | F25: 0 | G25: 0 | H25: 0
A26: Administración Propios | B26: 14966820 | C26: 0 | D26: 7998705 | E26: 22965525 | F26: 3779753 | G26: 0 | H26: 26745278
A27: Administ. Asignados | B27: 16632782 | C27: 0 | D27: 7113033 | E27: 23745815 | F27: 5040214 | G27: 0 | H27: 28786029
A28: Gastos Fiscales | B28: 6235030 | C28: 0 | D28: 2666420 | E28: 8901450 | F28: 1889395 | G28: 0 | H28: 10790845
A29: TOTAL ADMINISTRACION | B29: 37834632 | C29: 0 | D29: 17778158 | E29: 55612790 | F29: 10709362 | G29: 0 | H29: 66322152
A30: TOTAL NO OPERATIVO | B30: 91337040 | C30: 0 | D30: 45261019 | E30: 136598059 | F30: 24745988 | G30: 0 | H30: 161344047
A31: COSTO DE EXPLOTACION | B31: 209895658 | C31: 0 | D31: 90456187 | E31: 300351845 | F31: 107423096 | G31: 0 | H31: 407774941
A32: RESULTADO DE EXPLOTACION | B32: -88973115 | C32: 0 | D32: -38743487 | E32: -127716602 | F32: -70780070 | G32: 0 | H32: -198496672
A33: DIVERSOS Y EXTRAORDINARIOS | B33: 0 | C33: 0 | D33: 0 | E33: 0 | F33: 0 | G33: 0 | H33: 0
A34: Ingresos Div. y Extr | B34: 1934384 | C34: 0 | D34: 827242 | E34: 2761626 | F34: 586174 | G34: 0 | H34: 3347800
A35: Gtos. Div. y Extraor | B35: 298339 | C35: 0 | D35: 127585 | E35: 425924 | F35: 90405 | G35: 0 | H35: 516329
A36: RESULTADOS DIV. Y EXTRAORDINARIOS | B36: 1636045 | C36: 0 | D36: 699657 | E36: 2335702 | F36: 495769 | G36: 0 | H36: 2831471
A37: FINANCIEROS | B37: 0 | C37: 0 | D37: 0 | E37: 0 | F37: 0 | G37: 0 | H37: 0
A38: Ingresos Financieros | B38: 4137348 | C38: 0 | D38: 1769343 | E38: 5906691 | F38: 1253736 | G38: 0 | H38: 7160427
A39: Gastos Financieros | B39: 19356961 | C39: 0 | D39: 8278032 | E39: 27634993 | F39: 5865719 | G39: 0 | H39: 33500712
A40: RESULTADO FINANCIERO | B40: -15219613 | C40: 0 | D40: -6508689 | E40: -21728302 | F40: -4611983 | G40: 0 | H40: -26340285
A41: I.R.A.E. | B41: -14218892 | C41: 0 | D41: -6080729 | E41: -20299621 | F41: -4308735 | H41: -24608356
A42: RESULTADO NETO | B42: -88337791 | C42: 0 | D42: -38471790 | E42: -126809581 | F42: -70587549 | G42: 0 | H42: -197397130

Sheet B-CAN-401
A3: C A N E L O N E S
C5: C O S T O S T O T A L E S
B9: C O N C E P T O | C9: C O S T O S O P E R A T I V O S
C12: AGUA | D12: ALCANTARILLADO | E12: TOTAL
B14: RETRIBUCIONES AL PERSONAL | C14: 47836993.74 | D14: 18660782.21 | E14: 66497775.95
B16: MATERIALES Y SUMINISTROS | C16: 10420770.32 | D16: 4242403.535 | E16: 14663173.85
B18: ENERGIA Y FLUÍDOS | C18: 15716198.85 | D18: 6938058.214 | E18: 22654257.06
B20: SERVICIOS CONTRATADOS | C20: 17783455.3 | D20: 19049349.32 | E20: 36832804.62
B22: GASTOS VARIOS | C22: 6925952.751 | D22: 4208268.016 | E22: 11134220.77
B24: AMORTIZACIÓN | C24: 65070415.03 | D24: 29578246.71 | E24: 94648661.75
B27: TOTAL | C27: 163753786 | D27: 82677108 | E27: 246430894 | G27: 0.7036848159
B32: C O N C E P T O | C32: C O S T O D E A D M I N I S T R A T I V O - C O M E R C I A L
C35: COMERCIALIZACION | D35: ADMINISTRACION | E35: TOTAL
B37: RETRIBUCIONES AL PERSONAL | C37: 36709765.82 | D37: 13433397.47 | E37: 50143163.29
B39: MATERIALES Y SUMINISTROS | C39: 3109186.225 | D39: 624749.1771 | E39: 3733935.402
B41: ENERGIA Y FLUÍDOS | C41: 218663.5288 | D41: 4045945.063 | E41: 4264608.592
B43: SERVICIOS CONTRATADOS | C43: 20649497.18 | D43: 4006894.467 | E43: 24656391.65
B45: GASTOS VARIOS | C45: 11580145.03 | D45: 2503499.655 | E45: 14083644.69
B47: AMORTIZACIÓN | C47: 4757240.215 | D47: 2130792.171 | E47: 6888032.386
B51: TOTAL | C51: 77024498 | D51: 26745278 | E51: 103769776 | G51: 0.2963151841
A56: C O S T O D E E X P L O T A C I O N | G56: 350200670

Sheet C-CAN-401
A3: COBERTURAS,COSTOS E INGRESOS PROMEDIO
A5: C A N E L O N E S
B9: 1. COMPOSICION DEL COSTO PROPIO POR CONEXIÓN | C9: OPERATIVOS | D9: 0 | E9: ADMISTRATIVO-COMERCIAL
C11: AGUA | D11: ALCANTARILLADO
C12: ($/conex.agua) | D12: ($/conex.desague) | E12: ($/conex.agua)
B14: RETRIBUCIONES AL PERSONAL | C14: 1447.54 | D14: 1715.460765 | E14: 1517.33
B16: MATERIALES Y SUMINISTROS | C16: 315.33 | D16: 389.9984864 | E16: 112.99
B18: ENERGIA Y FLUÍDOS | C18: 475.57 | D18: 637.8064179 | E18: 129.05
B20: SERVICIOS CONTRATADOS | C20: 538.13 | D20: 1751.181221 | E20: 746.1
B22: GASTOS VARIOS | C22: 209.58 | D22: 386.8604537 | E22: 426.17
B24: AMORTIZACIÓN | C24: 1969.03 | D24: 2719.088685 | E24: 208.43
B28: TOTAL | C28: 4955.18 | D28: 7600.396029 | E28: 3140.07
B31: 2.CONEXIONES (promedio anual) | C31: 33047 | D31: 10878
B34: 3.COBERTURAS COSTO/INGRESO
B36: 3.1 COSTO DE EXPLOTACION/ INGRESO DE EXPLOT. | C36: 1.74 | D36: 2.93 | E36: 0
B38: 3.3 TOTAL | C38: 1.7 | D38: 2.83
B41: 4.M3 ELEVADOS | C41: 6360120
B43: 5.M3 FACTURADOS | C43: 3741370
B46: 6. COSTO PROMEDIO
B48: 6.1 COSTO VARIABLE/ M3ELEVADOS | C48: 4.9
B50: 6.2 COSTO VARIABLE / M3FACTURADOS | C50: 8.34
B52: 6.3 COSTO EXPLOTACION/M3FACT | C52: 80.28
B54: 6.4 TOTAL/M3FACT | C54: 82.35
B57: 7. INGRESOS PROMEDIO
B59: 7.1 VARIABLE/M3 FACT | C59: 29.43
B61: 7.2 FIJO/CONEXIONES | C61: 135.83
B63: 7.3 INGRESO EXPLOTACION/M3FACT | C63: 46.14
B65: 7.4 TOTAL/M3FACT | C65: 48.46

Sheet A-LP-402
A2: LAS PIEDRAS | B2: ESTADO DE RENDIMIENTO ECONÓMICO (a valores históricos) | G2: PERÍODO ENERO-DICIEMBRE-2014
A4: CONCEPTO | B4: AGUA POTABLE
B5: USINA | C5: PERFORACIÓN | D5: MIXTO | E5: SUB-TOTAL | F5: SANEAMIENTO | G5: OTROS INGRESOS | H5: TOTAL
A6: INGRESOS | B6: 0 | C6: 0 | D6: 0 | E6: 0 | F6: 0 | G6: 0 | H6: 0
A7: Ingresos Variables | B7: 147233749 | C7: 0 | D7: 0 | E7: 147233749 | H7: 147233749
A8: Ingresos Fijos | B8: 75146631 | C8: 0 | D8: 0 | E8: 75146631 | H8: 75146631
A9: INGRESOS DE EXPLOTACION | B9: 222380380 | C9: 0 | D9: 0 | E9: 222380380 | H9: 222380380
A10: Ingresos Alcantarillado | F10: 29857113 | H10: 29857113
A11: Ingresos Upas | G11: 0 | H11: 0
A12: Otros Ingresos | B12: 15317895 | C12: 0 | D12: 0 | E12: 15317895 | F12: 63054 | G12: 0 | H12: 15380949
A13: TOTAL ING. DE EXPLOTACION | B13: 237698275 | C13: 0 | D13: 0 | E13: 237698275 | F13: 29920167 | G13: 0 | H13: 267618442
A14: COSTOS DE EXPLOTACION | B14: 0 | C14: 0 | D14: 0 | E14: 0 | F14: 0 | G14: 0 | H14: 0
A15: OPERATIVO | B15: 0 | C15: 0 | D15: 0 | E15: 0 | F15: 0 | G15: 0 | H15: 0
A16: Costo Operativo Var | B16: 2845525 | C16: 0 | D16: 0 | E16: 2845525 | F16: 927613 | G16: 0 | H16: 3773138
A17: Costo Operativo Fijo | B17: 30749556 | C17: 0 | D17: 0 | E17: 30749556 | F17: 14729084 | G17: 0 | H17: 45478640
A18: TOTAL OPERATIVO | B18: 33595081 | C18: 0 | D18: 0 | E18: 33595081 | F18: 15656697 | G18: 0 | H18: 49251778
A19: NO OPERATIVO | B19: 0 | C19: 0 | D19: 0 | E19: 0 | F19: 0 | G19: 0 | H19: 0
A20: COMERCIALIZACION | B20: 0 | C20: 0 | D20: 0 | E20: 0 | F20: 0 | G20: 0 | H20: 0
A21: Comercial Propios | B21: 80428887 | C21: 0 | D21: 0 | E21: 80428887 | F21: 5525302 | G21: 0 | H21: 85954189
A22: Comercial Asignados | B22: 20441445 | C22: 0 | D22: 0 | E22: 20441445 | F22: 2573058 | G22: 0 | H22: 23014503
A23: Comercialización Upas | B23: 0 | C23: 0 | D23: 0 | E23: 0 | F23: 0 | G23: 0 | H23: 0
A24: TOTAL COMERCIALIZACION | B24: 100870332 | C24: 0 | D24: 0 | E24: 100870332 | F24: 8098360 | G24: 0 | H24: 108968692
A25: ADMINISTRACION | B25: 0 | C25: 0 | D25: 0 | E25: 0 | F25: 0 | G25: 0 | H25: 0
A26: Administración Propios | B26: 18882685 | C26: 0 | D26: 0 | E26: 18882685 | F26: 1297202 | G26: 0 | H26: 20179887
A27: Administ. Asignados | B27: 32695175 | C27: 0 | D27: 0 | E27: 32695175 | F27: 4115491 | G27: 0 | H27: 36810666
A28: Gastos Fiscales | B28: 12256242 | C28: 0 | D28: 0 | E28: 12256242 | F28: 1542749 | G28: 0 | H28: 13798991
A29: TOTAL ADMINISTRACION | B29: 63834102 | C29: 0 | D29: 0 | E29: 63834102 | F29: 6955442 | G29: 0 | H29: 70789544
A30: TOTAL NO OPERATIVO | B30: 164704434 | C30: 0 | D30: 0 | E30: 164704434 | F30: 15053802 | G30: 0 | H30: 179758236
A31: COSTO DE EXPLOTACION | B31: 198299515 | C31: 0 | D31: 0 | E31: 198299515 | F31: 30710499 | G31: 0 | H31: 229010014
A32: RESULTADO DE EXPLOTACION | B32: 39398760 | C32: 0 | D32: 0 | E32: 39398760 | F32: -790332 | G32: 0 | H32: 38608428
A33: DIVERSOS Y EXTRAORDINARIOS | B33: 0 | C33: 0 | D33: 0 | E33: 0 | F33: 0 | G33: 0 | H33: 0
A34: Ingresos Div. y Extr | B34: 3802433 | C34: 0 | D34: 0 | E34: 3802433 | F34: 478630 | G34: 0 | H34: 4281063
A35: Gtos. Div. y Extraor | B35: 586446 | C35: 0 | D35: 0 | E35: 586446 | F35: 73819 | G35: 0 | H35: 660265
A36: RESULTADOS DIV. Y EXTRAORDINARIOS | B36: 3215987 | C36: 0 | D36: 0 | E36: 3215987 | F36: 404811 | G36: 0 | H36: 3620798
A37: FINANCIEROS | B37: 0 | C37: 0 | D37: 0 | E37: 0 | F37: 0 | G37: 0 | H37: 0
A38: Ingresos Financieros | B38: 8132814 | C38: 0 | D38: 0 | E38: 8132814 | F38: 1023714 | G38: 0 | H38: 9156528
A39: Gastos Financieros | B39: 38050112 | C39: 0 | D39: 0 | E39: 38050112 | F39: 4789541 | G39: 0 | H39: 42839653
A40: RESULTADO FINANCIERO | B40: -29917298 | C40: 0 | D40: 0 | E40: -29917298 | F40: -3765827 | G40: 0 | H40: -33683125
A41: I.R.A.E. | B41: -27950173 | C41: 0 | D41: 0 | E41: -27950173 | F41: -3518216 | H41: -31468389
A42: RESULTADO NETO | B42: 40647622 | C42: 0 | D42: 0 | E42: 40647622 | F42: -633132 | G42: 0 | H42: 40014490

Sheet B-LP-402
A3: L A S P I E D R A S
C5: C O S T O S T O T A L E S
B9: C O N C E P T O | C9: C O S T O S O P E R A T I V O S
C12: AGUA | D12: ALCANTARILLADO | E12: TOTAL
B14: RETRIBUCIONES AL PERSONAL | C14: 6141179.036 | D14: 5333213.746 | E14: 11474392.78
B16: MATERIALES Y SUMINISTROS | C16: 231775.8884 | D16: 229849.7639 | E16: 461625.6523
B18: ENERGIA Y FLUÍDOS | C18: 2579017.654 | D18: 178116.5779 | E18: 2757134.232
B20: SERVICIOS CONTRATADOS | C20: 3137847.271 | D20: 4665099.303 | E20: 7802946.574
B22: GASTOS VARIOS | C22: 1440815.241 | D22: 674054.0756 | E22: 2114869.316
B24: AMORTIZACIÓN | C24: 20064445.91 | D24: 4576363.534 | E24: 24640809.44
B27: TOTAL | C27: 33595081 | D27: 15656697 | E27: 49251778 | G27: 0.3169643615
B32: C O N C E P T O | C32: C O S T O D E A D M I N I S T R A T I V O - C O M E R C I A L
C35: COMERCIALIZACION | D35: ADMINISTRACION | E35: TOTAL
B37: RETRIBUCIONES AL PERSONAL | C37: 35142503.25 | D37: 12391757.83 | E37: 47534261.09
B39: MATERIALES Y SUMINISTROS | C39: 2860597.411 | D39: 77277.57748 | E39: 2937874.989
B41: ENERGIA Y FLUÍDOS | C41: 232269.0459 | D41: 1771419.711 | E41: 2003688.757
B43: SERVICIOS CONTRATADOS | C43: 27640755.68 | D43: 4026869.185 | E43: 31667624.87
B45: GASTOS VARIOS | C45: 16825312.74 | D45: 564376.6485 | E45: 17389689.39
B47: AMORTIZACIÓN | C47: 3252750.873 | D47: 1348186.043 | E47: 4600936.916
B51: TOTAL | C51: 85954189 | D51: 20179887 | E51: 106134076 | G51: 0.6830356385
A56: C O S T O D E E X P L O T A C I O N | G56: 155385854
G59: 0

Sheet C-LP-402
A3: COBERTURAS,COSTOS E INGRESOS PROMEDIO
A5: L A S P I E D R A S
B9: 1. COMPOSICION DEL COSTO PROPIO POR CONEXIÓN | C9: OPERATIVOS | D9: 0 | E9: ADMISTRATIVO-COMERCIAL
C11: AGUA | D11: ALCANTARILLADO
C12: ($/conex.agua) | D12: ($/conex.desague) | E12: ($/conex.agua)
B14: RETRIBUCIONES AL PERSONAL | C14: 123.76 | D14: 782.3402884 | E14: 957.91
B16: MATERIALES Y SUMINISTROS | C16: 4.67 | D16: 33.71714301 | E16: 59.2
B18: ENERGIA Y FLUÍDOS | C18: 51.97 | D18: 26.12829367 | E18: 40.38
B20: SERVICIOS CONTRATADOS | C20: 63.23 | D20: 684.3331821 | E20: 638.16
B22: GASTOS VARIOS | C22: 29.04 | D22: 98.87840335 | E22: 350.44
B24: AMORTIZACIÓN | C24: 404.34 | D24: 671.3163465 | E24: 92.72
B28: TOTAL | C28: 677.01 | D28: 2296.713657 | E28: 2138.81
B31: 2.CONEXIONES (promedio anual) | C31: 49623 | D31: 6817
B34: 3.COBERTURAS COSTO/INGRESO
B36: 3.1 COSTO DE EXPLOTACION/ INGRESO DE EXPLOT. | C36: 0.83 | D36: 1.03 | E36: 0
B38: 3.3 TOTAL | C38: 0.84 | D38: 1.02
B41: 4.M3 ELEVADOS | C41: 19175180
B43: 5.M3 FACTURADOS | C43: 5368190
B46: 6. COSTO PROMEDIO
B48: 6.1 COSTO VARIABLE/ M3ELEVADOS | C48: 0.15
B50: 6.2 COSTO VARIABLE / M3FACTURADOS | C50: 0.53
B52: 6.3 COSTO EXPLOTACION/M3FACT | C52: 36.94
B54: 6.4 TOTAL/M3FACT | C54: 38.93
B57: 7. INGRESOS PROMEDIO
B59: 7.1 VARIABLE/M3 FACT | C59: 27.43
B61: 7.2 FIJO/CONEXIONES | C61: 126.2
B63: 7.3 INGRESO EXPLOTACION/M3FACT | C63: 44.28
B65: 7.4 TOTAL/M3FACT | C65: 46.5

Sheet A-SAT-403
A2: SISTEMA ATLANTIDA | B2: ESTADO DE RENDIMIENTO ECONÓMICO (a valores históricos) | G2: PERÍODO ENERO-DICIEMBRE-2014
A4: CONCEPTO | B4: AGUA POTABLE
B5: USINA | C5: PERFORACIÓN | D5: MIXTO | E5: SUB-TOTAL | F5: SANEAMIENTO | G5: OTROS INGRESOS | H5: TOTAL
A6: INGRESOS | B6: 0 | C6: 0 | D6: 0 | E6: 0 | F6: 0 | G6: 0 | H6: 0
A7: Ingresos Variables | B7: 82396031 | C7: 0 | D7: 88425082 | E7: 170821113 | H7: 170821113
A8: Ingresos Fijos | B8: 37404081 | C8: 0 | D8: 84198679 | E8: 121602760 | H8: 121602760
A9: INGRESOS DE EXPLOTACION | B9: 119800112 | C9: 0 | D9: 172623761 | E9: 292423873 | H9: 292423873
A10: Ingresos Alcantarillado | F10: 19534792 | H10: 19534792
A11: Ingresos Upas | G11: 0 | H11: 0
A12: Otros Ingresos | B12: 7988037 | C12: 0 | D12: 14788233 | E12: 22776270 | F12: 0 | G12: 0 | H12: 22776270
A13: TOTAL ING. DE EXPLOTACION | B13: 127788149 | C13: 0 | D13: 187411994 | E13: 315200143 | F13: 19534792 | G13: 0 | H13: 334734935
A14: COSTOS DE EXPLOTACION | B14: 0 | C14: 0 | D14: 0 | E14: 0 | F14: 0 | G14: 0 | H14: 0
A15: OPERATIVO | B15: 0 | C15: 0 | D15: 0 | E15: 0 | F15: 0 | G15: 0 | H15: 0
A16: Costo Operativo Var | B16: 6260801 | C16: 0 | D16: 23550202 | E16: 29811003 | F16: 1317536 | G16: 0 | H16: 31128539
A17: Costo Operativo Fijo | B17: 23654913 | C17: 0 | D17: 59864891 | E17: 83519804 | F17: 7571157 | G17: 0 | H17: 91090961
A18: TOTAL OPERATIVO | B18: 29915714 | C18: 0 | D18: 83415093 | E18: 113330807 | F18: 8888693 | G18: 0 | H18: 122219500
A19: NO OPERATIVO | B19: 0 | C19: 0 | D19: 0 | E19: 0 | F19: 0 | G19: 0 | H19: 0
A20: COMERCIALIZACION | B20: 0 | C20: 0 | D20: 0 | E20: 0 | F20: 0 | G20: 0 | H20: 0
A21: Comercial Propios | B21: 41030708 | C21: 0 | D21: 69248379 | E21: 110279087 | F21: 4893279 | G21: 0 | H21: 115172366
A22: Comercial Asignados | B22: 10989455 | C22: 0 | D22: 16116953 | E22: 27106408 | F22: 1679942 | G22: 0 | H22: 28786350
A23: Comercialización Upas | B23: 0 | C23: 0 | D23: 0 | E23: 0 | F23: 0 | G23: 0 | H23: 0
A24: TOTAL COMERCIALIZACION | B24: 52020163 | C24: 0 | D24: 85365332 | E24: 137385495 | F24: 6573221 | G24: 0 | H24: 143958716
A25: ADMINISTRACION | B25: 0 | C25: 0 | D25: 0 | E25: 0 | F25: 0 | G25: 0 | H25: 0
A26: Administración Propios | B26: 6896007 | C26: 0 | D26: 11638535 | E26: 18534542 | F26: 822411 | G26: 0 | H26: 19356953
A27: Administ. Asignados | B27: 17577140 | C27: 0 | D27: 25778344 | E27: 43355484 | F27: 2686992 | G27: 0 | H27: 46042476
A28: Gastos Fiscales | B28: 6589036 | C28: 0 | D28: 9663372 | E28: 16252408 | F28: 1007257 | G28: 0 | H28: 17259665
A29: TOTAL ADMINISTRACION | B29: 31062183 | C29: 0 | D29: 47080251 | E29: 78142434 | F29: 4516660 | G29: 0 | H29: 82659094
A30: TOTAL NO OPERATIVO | B30: 83082346 | C30: 0 | D30: 132445583 | E30: 215527929 | F30: 11089881 | G30: 0 | H30: 226617810
A31: COSTO DE EXPLOTACION | B31: 112998060 | C31: 0 | D31: 215860676 | E31: 328858736 | F31: 19978574 | G31: 0 | H31: 348837310
A32: RESULTADO DE EXPLOTACION | B32: 14790089 | C32: 0 | D32: -28448682 | E32: -13658593 | F32: -443782 | G32: 0 | H32: -14102375
A33: DIVERSOS Y EXTRAORDINARIOS | B33: 0 | C33: 0 | D33: 0 | E33: 0 | F33: 0 | G33: 0 | H33: 0
A34: Ingresos Div. y Extr | B34: 2044213 | C34: 0 | D34: 2998008 | E34: 5042221 | F34: 312497 | G34: 0 | H34: 5354718
A35: Gtos. Div. y Extraor | B35: 315277 | C35: 0 | D35: 462381 | E35: 777658 | F35: 48196 | G35: 0 | H35: 825854
A36: RESULTADOS DIV. Y EXTRAORDINARIOS | B36: 1728936 | C36: 0 | D36: 2535627 | E36: 4264563 | F36: 264301 | G36: 0 | H36: 4528864
A37: FINANCIEROS | B37: 0 | C37: 0 | D37: 0 | E37: 0 | F37: 0 | G37: 0 | H37: 0
A38: Ingresos Financieros | B38: 4372254 | C38: 0 | D38: 6412276 | E38: 10784530 | F38: 668380 | G38: 0 | H38: 11452910
A39: Gastos Financieros | B39: 20455989 | C39: 0 | D39: 30000417 | E39: 50456406 | F39: 3127078 | G39: 0 | H39: 53583484
A40: RESULTADO FINANCIERO | B40: -16083735 | C40: 0 | D40: -23588141 | E40: -39671876 | F40: -2458698 | G40: 0 | H40: -42130574
A41: I.R.A.E. | B41: -15026196 | C41: 0 | D41: -22037171 | E41: -37063367 | F41: -2297033 | H41: -39360400
A42: RESULTADO NETO | B42: 15461486 | C42: 0 | D42: -27464025 | E42: -12002539 | F42: -341146 | G42: 0 | H42: -12343685

Sheet B-SAT-403
A3: S I S T E M A A T L A N T I D A
C5: C O S T O S T O T A L E S
B9: C O N C E P T O | C9: C O S T O S O P E R A T I V O S
C12: AGUA | D12: ALCANTARILLADO | E12: TOTAL
B14: RETRIBUCIONES AL PERSONAL | C14: 25574557.92 | D14: 3841367.332 | E14: 29415925.25
B16: MATERIALES Y SUMINISTROS | C16: 13050396.27 | D16: 126631.1551 | E16: 13177027.43
B18: ENERGIA Y FLUÍDOS | C18: 13148846.56 | D18: 262252.4499 | E18: 13411099.01
B20: SERVICIOS CONTRATADOS | C20: 9084797.224 | D20: 1404742.348 | E20: 10489539.57
B22: GASTOS VARIOS | C22: 6840788.631 | D22: 133147.0467 | E22: 6973935.678
B24: AMORTIZACIÓN | C24: 45631420.39 | D24: 3120552.668 | E24: 48751973.06
B27: TOTAL | C27: 113330807 | D27: 8888693 | E27: 122219500 | G27: 0.4760275061
B32: C O N C E P T O | C32: C O S T O D E A D M I N I S T R A T I V O - C O M E R C I A L
C35: COMERCIALIZACION | D35: ADMINISTRACION | E35: TOTAL
B37: RETRIBUCIONES AL PERSONAL | C37: 47108576.92 | D37: 9391073.648 | E37: 56499650.57
B39: MATERIALES Y SUMINISTROS | C39: 9154120.726 | D39: 321352.371 | E39: 9475473.097
B41: ENERGIA Y FLUÍDOS | C41: 209232.1928 | D41: 2522993.789 | E41: 2732225.982
B43: SERVICIOS CONTRATADOS | C43: 39742883.98 | D43: 3608695.566 | E43: 43351579.55
B45: GASTOS VARIOS | C45: 14055630.94 | D45: 1543318.301 | E45: 15598949.24
B47: AMORTIZACIÓN | C47: 4901921.241 | D47: 1969519.325 | E47: 6871440.565
B51: TOTAL | C51: 115172366 | D51: 19356953 | E51: 134529319 | G51: 0.5239724939
A56: C O S T O D E E X P L O T A C I O N | G56: 256748819
G60: 0

Sheet C-SAT-403
A3: COBERTURAS,COSTOS E INGRESOS PROMEDIO
A5: S I S T E M A A T L A N T I D A
B9: 1. COMPOSICION DEL COSTO PROPIO POR CONEXIÓN | C9: OPERATIVOS | D9: 0 | E9: ADMISTRATIVO-COMERCIAL
C11: AGUA | D11: ALCANTARILLADO
C12: ($/conex.agua) | D12: ($/conex.desague) | E12: ($/conex.agua)
B14: RETRIBUCIONES AL PERSONAL | C14: =ROUND(+'B-SAT-403'!C14/'C-SAT-403'!$C$31,2) -> 409.97 | D14: =+'B-SAT-403'!D14/'C-SAT-403'!$D$31 -> 694.0139715 | E14: =ROUND((+'B-SAT-403'!C37+'B-SAT-403'!D37)/$C$31,2) -> 905.7
B16: MATERIALES Y SUMINISTROS | C16: =ROUND(+'B-SAT-403'!C16/'C-SAT-403'!$C$31,2) -> 209.2 | D16: =+'B-SAT-403'!D16/'C-SAT-403'!$D$31 -> 22.87825747 | E16: =ROUND((+'B-SAT-403'!C39+'B-SAT-403'!D39)/$C$31,2) -> 151.89
B18: ENERGIA Y FLUÍDOS | C18: =ROUND(+'B-SAT-403'!C18/'C-SAT-403'!$C$31,2) -> 210.78 | D18: =+'B-SAT-403'!D18/'C-SAT-403'!$D$31 -> 47.38074976 | E18: =ROUND((+'B-SAT-403'!C41+'B-SAT-403'!D41)/$C$31,2) -> 43.8
B20: SERVICIOS CONTRATADOS | C20: =ROUND(+'B-SAT-403'!C20/'C-SAT-403'!$C$31,2) -> 145.63 | D20: =+'B-SAT-403'!D20/'C-SAT-403'!$D$31 -> 253.7926556 | E20: =ROUND((+'B-SAT-403'!C43+'B-SAT-403'!D43)/$C$31,2) -> 694.94
B22: GASTOS VARIOS | C22: =ROUND(+'B-SAT-403'!C22/'C-SAT-403'!$C$31,2) -> 109.66 | D22: =+'B-SAT-403'!D22/'C-SAT-403'!$D$31 -> 24.05547366 | E22: =ROUND((+'B-SAT-403'!C45+'B-SAT-403'!D45)/$C$31,2) -> 250.06
B24: AMORTIZACIÓN | C24: =ROUND(+'B-SAT-403'!C24/'C-SAT-403'!$C$31,2) -> 731.48 | D24: =+'B-SAT-403'!D24/'C-SAT-403'!$D$31 -> 563.7854865 | E24: =ROUND((+'B-SAT-403'!C47+'B-SAT-403'!D47)/$C$31,2) -> 110.15
B28: TOTAL | C28: =+SUM(C14:C24) -> 1816.72 | D28: =+SUM(D14:D24) -> 1605.906594 | E28: =+SUM(E14:E24) -> 2156.54
B31: 2.CONEXIONES (promedio anual) | C31: =+'[5]CONEX-ERE'!$K$8 -> 62382 | D31: =+'[5]CONEX-ERE'!$J$8 -> 5535
B34: 3.COBERTURAS COSTO/INGRESO
B36: 3.1 COSTO DE EXPLOTACION/ INGRESO DE EXPLOT. | C36: =ROUND(+'A-SAT-403'!E31/(('A-SAT-403'!E13)),2) -> 1.04 | D36: =ROUND(+'A-SAT-403'!F31/('A-SAT-403'!F13),2) -> 1.02 | E36: 0
B38: 3.3 TOTAL | C38: =ROUND(+('A-SAT-403'!E31+'A-SAT-403'!E35+'A-SAT-403'!E39+'A-SAT-403'!E41)/((+'A-SAT-403'!E13+'A-SAT-403'!E34+'A-SAT-403'!E38)),2) -> 1.04 | D38: =ROUND(+('A-SAT-403'!F31+'A-SAT-403'!F35+'A-SAT-403'!F39+'A-SAT-403'!F41)/((+'A-SAT-403'!F13+'A-SAT-403'!F34+'A-SAT-403'!F38)),2) -> 1.02
B41: 4.M3 ELEVADOS | C41: =+'[5]metros elevados-facturados'!$G$62+'[5]metros elevados-facturados'!$G$68 -> 12121740
B43: 5.M3 FACTURADOS | C43: =+'[5]metros elevados-facturados'!$H$62+'[5]metros elevados-facturados'!$H$68 -> 6232860
B46: 6. COSTO PROMEDIO
B48: 6.1 COSTO VARIABLE/ M3ELEVADOS | C48: =+ROUND((+'A-SAT-403'!E16/'C-SAT-403'!C41),2) -> 2.46
B50: 6.2 COSTO VARIABLE / M3FACTURADOS | C50: =+ROUND((+'A-SAT-403'!E16/'C-SAT-403'!C43),2) -> 4.78
B52: 6.3 COSTO EXPLOTACION/M3FACT | C52: =ROUND((+'A-SAT-403'!E31/'C-SAT-403'!C43),2) -> 52.76
B54: 6.4 TOTAL/M3FACT | C54: =ROUND((+'A-SAT-403'!E31+'A-SAT-403'!E35+'A-SAT-403'!E39+'A-SAT-403'!E41)/C43,2) -> 55.04
B57: 7. INGRESOS PROMEDIO
B59: 7.1 VARIABLE/M3 FACT | C59: =ROUND((+'A-SAT-403'!E7)/('C-SAT-403'!C43),2) -> 27.41
B61: 7.2 FIJO/CONEXIONES | C61: =ROUND((+'A-SAT-403'!E8/12)/'C-SAT-403'!C31,2) -> 162.44
B63: 7.3 INGRESO EXPLOTACION/M3FACT | C63: =ROUND((+'A-SAT-403'!E13)/'C-SAT-403'!C43,2) -> 50.57
B65: 7.4 TOTAL/M3FACT | C65: =ROUND(((+'A-SAT-403'!E13+'A-SAT-403'!E34+'A-SAT-403'!E38))/C43,2) -> 53.11

Sheet A-CC-404
A2: CIUDAD DE LA COSTA | B2: ESTADO DE RENDIMIENTO ECONÓMICO (a valores históricos) | G2: PERÍODO ENERO-DICIEMBRE-2014
A4: CONCEPTO | B4: AGUA POTABLE
B5: USINA | C5: PERFORACIÓN | D5: MIXTO | E5: SUB-TOTAL | F5: SANEAMIENTO | G5: OTROS INGRESOS | H5: TOTAL
A6: INGRESOS | B6: 0 | C6: 0 | D6: 0 | E6: 0 | F6: 0 | G6: 0 | H6: 0
A7: Ingresos Variables | B7: 180395284 | C7: 0 | D7: 0 | E7: 180395284 | H7: 180395284
A8: Ingresos Fijos | B8: 92213274 | C8: 0 | D8: 0 | E8: 92213274 | H8: 92213274
A9: INGRESOS DE EXPLOTACION | B9: 272608558 | C9: 0 | D9: 0 | E9: 272608558 | H9: 272608558
A10: Ingresos Alcantarillado | F10: 13418908 | H10: 13418908
A11: Ingresos Upas | G11: 0 | H11: 0
A12: Otros Ingresos | B12: 20166015 | C12: 0 | D12: 0 | E12: 20166015 | F12: 705661 | G12: 0 | H12: 20871676
A13: TOTAL ING. DE EXPLOTACION | B13: 292774573 | C13: 0 | D13: 0 | E13: 292774573 | F13: 14124569 | G13: 0 | H13: 306899142
A14: COSTOS DE EXPLOTACION | B14: 0 | C14: 0 | D14: 0 | E14: 0 | F14: 0 | G14: 0 | H14: 0
A15: OPERATIVO | B15: 0 | C15: 0 | D15: 0 | E15: 0 | F15: 0 | G15: 0 | H15: 0
A16: Costo Operativo Var | B16: 1395194 | C16: 0 | D16: 0 | E16: 1395194 | F16: 2716556 | G16: 0 | H16: 4111750
A17: Costo Operativo Fijo | B17: 27068627 | C17: 0 | D17: 0 | E17: 27068627 | F17: 25809709 | G17: 0 | H17: 52878336
A18: TOTAL OPERATIVO | B18: 28463821 | C18: 0 | D18: 0 | E18: 28463821 | F18: 28526265 | G18: 0 | H18: 56990086
A19: NO OPERATIVO | B19: 0 | C19: 0 | D19: 0 | E19: 0 | F19: 0 | G19: 0 | H19: 0
A20: COMERCIALIZACION | B20: 0 | C20: 0 | D20: 0 | E20: 0 | F20: 0 | G20: 0 | H20: 0
A21: Comercial Propios | B21: 63384275 | C21: 0 | D21: 0 | E21: 63384275 | F21: 1927199 | G21: 0 | H21: 65311474
A22: Comercial Asignados | B22: 25177866 | C22: 0 | D22: 0 | E22: 25177866 | F22: 1214677 | G22: 0 | H22: 26392543
A23: Comercialización Upas | B23: 0 | C23: 0 | D23: 0 | E23: 0 | F23: 0 | G23: 0 | H23: 0
A24: TOTAL COMERCIALIZACION | B24: 88562141 | C24: 0 | D24: 0 | E24: 88562141 | F24: 3141876 | G24: 0 | H24: 91704017
A25: ADMINISTRACION | B25: 0 | C25: 0 | D25: 0 | E25: 0 | F25: 0 | G25: 0 | H25: 0
A26: Administración Propios | B26: 25995023 | C26: 0 | D26: 0 | E26: 25995023 | F26: 790379 | G26: 0 | H26: 26785402
A27: Administ. Asignados | B27: 40270867 | C27: 0 | D27: 0 | E27: 40270867 | F27: 1942821 | G27: 0 | H27: 42213688
A28: Gastos Fiscales | B28: 15096096 | C28: 0 | D28: 0 | E28: 15096096 | F28: 728294 | G28: 0 | H28: 15824390
A29: TOTAL ADMINISTRACION | B29: 81361986 | C29: 0 | D29: 0 | E29: 81361986 | F29: 3461494 | G29: 0 | H29: 84823480
A30: TOTAL NO OPERATIVO | B30: 169924127 | C30: 0 | D30: 0 | E30: 169924127 | F30: 6603370 | G30: 0 | H30: 176527497
A31: COSTO DE EXPLOTACION | B31: 198387948 | C31: 0 | D31: 0 | E31: 198387948 | F31: 35129635 | G31: 0 | H31: 233517583
A32: RESULTADO DE EXPLOTACION | B32: 94386625 | C32: 0 | D32: 0 | E32: 94386625 | F32: -21005066 | G32: 0 | H32: 73381559
A33: DIVERSOS Y EXTRAORDINARIOS | B33: 0 | C33: 0 | D33: 0 | E33: 0 | F33: 0 | G33: 0 | H33: 0
A34: Ingresos Div. y Extr | B34: 4683482 | C34: 0 | D34: 0 | E34: 4683482 | F34: 225949 | G34: 0 | H34: 4909431
A35: Gtos. Div. y Extraor | B35: 722330 | C35: 0 | D35: 0 | E35: 722330 | F35: 34848 | G35: 0 | H35: 757178
A36: RESULTADOS DIV. Y EXTRAORDINARIOS | B36: 3961152 | C36: 0 | D36: 0 | E36: 3961152 | F36: 191101 | G36: 0 | H36: 4152253
A37: FINANCIEROS | B37: 0 | C37: 0 | D37: 0 | E37: 0 | F37: 0 | G37: 0 | H37: 0
A38: Ingresos Financieros | B38: 10017242 | C38: 0 | D38: 0 | E38: 10017242 | F38: 483270 | G38: 0 | H38: 10500512
A39: Gastos Financieros | B39: 46866580 | C39: 0 | D39: 0 | E39: 46866580 | F39: 2261024 | G39: 0 | H39: 49127604
A40: RESULTADO FINANCIERO | B40: -36849338 | C40: 0 | D40: 0 | E40: -36849338 | F40: -1777754 | G40: 0 | H40: -38627092
A41: I.R.A.E. | B41: -34426417 | C41: 0 | D41: 0 | E41: -34426417 | F41: -1660862 | H41: -36087279
A42: RESULTADO NETO | B42: 95924856 | C42: 0 | D42: 0 | E42: 95924856 | F42: -20930857 | G42: 0 | H42: 74993999

Sheet B-CC-404
A3: C I U D A D D E L A C O S T A
C5: C O S T O S T O T A L E S
B9: C O N C E P T O | C9: C O S T O S O P E R A T I V O S
C12: AGUA | D12: ALCANTARILLADO | E12: TOTAL
B14: RETRIBUCIONES AL PERSONAL | C14: 2233738.104 | D14: 747432.0303 | E14: 2981170.135
B16: MATERIALES Y SUMINISTROS | C16: 169841.1215 | D16: 72579.64448 | E16: 242420.7659
B18: ENERGIA Y FLUÍDOS | C18: 1130093.261 | D18: 2538718.463 | E18: 3668811.724
B20: SERVICIOS CONTRATADOS | C20: 3324759.805 | D20: 9333138.067 | E20: 12657897.87
B22: GASTOS VARIOS | C22: 439209.9596 | D22: 461867.7869 | E22: 901077.7465
B24: AMORTIZACIÓN | C24: 21166178.75 | D24: 15372529.01 | E24: 36538707.76
B27: TOTAL | C27: 28463821 | D27: 28526265 | E27: 56990086 | G27: 0.3822606969
B32: C O N C E P T O | C32: C O S T O D E A D M I N I S T R A T I V O - C O M E R C I A L
C35: COMERCIALIZACION | D35: ADMINISTRACION | E35: TOTAL
B37: RETRIBUCIONES AL PERSONAL | C37: 20931760.54 | D37: 11015397.73 | E37: 31947158.26
B39: MATERIALES Y SUMINISTROS | C39: 4325863.661 | D39: 58122.98623 | E39: 4383986.647
B41: ENERGIA Y FLUÍDOS | C41: 81140.75516 | D41: 1509973.452 | E41: 1591114.207
B43: SERVICIOS CONTRATADOS | C43: 27158158.92 | D43: 9196425.434 | E43: 36354584.35
B45: GASTOS VARIOS | C45: 9583659.31 | D45: 1902252.91 | E45: 11485912.22
B47: AMORTIZACIÓN | C47: 3230890.818 | D47: 3103229.49 | E47: 6334120.308
B51: TOTAL | C51: 65311474 | D51: 26785402 | E51: 92096876 | G51: 0.6177393031
A56: C O S T O D E E X P L O T A C I O N | G56: 149086962

Sheet C-CC-404
A3: COBERTURAS,COSTOS E INGRESOS PROMEDIO
A5: C I U D A D D E LA C O S T A
B9: 1. COMPOSICION DEL COSTO PROPIO POR CONEXIÓN | C9: OPERATIVOS | D9: 0 | E9: ADMISTRATIVO-COMERCIAL
C11: AGUA | D11: ALCANTARILLADO
C12: ($/conex.agua) | D12: ($/conex.desague) | E12: ($/conex.agua)
B14: RETRIBUCIONES AL PERSONAL | C14: 52.57 | D14: 289.3658654 | E14: 751.82
B16: MATERIALES Y SUMINISTROS | C16: 4 | D16: 28.09897192 | E16: 103.17
B18: ENERGIA Y FLUÍDOS | C18: 26.59 | D18: 982.8565477 | E18: 37.44
B20: SERVICIOS CONTRATADOS | C20: 78.24 | D20: 3613.29387 | E20: 855.54
B22: GASTOS VARIOS | C22: 10.34 | D22: 178.8106027 | E22: 270.3
B24: AMORTIZACIÓN | C24: 498.11 | D24: 5951.424316 | E24: 149.06
B28: TOTAL | C28: 669.85 | D28: 11043.85017 | E28: 2167.33
B31: 2.CONEXIONES (promedio anual) | C31: 42493 | D31: 2583
B34: 3.COBERTURAS COSTO/INGRESO
B36: 3.1 COSTO DE EXPLOTACION/ INGRESO DE EXPLOT. | C36: 0.68 | D36: 2.49 | E36: 0
B38: 3.3 TOTAL | C38: 0.69 | D38: 2.41
B41: 4.M3 ELEVADOS | C41: 11941390
B43: 5.M3 FACTURADOS | C43: 6352360
B46: 6. COSTO PROMEDIO
B48: 6.1 COSTO VARIABLE/ M3ELEVADOS | C48: 0.12
B50: 6.2 COSTO VARIABLE / M3FACTURADOS | C50: 0.22
B52: 6.3 COSTO EXPLOTACION/M3FACT | C52: 31.23
B54: 6.4 TOTAL/M3FACT | C54: 33.3
B57: 7. INGRESOS PROMEDIO
B59: 7.1 VARIABLE/M3 FACT | C59: 28.4
B61: 7.2 FIJO/CONEXIONES | C61: 180.84
B63: 7.3 INGRESO EXPLOTACION/M3FACT | C63: 46.09
B65: 7.4 TOTAL/M3FACT | C65: 48.4

Sheet A-FDA-405
A2: FLORIDA | B2: ESTADO DE RENDIMIENTO ECONÓMICO (a valores históricos) | G2: PERÍODO ENERO-DICIEMBRE-2014
A4: CONCEPTO | B4: AGUA POTABLE
B5: USINA | C5: PERFORACIÓN | D5: MIXTO | E5: SUB-TOTAL | F5: SANEAMIENTO | G5: OTROS INGRESOS | H5: TOTAL
A6: INGRESOS | B6: 0 | C6: 0 | D6: 0 | E6: 0 | F6: 0 | G6: 0 | H6: 0
A7: Ingresos Variables | B7: =ROUND(+'[6]A-FDA-405'!B3*-1,0) -> 51825959 | C7: =ROUND(+'[6]A-FDA-405'!C3*-1,0) -> 3168470 | D7: =ROUND(+'[6]A-FDA-405'!D3*-1,0) -> 10814214 | E7: =+D7+C7+B7 -> 65808643 | H7: =+E7 -> 65808643
A8: Ingresos Fijos | B8: =ROUND(+'[6]A-FDA-405'!B4*-1,0) -> 27827970 | C8: =ROUND(+'[6]A-FDA-405'!C4*-1,0) -> 2289391 | D8: =ROUND(+'[6]A-FDA-405'!D4*-1,0) -> 7808321 | E8: =+D8+C8+B8 -> 37925682 | H8: =+E8 -> 37925682
A9: INGRESOS DE EXPLOTACION | B9: =+B8+B7 -> 79653929 | C9: =+C8+C7 -> 5457861 | D9: =+D8+D7 -> 18622535 | E9: =+E8+E7 -> 103734325 | H9: =+E9 -> 103734325
A10: Ingresos Alcantarillado | F10: =ROUND(+'[6]A-FDA-405'!F8*-1,0) -> 39163424 | H10: =+F10 -> 39163424
A11: Ingresos Upas | G11: =ROUND(+'[6]A-FDA-405'!G9*-1,0) -> 0 | H11: =+G11 -> 0
A12: Otros Ingresos | B12: =ROUND(+'[6]A-FDA-405'!B10*-1,0) -> 3987279 | C12: =ROUND(+'[6]A-FDA-405'!C10*-1,0) -> 242049 | D12: =ROUND(+'[6]A-FDA-405'!D10*-1,0) -> 829821 | E12: =+D12+C12+B12 -> 5059149 | F12: =ROUND(+'[6]A-FDA-405'!F10*-1,0) -> 28809 | G12: =ROUND(+'[6]A-FDA-405'!G10*-1,0) -> 0 | H12: =+G12+F12+E12 -> 5087958
A13: TOTAL ING. DE EXPLOTACION | B13: =+B12+B9 -> 83641208 | C13: =+C12+C9 -> 5699910 | D13: =+D12+D9 -> 19452356 | E13: =+E12+E9 -> 108793474 | F13: =+F12+F10 -> 39192233 | G13: =+G12+G11 -> 0 | H13: =+H12+H11+H10+H9 -> 147985707
A14: COSTOS DE EXPLOTACION | B14: 0 | C14: 0 | D14: 0 | E14: 0 | F14: 0 | G14: 0 | H14: 0
A15: OPERATIVO | B15: 0 | C15: 0 | D15: 0 | E15: 0 | F15: 0 | G15: 0 | H15: 0
A16: Costo Operativo Var | B16: =ROUND(+'[6]A-FDA-405'!B14,0) -> 21292827 | C16: =ROUND(+'[6]A-FDA-405'!C14,0) -> 2037500 | D16: =ROUND(+'[6]A-FDA-405'!D14,0) -> 4483369 | E16: =+D16+C16+B16 -> 27813696 | F16: =ROUND(+'[6]A-FDA-405'!F14,0) -> 11394065 | G16: 0 | H16: =+F16+E16 -> 39207761
A17: Costo Operativo Fijo | B17: =ROUND(+'[6]A-FDA-405'!B15,0) -> 47335017 | C17: =ROUND(+'[6]A-FDA-405'!C15,0) -> 14740465 | D17: =ROUND(+'[6]A-FDA-405'!D15,0) -> 19642389 | E17: =+D17+C17+B17 -> 81717871 | F17: =ROUND(+'[6]A-FDA-405'!F15,0) -> 47495944 | G17: 0 | H17: =+F17+E17 -> 129213815
A18: TOTAL OPERATIVO | B18: =+B17+B16 -> 68627844 | C18: =+C17+C16 -> 16777965 | D18: =+D17+D16 -> 24125758 | E18: =+E17+E16 -> 109531567 | F18: =+F17+F16 -> 58890009 | G18: 0 | H18: =+H17+H16 -> 168421576
A19: NO OPERATIVO | B19: 0 | C19: 0 | D19: 0 | E19: 0 | F19: 0 | G19: 0 | H19: 0
A20: COMERCIALIZACION | B20: 0 | C20: 0 | D20: 0 | E20: 0 | F20: 0 | G20: 0 | H20: 0
A21: Comercial Propios | B21: =ROUND(+'[6]A-FDA-405'!B19,0) -> 28674057 | C21: =ROUND(+'[6]A-FDA-405'!C19,0) -> 3758834 | D21: =ROUND(+'[6]A-FDA-405'!D19,0) -> 7552751 | E21: =+D21+C21+B21 -> 39985642 | F21: =ROUND(+'[6]A-FDA-405'!F19,0) -> 11999869 | G21: 0 | H21: =+F21+E21 -> 51985511
A22: Comercial Asignados | B22: =ROUND(+'[6]A-FDA-405'!B20,0) -> 7192931 | C22: =ROUND(+'[6]A-FDA-405'!C20,0) -> 490178 | D22: =ROUND(+'[6]A-FDA-405'!D20,0) -> 1672853 | E22: =+D22+C22+B22 -> 9355962 | F22: =ROUND(+'[6]A-FDA-405'!F20,0) -> 3370432 | G22: 0 | H22: =+F22+E22 -> 12726394
A23: Comercialización Upas | B23: 0 | C23: 0 | D23: 0 | E23: 0 | F23: 0 | G23: =ROUND(+'[6]A-FDA-405'!G21,0) -> 0 | H23: =+G23 -> 0
A24: TOTAL COMERCIALIZACION | B24: =+B22+B21 -> 35866988 | C24: =+C22+C21 -> 4249012 | D24: 9225604 | E24: =+E22+E21 -> 49341604 | F24: =+F22+F21 -> 15370301 | G24: =+G23 -> 0 | H24: =+G24+F24+E24 -> 64711905
A25: ADMINISTRACION | B25: 0 | C25: 0 | D25: 0 | E25: 0 | F25: 0 | G25: 0 | H25: 0
A26: Administración Propios | B26: =ROUND(+'[6]A-FDA-405'!B24,0) -> 5442279 | C26: =ROUND(+'[6]A-FDA-405'!C24,0) -> 713419 | D26: =ROUND(+'[6]A-FDA-405'!D24,0) -> 1433497 | E26: =+D26+C26+B26 -> 7589195 | F26: =ROUND(+'[6]A-FDA-405'!F24,0) -> 2277551 | G26: 0 | H26: =+F26+E26 -> 9866746
A27: Administ. Asignados | B27: =ROUND(+'[6]A-FDA-405'!B25,0) -> 11504770 | C27: =ROUND(+'[6]A-FDA-405'!C25,0) -> 784017 | D27: =ROUND(+'[6]A-FDA-405'!D25,0) -> 2675653 | E27: =+D27+C27+B27 -> 14964440 | F27: =ROUND(+'[6]A-FDA-405'!F25,0) -> 5390855 | G27: 0 | H27: =+F27+E27 -> 20355295
A28: Gastos Fiscales | B28: =ROUND(+'[6]A-FDA-405'!B26,0) -> 4312723 | C28: =ROUND(+'[6]A-FDA-405'!C26,0) -> 293900 | D28: =ROUND(+'[6]A-FDA-405'!D26,0) -> 1003006 | E28: 5609629 | F28: =ROUND(+'[6]A-FDA-405'!F26,0) -> 2020837 | G28: 0 | H28: =+F28+E28 -> 7630466
A29: TOTAL ADMINISTRACION | B29: =+B28+B27+B26 -> 21259772 | C29: =+C28+C27+C26 -> 1791336 | D29: =+D28+D27+D26 -> 5112156 | E29: =+E28+E27+E26 -> 28163264 | F29: =+F28+F27+F26 -> 9689243 | G29: 0 | H29: =+E29+F29 -> 37852507
A30: TOTAL NO OPERATIVO | B30: =+B29+B24 -> 57126760 | C30: =+C29+C24 -> 6040348 | D30: 14337760 | E30: =+D30+C30+B30 -> 77504868 | F30: =+F29+F24 -> 25059544 | G30: =ROUND(+'[6]A-FDA-405'!G28,0) -> 0 | H30: =+H29+H24 -> 102564412
A31: COSTO DE EXPLOTACION | B31: =+B30+B18 -> 125754604 | C31: =+C30+C18 -> 22818313 | D31: 38463518 | E31: 187036435 | F31: 83949553 | G31: 0 | H31: 270985988
A32: RESULTADO DE EXPLOTACION | B32: =+B13-B31 -> -42113396 | C32: =+C13-C31 -> -17118403 | D32: -19011162 | E32: -78242961 | F32: -44757320 | G32: 0 | H32: -123000281
A33: DIVERSOS Y EXTRAORDINARIOS | B33: 0 | C33: 0 | D33: 0 | E33: 0 | F33: 0 | G33: 0 | H33: 0
A34: Ingresos Div. y Extr | B34: =ROUND(+'[6]A-FDA-405'!B32*-1,0) -> 1337999 | C34: =ROUND(+'[6]A-FDA-405'!C32*-1,0) -> 91181 | D34: =ROUND(+'[6]A-FDA-405'!D32*-1,0) -> 311177 | E34: =+D34+C34+B34 -> 1740357 | F34: =ROUND(+'[6]A-FDA-405'!F32*-1,0) -> 626954 | G34: 0 | H34: =+F34+E34 -> 2367311
A35: Gtos. Div. y Extraor | B35: =ROUND(+'[6]A-FDA-405'!B33,0) -> 206359 | C35: =ROUND(+'[6]A-FDA-405'!C33,0) -> 14063 | D35: =ROUND(+'[6]A-FDA-405'!D33,0) -> 47993 | E35: =+D35+C35+B35 -> 268415 | F35: =ROUND(+'[6]A-FDA-405'!F33,0) -> 96695 | G35: 0 | H35: =+F35+E35 -> 365110
A36: RESULTADOS DIV. Y EXTRAORDINARIOS | B36: =+B34-B35 -> 1131640 | C36: =+C34-C35 -> 77118 | D36: 263184 | E36: =+E34-E35 -> 1471942 | F36: =+F34-F35 -> 530259 | G36: 0 | H36: =+H34-H35 -> 2002201
A37: FINANCIEROS | B37: 0 | C37: 0 | D37: 0 | E37: 0 | F37: 0 | G37: 0 | H37: 0
A38: Ingresos Financieros | B38: =ROUND(+'[6]A-FDA-405'!B36*-1,0) -> 2861773 | C38: =ROUND(+'[6]A-FDA-405'!C36*-1,0) -> 195022 | D38: =ROUND(+'[6]A-FDA-405'!D36*-1,0) -> 665560 | E38: =+D38+C38+B38 -> 3722355 | F38: =ROUND(+'[6]A-FDA-405'!F36*-1,0) -> 1340957 | G38: 0 | H38: =+F38+E38 -> 5063312
A39: Gastos Financieros | B39: =ROUND(+'[6]A-FDA-405'!B37,0) -> 13389064 | C39: =ROUND(+'[6]A-FDA-405'!C37,0) -> 912426 | D39: =ROUND(+'[6]A-FDA-405'!D37,0) -> 3113882 | E39: =+D39+C39+B39 -> 17415372 | F39: =ROUND(+'[6]A-FDA-405'!F37,0) -> 6273789 | G39: 0 | H39: =+F39+E39 -> 23689161
A40: RESULTADO FINANCIERO | B40: =+B38-B39 -> -10527291 | C40: =+C38-C39 -> -717404 | D40: =+D38-D39 -> -2448322 | E40: -13693017 | F40: -4932832 | G40: 0 | H40: -18625849
A41: I.R.A.E. | B41: =ROUND(+'[6]A-FDA-405'!B39,0) -> -9835100 | C41: =ROUND(+'[6]A-FDA-405'!C39,0) -> -670234 | D41: =ROUND(+'[6]A-FDA-405'!D39,0) -> -2287340 | E41: =+D41+C41+B41 -> -12792674 | F41: =ROUND(+'[6]A-FDA-405'!F39,0) -> -4608488 | H41: =+F41+E41 -> -17401162
A42: RESULTADO NETO | B42: =+B32+B36+B40-B41 -> -41673947 | C42: =+C32+C36+C40-C41 -> -17088455 | D42: =+D32+D36+D40-D41 -> -18908960 | E42: -77671362 | F42: -44551405 | G42: =+G32+G36+G40-G41 -> 0 | H42: =+H32+H36+H40-H41 -> -122222767

Sheet B-FDA-405
A3: F LO R I D A
C5: C O S T O S T O T A L E S
B9: C O N C E P T O | C9: C O S T O S O P E R A T I V O S
C12: AGUA | D12: ALCANTARILLADO | E12: TOTAL
B14: RETRIBUCIONES AL PERSONAL | C14: 52890908.36 | D14: 21105795.37 | E14: 73996703.74
B16: MATERIALES Y SUMINISTROS | C16: 11507514.32 | D16: 3248788.613 | E16: 14756302.93
B18: ENERGIA Y FLUÍDOS | C18: 11004448.88 | D18: 5408130.547 | E18: 16412579.43
B20: SERVICIOS CONTRATADOS | C20: 6841159.931 | D20: 6724589.307 | E20: 13565749.24
B22: GASTOS VARIOS | C22: 3331031.518 | D22: 1249194.464 | E22: 4580225.982
B24: AMORTIZACIÓN | C24: 23956503.98 | D24: 21153510.7 | E24: 45110014.68
B27: TOTAL | C27: 109531567 | D27: 58890009 | E27: 168421576 | G27: 0.7313969364
B32: C O N C E P T O | C32: C O S T O D E A D M I N I S T R A T I V O - C O M E R C I A L
C35: COMERCIALIZACION | D35: ADMINISTRACION | E35: TOTAL
B37: RETRIBUCIONES AL PERSONAL | C37: 26032472.46 | D37: 3126084.688 | E37: 29158557.14
B39: MATERIALES Y SUMINISTROS | C39: 3845830.242 | D39: 199624.5051 | E39: 4045454.747
B41: ENERGIA Y FLUÍDOS | C41: 194466.7971 | D41: 2732266.633 | E41: 2926733.43
B43: SERVICIOS CONTRATADOS | C43: 12005673.13 | D43: 1824848.862 | E43: 13830521.99
B45: GASTOS VARIOS | C45: 7643607.227 | D45: 920957.9137 | E45: 8564565.14
B47: AMORTIZACIÓN | C47: 2263461.149 | D47: 1062963.399 | E47: 3326424.548
B51: TOTAL | C51: 51985511 | D51: 9866746 | E51: 61852257 | G51: 0.2686030636
A56: C O S T O D E E X P L O T A C I O N | G56: 230273833

Sheet C-FDA-405
A3: COBERTURAS,COSTOS E INGRESOS PROMEDIO
A5: F L O R I D A
B9: 1. COMPOSICION DEL COSTO PROPIO POR CONEXIÓN | C9: OPERATIVOS | D9: 0 | E9: ADMISTRATIVO-COMERCIAL
C11: AGUA | D11: ALCANTARILLADO
C12: ($/conex.agua) | D12: ($/conex.desague) | E12: ($/conex.agua)
B14: RETRIBUCIONES AL PERSONAL | C14: 2209.77 | D14: 1469.149058 | E14: 1218.24
B16: MATERIALES Y SUMINISTROS | C16: 480.78 | D16: 226.1442721 | E16: 169.02
B18: ENERGIA Y FLUÍDOS | C18: 459.76 | D18: 376.4534698 | E18: 122.28
B20: SERVICIOS CONTRATADOS | C20: 285.82 | D20: 468.0905824 | E20: 577.84
B22: GASTOS VARIOS | C22: 139.17 | D22: 86.95492578 | E22: 357.83
B24: AMORTIZACIÓN | C24: 1000.9 | D24: 1472.470465 | E24: 138.98
B28: TOTAL | C28: 4576.2 | D28: 4099.262773 | E28: 2584.19
B31: 2.CONEXIONES (promedio anual) | C31: 23935 | D31: 14366
B34: 3.COBERTURAS COSTO/INGRESO
B36: 3.1 COSTO DE EXPLOTACION/ INGRESO DE EXPLOT. | C36: 1.72 | D36: 2.14 | E36: 0
B38: 3.3 TOTAL | C38: 1.68 | D38: 2.08
B41: 4.M3 ELEVADOS | C41: 3526900
B43: 5.M3 FACTURADOS | C43: 2617220
B46: 6. COSTO PROMEDIO
B48: 6.1 COSTO VARIABLE/ M3ELEVADOS | C48: 7.89
B50: 6.2 COSTO VARIABLE / M3FACTURADOS | C50: 10.63
B52: 6.3 COSTO EXPLOTACION/M3FACT | C52: 71.46
B54: 6.4 TOTAL/M3FACT | C54: 73.33
B57: 7. INGRESOS PROMEDIO
B59: 7.1 VARIABLE/M3 FACT | C59: 25.14
B61: 7.2 FIJO/CONEXIONES | C61: 132.04
B63: 7.3 INGRESO EXPLOTACION/M3FACT | C63: 41.57
B65: 7.4 TOTAL/M3FACT | C65: 43.66

Sheet A-DUR-406
A2: DURAZNO | B2: ESTADO DE RENDIMIENTO ECONÓMICO (a valores históricos) | G2: PERÍODO ENERO-DICIEMBRE-2014
A4: CONCEPTO | B4: AGUA POTABLE
B5: USINA | C5: PERFORACIÓN | D5: MIXTO | E5: SUB-TOTAL | F5: SANEAMIENTO | G5: OTROS INGRESOS | H5: TOTAL
A6: INGRESOS | B6: 0 | C6: 0 | D6: 0 | E6: 0 | F6: 0 | G6: 0 | H6: 0
A7: Ingresos Variables | B7: 59485963 | C7: 2801295 | D7: 0 | E7: 62287258 | H7: 62287258
A8: Ingresos Fijos | B8: 30212428 | C8: 1705458 | D8: 0 | E8: 31917886 | H8: 31917886
A9: INGRESOS DE EXPLOTACION | B9: 89698391 | C9: 4506753 | D9: 0 | E9: 94205144 | H9: 94205144
A10: Ingresos Alcantarillado | F10: 33407750 | H10: 33407750
A11: Ingresos Upas | G11: 0 | H11: 0
A12: Otros Ingresos | B12: 4868893 | C12: 215548 | D12: 0 | E12: 5084441 | F12: 0 | G12: 0 | H12: 5084441
A13: TOTAL ING. DE EXPLOTACION | B13: 94567284 | C13: 4722301 | D13: 0 | E13: 99289585 | F13: 33407750 | G13: 0 | H13: 132697335
A14: COSTOS DE EXPLOTACION | B14: 0 | C14: 0 | D14: 0 | E14: 0 | F14: 0 | G14: 0 | H14: 0
A15: OPERATIVO | B15: 0 | C15: 0 | D15: 0 | E15: 0 | F15: 0 | G15: 0 | H15: 0
A16: Costo Operativo Var | B16: 18021765 | C16: 33005 | D16: 0 | E16: 18054770 | F16: 5742853 | G16: 0 | H16: 23797623
A17: Costo Operativo Fijo | B17: 48319957 | C17: 3284829 | D17: 0 | E17: 51604786 | F17: 26349632 | G17: 0 | H17: 77954418
A18: TOTAL OPERATIVO | B18: 66341722 | C18: 3317834 | D18: 0 | E18: 69659556 | F18: 32092485 | G18: 0 | H18: 101752041
A19: NO OPERATIVO | B19: 0 | C19: 0 | D19: 0 | E19: 0 | F19: 0 | G19: 0 | H19: 0
A20: COMERCIALIZACION | B20: 0 | C20: 0 | D20: 0 | E20: 0 | F20: 0 | G20: 0 | H20: 0
A21: Comercial Propios | B21: 33214657 | C21: 2148160 | D21: 0 | E21: 35362817 | F21: 9462586 | G21: 0 | H21: 44825403
A22: Comercial Asignados | B22: 8132545 | C22: 406106 | D22: 0 | E22: 8538651 | F22: 2872981 | G22: 0 | H22: 11411632
A23: Comercialización Upas | B23: 0 | C23: 0 | D23: 0 | E23: 0 | F23: 0 | G23: 0 | H23: 0
A24: TOTAL COMERCIALIZACION | B24: 41347202 | C24: 2554266 | D24: 0 | E24: 43901468 | F24: 12335567 | G24: 0 | H24: 56237035
A25: ADMINISTRACION | B25: 0 | C25: 0 | D25: 0 | E25: 0 | F25: 0 | G25: 0 | H25: 0
A26: Administración Propios | B26: 9329732 | C26: 603401 | D26: 0 | E26: 9933133 | F26: 2657965 | G26: 0 | H26: 12591098
A27: Administ. Asignados | B27: 13007641 | C27: 649548 | D27: 0 | E27: 13657189 | F27: 4595205 | G27: 0 | H27: 18252394
A28: Gastos Fiscales | B28: 4876096 | C28: 243492 | D28: 0 | E28: 5119588 | F28: 1722577 | G28: 0 | H28: 6842165
A29: TOTAL ADMINISTRACION | B29: 27213469 | C29: 1496441 | D29: 0 | E29: 28709910 | F29: 8975747 | G29: 0 | H29: 37685657
A30: TOTAL NO OPERATIVO | B30: 68560671 | C30: 4050707 | D30: 0 | E30: 72611378 | F30: 21311314 | G30: 0 | H30: 93922692
A31: COSTO DE EXPLOTACION | B31: 134902393 | C31: 7368541 | D31: 0 | E31: 142270934 | F31: 53403799 | G31: 0 | H31: 195674733
A32: RESULTADO DE EXPLOTACION | B32: -40335109 | C32: -2646240 | D32: 0 | E32: -42981349 | F32: -19996049 | G32: 0 | H32: -62977398
A33: DIVERSOS Y EXTRAORDINARIOS | B33: 0 | C33: 0 | D33: 0 | E33: 0 | F33: 0 | G33: 0 | H33: 0
A34: Ingresos Div. y Extr | B34: 1512783 | C34: 75542 | D34: 0 | E34: 1588325 | F34: 534420 | G34: 0 | H34: 2122745
A35: Gtos. Div. y Extraor | B35: 233315 | C35: 11651 | D35: 0 | E35: 244966 | F35: 82423 | G35: 0 | H35: 327389
A36: RESULTADOS DIV. Y EXTRAORDINARIOS | B36: 1279468 | C36: 63891 | D36: 0 | E36: 1343359 | F36: 451997 | G36: 0 | H36: 1795356
A37: FINANCIEROS | B37: 0 | C37: 0 | D37: 0 | E37: 0 | F37: 0 | G37: 0 | H37: 0
A38: Ingresos Financieros | B38: 3235607 | C38: 161573 | D38: 0 | E38: 3397180 | F38: 1143042 | G38: 0 | H38: 4540222
A39: Gastos Financieros | B39: 15138081 | C39: 755933 | D39: 0 | E39: 15894014 | F39: 5347824 | G39: 0 | H39: 21241838
A40: RESULTADO FINANCIERO | B40: -11902474 | C40: -594360 | D40: 0 | E40: -12496834 | F40: -4204782 | G40: 0 | H40: -16701616
A41: I.R.A.E. | B41: -11119862 | C41: -555280 | D41: 0 | E41: -11675142 | F41: -3928309 | H41: -15603451
A42: RESULTADO NETO | B42: -39838253 | C42: -2621429 | D42: 0 | E42: -42459682 | F42: -19820525 | G42: 0 | H42: -62280207

Sheet B-DUR-406
A3: D U R A Z N O
C5: C O S T O S T O T A L E S
B9: C O N C E P T O | C9: C O S T O S O P E R A T I V O S
C12: AGUA | D12: ALCANTARILLADO | E12: TOTAL
B14: RETRIBUCIONES AL PERSONAL | C14: 25057571.8 | D14: 7266892.465 | E14: 32324464.27
B16: MATERIALES Y SUMINISTROS | C16: 7184474.317 | D16: 787165.2349 | E16: 7971639.552
B18: ENERGIA Y FLUÍDOS | C18: 8778292.974 | D18: 3887975.406 | E18: 12666268.38
B20: SERVICIOS CONTRATADOS | C20: 3174793.485 | D20: 7137464.908 | E20: 10312258.39
B22: GASTOS VARIOS | C22: 4424099.314 | D22: 663266.345 | E22: 5087365.659
B24: AMORTIZACIÓN | C24: 21040324.11 | D24: 12349720.64 | E24: 33390044.75
B27: TOTAL | C27: 69659556 | D27: 32092485 | E27: 101752041 | G27: 0.6392723067
B32: C O N C E P T O | C32: C O S T O D E A D M I N I S T R A T I V O - C O M E R C I A L
C35: COMERCIALIZACION | D35: ADMINISTRACION | E35: TOTAL
B37: RETRIBUCIONES AL PERSONAL | C37: 25766510.38 | D37: 4206551.422 | E37: 29973061.81
B39: MATERIALES Y SUMINISTROS | C39: 2479844.416 | D39: 248538.9655 | E39: 2728383.382
B41: ENERGIA Y FLUÍDOS | C41: 117076.9461 | D41: 2273126.385 | E41: 2390203.331
B43: SERVICIOS CONTRATADOS | C43: 9092429.983 | D43: 4353206.258 | E43: 13445636.24
B45: GASTOS VARIOS | C45: 5113659.63 | D45: 493485.1784 | E45: 5607144.809
B47: AMORTIZACIÓN | C47: 2255881.641 | D47: 1016189.791 | E47: 3272071.432
B51: TOTAL | C51: 44825403 | D51: 12591098 | E51: 57416501 | G51: 0.3607276933
A56: C O S T O D E E X P L O T A C I O N | G56: 159168542

Sheet C-DUR-406
A3: COBERTURAS,COSTOS E INGRESOS PROMEDIO
A5: D U R A Z N O
B9: 1. COMPOSICION DEL COSTO PROPIO POR CONEXIÓN | C9: OPERATIVOS | D9: 0 | E9: ADMISTRATIVO-COMERCIAL
C11: AGUA | D11: ALCANTARILLADO
C12: ($/conex.agua) | D12: ($/conex.desague) | E12: ($/conex.agua)
B14: RETRIBUCIONES AL PERSONAL | C14: 1220.65 | D14: 661.4684567 | E14: 1460.11
B16: MATERIALES Y SUMINISTROS | C16: 349.98 | D16: 71.65166893 | E16: 132.91
B18: ENERGIA Y FLUÍDOS | C18: 427.63 | D18: 353.9027313 | E18: 116.44
B20: SERVICIOS CONTRATADOS | C20: 154.66 | D20: 649.6873209 | E20: 654.99
B22: GASTOS VARIOS | C22: 215.52 | D22: 60.37377981 | E22: 273.15
B24: AMORTIZACIÓN | C24: 1024.96 | D24: 1124.132591 | E24: 159.4
B28: TOTAL | C28: 3393.4 | D28: 2921.216548 | E28: 2797
B31: 2.CONEXIONES (promedio anual) | C31: 20528 | D31: 10986
B34: 3.COBERTURAS COSTO/INGRESO
B36: 3.1 COSTO DE EXPLOTACION/ INGRESO DE EXPLOT. | C36: 1.43 | D36: 1.6 | E36: 0
B38: 3.3 TOTAL | C38: 1.41 | D38: 1.56
B41: 4.M3 ELEVADOS | C41: 3421640
B43: 5.M3 FACTURADOS | C43: 2319320
B46: 6. COSTO PROMEDIO
B48: 6.1 COSTO VARIABLE/ M3ELEVADOS | C48: 5.28
B50: 6.2 COSTO VARIABLE / M3FACTURADOS | C50: 7.78
B52: 6.3 COSTO EXPLOTACION/M3FACT | C52: 61.34
B54: 6.4 TOTAL/M3FACT | C54: 63.27
B57: 7. INGRESOS PROMEDIO
B59: 7.1 VARIABLE/M3 FACT | C59: 26.86
B61: 7.2 FIJO/CONEXIONES | C61: 129.57
B63: 7.3 INGRESO EXPLOTACION/M3FACT | C63: 42.81
B65: 7.4 TOTAL/M3FACT | C65: 44.96

Sheet A-300-AG-LITORAL SUR
A2: AMBITO GEOGRAFICO LITORAL SUR | B2: ESTADO DE RENDIMIENTO ECONÓMICO (a valores históricos) | G2: PERÍODO ENERO-DICIEMBRE-2014
A4: CONCEPTO | B4: AGUA POTABLE
B5: USINA | C5: PERFORACIÓN | D5: MIXTO | E5: SUB-TOTAL | F5: SANEAMIENTO | G5: OTROS INGRESOS | H5: TOTAL
A6: INGRESOS | B6: 0 | C6: 0 | D6: 0 | E6: 0 | F6: 0 | G6: 0 | H6: 0
A7: Ingresos Variables | B7: 246587945 | C7: 81693298 | D7: 69238102 | E7: 397519345 | H7: 397519345
A8: Ingresos Fijos | B8: 120825423 | C8: 48372860 | D8: 40311632 | E8: 209509915 | H8: 209509915
A9: INGRESOS DE EXPLOTACION | B9: 367413368 | C9: 130066158 | D9: 109549734 | E9: 607029260 | H9: 607029260
A10: Ingresos Alcantarillado | F10: 163508858 | H10: 163508858
A11: Ingresos Upas | G11: 0 | H11: 0
A12: Otros Ingresos | B12: 17261267 | C12: 8731052 | D12: 8104506 | E12: 34096825 | F12: 102615 | G12: 0 | H12: 34199440
A13: TOTAL ING. DE EXPLOTACION | B13: 384674635 | C13: 138797210 | D13: 117654240 | E13: 641126085 | F13: 163611473 | G13: 0 | H13: 804737558
A14: COSTOS DE EXPLOTACION | B14: 0 | C14: 0 | D14: 0 | E14: 0 | F14: 0 | G14: 0 | H14: 0
A15: OPERATIVO | B15: 0 | C15: 0 | D15: 0 | E15: 0 | F15: 0 | G15: 0 | H15: 0
A16: Costo Operativo Var | B16: 78937678 | C16: 19673293 | D16: 24383737 | E16: 122994708 | F16: 16587639 | G16: 0 | H16: 139582347
A17: Costo Operativo Fijo | B17: 139565665 | C17: 67711793 | D17: 47608447 | E17: 254885905 | F17: 93037998 | G17: 0 | H17: 347923903
A18: TOTAL OPERATIVO | B18: 218503343 | C18: 87385086 | D18: 71992184 | E18: 377880613 | F18: 109625637 | G18: 0 | H18: 487506250
A19: NO OPERATIVO | B19: 0 | C19: 0 | D19: 0 | E19: 0 | F19: 0 | G19: 0 | H19: 0
A20: COMERCIALIZACION | B20: 0 | C20: 0 | D20: 0 | E20: 0 | F20: 0 | G20: 0 | H20: 0
A21: Comercial Propios | B21: 81316810 | C21: 34789347 | D21: 28751836 | E21: 144857993 | F21: 28993931 | G21: 0 | H21: 173851924
A22: Comercial Asignados | B22: 33081037 | C22: 11936206 | D22: 10117964 | E22: 55135207 | F22: 14070169 | G22: 0 | H22: 69205376
A23: Comercialización Upas | B23: 0 | C23: 0 | D23: 0 | E23: 0 | F23: 0 | G23: 0 | H23: 0
A24: TOTAL COMERCIALIZACION | B24: 114397847 | C24: 46725553 | D24: 38869800 | E24: 199993200 | F24: 43064100 | G24: 0 | H24: 243057300
A25: ADMINISTRACION | B25: 0 | C25: 0 | D25: 0 | E25: 0 | F25: 0 | G25: 0 | H25: 0
A26: Administración Propios | B26: 27296861 | C26: 10686601 | D26: 9507737 | E26: 47491199 | F26: 9632732 | G26: 0 | H26: 57123931
A27: Administ. Asignados | B27: 52911634 | C27: 19091426 | D27: 16183230 | E27: 88186290 | F27: 22504604 | G27: 0 | H27: 110690894
A28: Gastos Fiscales | B28: 19834664 | C28: 7156687 | D28: 6066510 | E28: 33057861 | F28: 8436165 | G28: 0 | H28: 41494026
A29: TOTAL ADMINISTRACION | B29: 100043159 | C29: 36934714 | D29: 31757477 | E29: 168735350 | F29: 40573501 | G29: 0 | H29: 209308851
A30: TOTAL NO OPERATIVO | B30: 214441006 | C30: 83660267 | D30: 70627277 | E30: 368728550 | F30: 83637601 | G30: 0 | H30: 452366151
A31: COSTO DE EXPLOTACION | B31: 432944349 | C31: 171045353 | D31: 142619461 | E31: 746609163 | F31: 193263238 | G31: 0 | H31: 939872401
A32: RESULTADO DE EXPLOTACION | B32: -48269714 | C32: -32248143 | D32: -24965221 | E32: -105483078 | F32: -29651765 | G32: 0 | H32: -135134843
A33: DIVERSOS Y EXTRAORDINARIOS | B33: 0 | C33: 0 | D33: 0 | E33: 0 | F33: 0 | G33: 0 | H33: 0
A34: Ingresos Div. y Extr | B34: 6153595 | C34: 2220323 | D34: 1882102 | E34: 10256020 | F34: 2617274 | G34: 0 | H34: 12873294
A35: Gtos. Div. y Extraor | B35: 949065 | C35: 342439 | D35: 290275 | E35: 1581779 | F35: 403660 | G35: 0 | H35: 1985439
A36: RESULTADOS DIV. Y EXTRAORDINARIOS | B36: 5204530 | C36: 1877884 | D36: 1591827 | E36: 8674241 | F36: 2213614 | G36: 0 | H36: 10887855
A37: FINANCIEROS | B37: 0 | C37: 0 | D37: 0 | E37: 0 | F37: 0 | G37: 0 | H37: 0
A38: Ingresos Financieros | B38: 13161590 | C38: 4748928 | D38: 4025524 | E38: 21936042 | F38: 5597944 | G38: 0 | H38: 27533986
A39: Gastos Financieros | B39: 61577699 | C39: 22218291 | D39: 18833780 | E39: 102629770 | F39: 26190492 | G39: 0 | H39: 128820262
A40: RESULTADO FINANCIERO | B40: -48416109 | C40: -17469363 | D40: -14808256 | E40: -80693728 | F40: -20592548 | G40: 0 | H40: -101286276
A41: I.R.A.E. | B41: -45232648 | C41: -16320716 | D41: -13834582 | E41: -75387946 | F41: -19238545 | H41: -94626491
A42: RESULTADO NETO | B42: -46248645 | C42: -31518906 | D42: -24347068 | E42: -102114619 | F42: -28792154 | G42: 0 | H42: -130906773

Sheet B-300-AG-LITORAL SUR
A3: AMBITO GEORAFICO LITORAL SUR
C5: C O S T O S T O T A L E S
B9: C O N C E P T O | C9: C O S T O S O P E R A T I V O S
C12: AGUA | D12: ALCANTARILLADO | E12: TOTAL
B14: RETRIBUCIONES AL PERSONAL | C14: 103188716.6 | D14: 15255838.04 | E14: 118444554.6
B16: MATERIALES Y SUMINISTROS | C16: 44944284.69 | D16: 1332760.301 | E16: 46277044.99
B18: ENERGIA Y FLUÍDOS | C18: 53313671.1 | D18: 9509068.46 | E18: 62822739.56
B20: SERVICIOS CONTRATADOS | C20: 42878641.08 | D20: 40978803.91 | E20: 83857444.98
B22: GASTOS VARIOS | C22: 18309197.99 | D22: 1254233.752 | E22: 19563431.74
B24: AMORTIZACIÓN | C24: 115246101.6 | D24: 41294932.54 | E24: 156541034.1
B27: TOTAL | C27: 377880613 | D27: 109625637 | E27: 487506250 | G27: 0.6785224665
B32: C O N C E P T O | C32: C O S T O D E A D M I N I S T R A T I V O - C O M E R C I A L
C35: COMERCIALIZACION | D35: ADMINISTRACION | E35: TOTAL
B37: RETRIBUCIONES AL PERSONAL | C37: 86383198.28 | D37: 35862898.86 | E37: 122246097.1
B39: MATERIALES Y SUMINISTROS | C39: 9025033.282 | D39: 866253.6194 | E39: 9891286.901
B41: ENERGIA Y FLUÍDOS | C41: 567004.7265 | D41: 8574129.715 | E41: 9141134.442
B43: SERVICIOS CONTRATADOS | C43: 50866768.76 | D43: 6750830.063 | E43: 57617598.82
B45: GASTOS VARIOS | C45: 19202639.11 | D45: 2167039.28 | E45: 21369678.39
B47: AMORTIZACIÓN | C47: 7807279.843 | D47: 2902779.464 | E47: 10710059.31
B51: TOTAL | C51: 173851924 | D51: 57123931 | E51: 230975855 | G51: 0.3214775335
A56: C O S T O D E E X P L O T A C I O N | G56: 718482105

Sheet C-300-AG-LITORAL SUR
A3: COBERTURAS,COSTOS E INGRESOS PROMEDIO
A5: A M B I T O G E O G R A F I C O L I T O R A L S U R
B9: 1. COMPOSICION DEL COSTO PROPIO POR CONEXIÓN | C9: OPERATIVOS | D9: 0 | E9: ADMISTRATIVO-COMERCIAL
C11: AGUA | D11: ALCANTARILLADO
C12: ($/conex.agua) | D12: ($/conex.desague) | E12: ($/conex.agua)
B14: RETRIBUCIONES AL PERSONAL | C14: 776.46 | D14: 296.0631497 | E14: 919.86
B16: MATERIALES Y SUMINISTROS | C16: 338.19 | D16: 25.86427644 | E16: 74.43
B18: ENERGIA Y FLUÍDOS | C18: 401.17 | D18: 184.5381913 | E18: 68.78
B20: SERVICIOS CONTRATADOS | C20: 322.65 | D20: 795.2571156 | E20: 433.55
B22: GASTOS VARIOS | C22: 137.77 | D22: 24.34034722 | E22: 160.8
B24: AMORTIZACIÓN | C24: 867.19 | D24: 801.3920809 | E24: 80.59
B28: TOTAL | C28: 2843.43 | D28: 2127.455161 | E28: 1738.01
B31: 2.CONEXIONES (promedio anual) | C31: 132896 | D31: 51529
B34: 3.COBERTURAS COSTO/INGRESO
B36: 3.1 COSTO DE EXPLOTACION/ INGRESO DE EXPLOT. | C36: 1.16 | D36: 1.18 | E36: 0
B38: 3.3 TOTAL | C38: 1.15 | D38: 1.17
B41: 4.M3 ELEVADOS | C41: 24467280
B43: 5.M3 FACTURADOS | C43: 14120980
B46: 6. COSTO PROMEDIO
B48: 6.1 COSTO VARIABLE/ M3ELEVADOS | C48: 5.03
B50: 6.2 COSTO VARIABLE / M3FACTURADOS | C50: 8.71
B52: 6.3 COSTO EXPLOTACION/M3FACT | C52: 52.87
B54: 6.4 TOTAL/M3FACT | C54: 54.91
B57: 7. INGRESOS PROMEDIO
B59: 7.1 VARIABLE/M3 FACT | C59: 28.15
B61: 7.2 FIJO/CONEXIONES | C61: 131.37
B63: 7.3 INGRESO EXPLOTACION/M3FACT | C63: 45.4
B65: 7.4 TOTAL/M3FACT | C65: 47.68

Sheet A-SJ-301
A2: SAN JOSE | B2: ESTADO DE RENDIMIENTO ECONÓMICO (a valores históricos) | G2: PERÍODO ENERO-DICIEMBRE-2014
A4: CONCEPTO | B4: AGUA POTABLE
B5: USINA | C5: PERFORACIÓN | D5: MIXTO | E5: SUB-TOTAL | F5: SANEAMIENTO | G5: OTROS INGRESOS | H5: TOTAL
A6: INGRESOS | B6: 0 | C6: 0 | D6: 0 | E6: 0 | F6: 0 | G6: 0 | H6: 0
A7: Ingresos Variables | B7: 48451350 | C7: 46888526 | D7: 3106627 | E7: 98446503 | H7: 98446503
A8: Ingresos Fijos | B8: 27026860 | C8: 26008118 | D8: 2098060 | E8: 55133038 | H8: 55133038
A9: INGRESOS DE EXPLOTACION | B9: 75478210 | C9: 72896644 | D9: 5204687 | E9: 153579541 | H9: 153579541
A10: Ingresos Alcantarillado | F10: 43281910 | H10: 43281910
A11: Ingresos Upas | G11: 0 | H11: 0
A12: Otros Ingresos | B12: 3598726 | C12: 6362563 | D12: 1484121 | E12: 11445410 | F12: 89780 | G12: 0 | H12: 11535190
A13: TOTAL ING. DE EXPLOTACION | B13: 79076936 | C13: 79259207 | D13: 6688808 | E13: 165024951 | F13: 43371690 | G13: 0 | H13: 208396641
A14: COSTOS DE EXPLOTACION | B14: 0 | C14: 0 | D14: 0 | E14: 0 | F14: 0 | G14: 0 | H14: 0
A15: OPERATIVO | B15: 0 | C15: 0 | D15: 0 | E15: 0 | F15: 0 | G15: 0 | H15: 0
A16: Costo Operativo Var | B16: 19837938 | C16: 10649473 | D16: 1257444 | E16: 31744855 | F16: 7542416 | G16: 0 | H16: 39287271
A17: Costo Operativo Fijo | B17: 35258854 | C17: 38748765 | D17: 6412563 | E17: 80420182 | F17: 46746963 | G17: 0 | H17: 127167145
A18: TOTAL OPERATIVO | B18: 55096792 | C18: 49398238 | D18: 7670007 | E18: 112165037 | F18: 54289379 | G18: 0 | H18: 166454416
A19: NO OPERATIVO | B19: 0 | C19: 0 | D19: 0 | E19: 0 | F19: 0 | G19: 0 | H19: 0
A20: COMERCIALIZACION | B20: 0 | C20: 0 | D20: 0 | E20: 0 | F20: 0 | G20: 0 | H20: 0
A21: Comercial Propios | B21: 15888418 | C21: 19307092 | D21: 1361700 | E21: 36557210 | F21: 7385489 | G21: 0 | H21: 43942699
A22: Comercial Asignados | B22: 6800415 | C22: 6816090 | D22: 575220 | E22: 14191725 | F22: 3729855 | G22: 0 | H22: 17921580
A23: Comercialización Upas | B23: 0 | C23: 0 | D23: 0 | E23: 0 | F23: 0 | G23: 0 | H23: 0
A24: TOTAL COMERCIALIZACION | B24: 22688833 | C24: 26123182 | D24: 1936920 | E24: 50748935 | F24: 11115344 | G24: 0 | H24: 61864279
A25: ADMINISTRACION | B25: 0 | C25: 0 | D25: 0 | E25: 0 | F25: 0 | G25: 0 | H25: 0
A26: Administración Propios | B26: 4641335 | C26: 5640001 | D26: 397781 | E26: 10679117 | F26: 2157454 | G26: 0 | H26: 12836571
A27: Administ. Asignados | B27: 10876958 | C27: 10902029 | D27: 920039 | E27: 22699026 | F27: 5965735 | G27: 0 | H27: 28664761
A28: Gastos Fiscales | B28: 4077380 | C28: 4086778 | D28: 344890 | E28: 8509048 | F28: 2236339 | G28: 0 | H28: 10745387
A29: TOTAL ADMINISTRACION | B29: 19595673 | C29: 20628808 | D29: 1662710 | E29: 41887191 | F29: 10359528 | G29: 0 | H29: 52246719
A30: TOTAL NO OPERATIVO | B30: 42284506 | C30: 46751990 | D30: 3599630 | E30: 92636126 | F30: 21474872 | G30: 0 | H30: 114110998
A31: COSTO DE EXPLOTACION | B31: 97381298 | C31: 96150228 | D31: 11269637 | E31: 204801163 | F31: 75764251 | G31: 0 | H31: 280565414
A32: RESULTADO DE EXPLOTACION | B32: -18304362 | C32: -16891021 | D32: -4580829 | E32: -39776212 | F32: -32392561 | G32: 0 | H32: -72168773
A33: DIVERSOS Y EXTRAORDINARIOS | B33: 0 | C33: 0 | D33: 0 | E33: 0 | F33: 0 | G33: 0 | H33: 0
A34: Ingresos Div. y Extr | B34: 1264985 | C34: 1267900 | D34: 107000 | E34: 2639885 | F34: 693812 | G34: 0 | H34: 3333697
A35: Gtos. Div. y Extraor | B35: 195098 | C35: 195547 | D35: 16503 | E35: 407148 | F35: 107006 | G35: 0 | H35: 514154
A36: RESULTADOS DIV. Y EXTRAORDINARIOS | B36: 1069887 | C36: 1072353 | D36: 90497 | E36: 2232737 | F36: 586806 | G36: 0 | H36: 2819543
A37: FINANCIEROS | B37: 0 | C37: 0 | D37: 0 | E37: 0 | F37: 0 | G37: 0 | H37: 0
A38: Ingresos Financieros | B38: 2705607 | C38: 2711843 | D38: 228857 | E38: 5646307 | F38: 1483957 | G38: 0 | H38: 7130264
A39: Gastos Financieros | B39: 12658427 | C39: 12687604 | D39: 1070727 | E39: 26416758 | F39: 6942826 | G39: 0 | H39: 33359584
A40: RESULTADO FINANCIERO | B40: -9952820 | C40: -9975761 | D40: -841870 | E40: -20770451 | F40: -5458869 | G40: 0 | H40: -26229320
A41: I.R.A.E. | B41: -9298402 | C41: -9319834 | D41: -786515 | E41: -19404751 | F41: -5099937 | H41: -24504688
A42: RESULTADO NETO | B42: -17888893 | C42: -16474595 | D42: -4545687 | E42: -38909175 | F42: -32164687 | G42: 0 | H42: -71073862

Sheet B-SJ-301
A3: S AN J O S E
C5: C O S T O S T O T A L E S
B9: C O N C E P T O | C9: C O S T O S O P E R A T I V O S
C12: AGUA | D12: ALCANTARILLADO | E12: TOTAL
B14: RETRIBUCIONES AL PERSONAL | C14: 25828443.82 | D14: 5548545.468 | E14: 31376989.28
B16: MATERIALES Y SUMINISTROS | C16: 9719162.468 | D16: 387029.7617 | E16: 10106192.23
B18: ENERGIA Y FLUÍDOS | C18: 17421256.64 | D18: 5046418.393 | E18: 22467675.03
B20: SERVICIOS CONTRATADOS | C20: 11144897.34 | D20: 23722987.75 | E20: 34867885.08
B22: GASTOS VARIOS | C22: 3994742.338 | D22: 512837.7065 | E22: 4507580.044
B24: AMORTIZACIÓN | C24: 44056534.4 | D24: 19071559.92 | E24: 63128094.33
B27: TOTAL | C27: 112165037 | D27: 54289379 | E27: 166454416 | G27: 0.7456509767
B32: C O N C E P T O | C32: C O S T O D E A D M I N I S T R A T I V O - C O M E R C I A L
C35: COMERCIALIZACION | D35: ADMINISTRACION | E35: TOTAL
B37: RETRIBUCIONES AL PERSONAL | C37: 17810450.54 | D37: 8244510.291 | E37: 26054960.83
B39: MATERIALES Y SUMINISTROS | C39: 2167154.895 | D39: 214440.385 | E39: 2381595.28
B41: ENERGIA Y FLUÍDOS | C41: 192626.1118 | D41: 1978224.847 | E41: 2170850.959
B43: SERVICIOS CONTRATADOS | C43: 14120833.8 | D43: 989304.8025 | E43: 15110138.61
B45: GASTOS VARIOS | C45: 7298670.338 | D45: 753130.2907 | E45: 8051800.629
B47: AMORTIZACIÓN | C47: 2352963.315 | D47: 656960.3833 | E47: 3009923.698
B51: TOTAL | C51: 43942699 | D51: 12836571 | E51: 56779270 | G51: 0.2543490233
A56: C O S T O D E E X P L O T A C I O N | G56: 223233686

Sheet C-SJ-301
A1: º
A3: COBERTURAS,COSTOS E INGRESOS PROMEDIO
A5: S A N J O S E
B9: 1. COMPOSICION DEL COSTO PROPIO POR CONEXIÓN | C9: OPERATIVOS | D9: 0 | E9: ADMISTRATIVO-COMERCIAL
C11: AGUA | D11: ALCANTARILLADO
C12: ($/conex.agua) | D12: ($/conex.desague) | E12: ($/conex.agua)
B14: RETRIBUCIONES AL PERSONAL | C14: 679.43 | D14: 361.2334289 | E14: 685.39
B16: MATERIALES Y SUMINISTROS | C16: 255.67 | D16: 25.19725011 | E16: 62.65
B18: ENERGIA Y FLUÍDOS | C18: 458.27 | D18: 328.5428641 | E18: 57.11
B20: SERVICIOS CONTRATADOS | C20: 293.17 | D20: 1544.465348 | E20: 397.48
B22: GASTOS VARIOS | C22: 105.08 | D22: 33.38787152 | E22: 211.81
B24: AMORTIZACIÓN | C24: 1158.93 | D24: 1241.638016 | E24: 79.18
B28: TOTAL | C28: 2950.55 | D28: 3534.464779 | E28: 1493.62
B31: 2.CONEXIONES (promedio anual) | C31: 38015 | D31: 15360
B34: 3.COBERTURAS COSTO/INGRESO
B36: 3.1 COSTO DE EXPLOTACION/ INGRESO DE EXPLOT. | C36: 1.24 | D36: 1.75 | E36: 0
B38: 3.3 TOTAL | C38: 1.22 | D38: 1.71
B41: 4.M3 ELEVADOS | C41: 7743110
B43: 5.M3 FACTURADOS | C43: 3676350
B46: 6. COSTO PROMEDIO
B48: 6.1 COSTO VARIABLE/ M3ELEVADOS | C48: 4.1
B50: 6.2 COSTO VARIABLE / M3FACTURADOS | C50: 8.63
B52: 6.3 COSTO EXPLOTACION/M3FACT | C52: 55.71
B54: 6.4 TOTAL/M3FACT | C54: 57.73
B57: 7. INGRESOS PROMEDIO
B59: 7.1 VARIABLE/M3 FACT | C59: 26.78
B61: 7.2 FIJO/CONEXIONES | C61: 120.86
B63: 7.3 INGRESO EXPLOTACION/M3FACT | C63: 44.89
B65: 7.4 TOTAL/M3FACT | C65: 47.14

Sheet A-COL-302
A2: COLONIA | B2: ESTADO DE RENDIMIENTO ECONÓMICO (a valores históricos) | G2: PERÍODO ENERO-DICIEMBRE-2014
A4: CONCEPTO | B4: AGUA POTABLE
B5: USINA | C5: PERFORACIÓN | D5: MIXTO | E5: SUB-TOTAL | F5: SANEAMIENTO | G5: OTROS INGRESOS | H5: TOTAL
A6: INGRESOS | B6: 0 | C6: 0 | D6: 0 | E6: 0 | F6: 0 | G6: 0 | H6: 0
A7: Ingresos Variables | B7: 111058102 | C7: 20413350 | D7: 43182079 | E7: 174653531 | H7: 174653531
A8: Ingresos Fijos | B8: 49340848 | C8: 12892879 | D8: 23870131 | E8: 86103858 | H8: 86103858
A9: INGRESOS DE EXPLOTACION | B9: 160398950 | C9: 33306229 | D9: 67052210 | E9: 260757389 | H9: 260757389
A10: Ingresos Alcantarillado | F10: 48547296 | H10: 48547296
A11: Ingresos Upas | G11: 0 | H11: 0
A12: Otros Ingresos | B12: 8095479 | C12: 1588195 | D12: 4557239 | E12: 14240913 | F12: 8842 | G12: 0 | H12: 14249755
A13: TOTAL ING. DE EXPLOTACION | B13: 168494429 | C13: 34894424 | D13: 71609449 | E13: 274998302 | F13: 48556138 | G13: 0 | H13: 323554440
A14: COSTOS DE EXPLOTACION | B14: 0 | C14: 0 | D14: 0 | E14: 0 | F14: 0 | G14: 0 | H14: 0
A15: OPERATIVO | B15: 0 | C15: 0 | D15: 0 | E15: 0 | F15: 0 | G15: 0 | H15: 0
A16: Costo Operativo Var | B16: 26092295 | C16: 4384864 | D16: 15165975 | E16: 45643134 | F16: 3209788 | G16: 0 | H16: 48852922
A17: Costo Operativo Fijo | B17: 51009768 | C17: 9813888 | D17: 22779297 | E17: 83602953 | F17: 12381627 | G17: 0 | H17: 95984580
A18: TOTAL OPERATIVO | B18: 77102063 | C18: 14198752 | D18: 37945272 | E18: 129246087 | F18: 15591415 | G18: 0 | H18: 144837502
A19: NO OPERATIVO | B19: 0 | C19: 0 | D19: 0 | E19: 0 | F19: 0 | G19: 0 | H19: 0
A20: COMERCIALIZACION | B20: 0 | C20: 0 | D20: 0 | E20: 0 | F20: 0 | G20: 0 | H20: 0
A21: Comercial Propios | B21: 31352677 | C21: 8909809 | D21: 17178922 | E21: 57441408 | F21: 7110849 | G21: 0 | H21: 64552257
A22: Comercial Asignados | B22: 14490091 | C22: 3000831 | D22: 6158230 | E22: 23649152 | F22: 4175704 | G22: 0 | H22: 27824856
A23: Comercialización Upas | B23: 0 | C23: 0 | D23: 0 | E23: 0 | F23: 0 | G23: 0 | H23: 0
A24: TOTAL COMERCIALIZACION | B24: 45842768 | C24: 11910640 | D24: 23337152 | E24: 81090560 | F24: 11286553 | G24: 0 | H24: 92377113
A25: ADMINISTRACION | B25: 0 | C25: 0 | D25: 0 | E25: 0 | F25: 0 | G25: 0 | H25: 0
A26: Administración Propios | B26: 10857992 | C26: 3085626 | D26: 5949368 | E26: 19892986 | F26: 2462614 | G26: 0 | H26: 22355600
A27: Administ. Asignados | B27: 23176250 | C27: 4799695 | D27: 9849812 | E27: 37825757 | F27: 6678851 | G27: 0 | H27: 44504608
A28: Gastos Fiscales | B28: 8687941 | C28: 1799233 | D28: 3692340 | E28: 14179514 | F28: 2503661 | G28: 0 | H28: 16683175
A29: TOTAL ADMINISTRACION | B29: 42722183 | C29: 9684554 | D29: 19491520 | E29: 71898257 | F29: 11645126 | G29: 0 | H29: 83543383
A30: TOTAL NO OPERATIVO | B30: 88564951 | C30: 21595194 | D30: 42828672 | E30: 152988817 | F30: 22931679 | G30: 0 | H30: 175920496
A31: COSTO DE EXPLOTACION | B31: 165667014 | C31: 35793946 | D31: 80773944 | E31: 282234904 | F31: 38523094 | G31: 0 | H31: 320757998
A32: RESULTADO DE EXPLOTACION | B32: 2827415 | C32: -899522 | D32: -9164495 | E32: -7236602 | F32: 10033044 | G32: 0 | H32: 2796442
A33: DIVERSOS Y EXTRAORDINARIOS | B33: 0 | C33: 0 | D33: 0 | E33: 0 | F33: 0 | G33: 0 | H33: 0
A34: Ingresos Div. y Extr | B34: 2695386 | C34: 558203 | D34: 1145528 | E34: 4399117 | F34: 776747 | G34: 0 | H34: 5175864
A35: Gtos. Div. y Extraor | B35: 415707 | C35: 86091 | D35: 176674 | E35: 678472 | F35: 119797 | G35: 0 | H35: 798269
A36: RESULTADOS DIV. Y EXTRAORDINARIOS | B36: 2279679 | C36: 472112 | D36: 968854 | E36: 3720645 | F36: 656950 | G36: 0 | H36: 4377595
A37: FINANCIEROS | B37: 0 | C37: 0 | D37: 0 | E37: 0 | F37: 0 | G37: 0 | H37: 0
A38: Ingresos Financieros | B38: 5765014 | C38: 1193908 | D38: 2450108 | E38: 9409030 | F38: 1661342 | G38: 0 | H38: 11070372
A39: Gastos Financieros | B39: 26972143 | C39: 5585807 | D39: 11463051 | E39: 44021001 | F39: 7772738 | G39: 0 | H39: 51793739
A40: RESULTADO FINANCIERO | B40: -21207129 | C40: -4391899 | D40: -9012943 | E40: -34611971 | F40: -6111396 | G40: 0 | H40: -40723367
A41: I.R.A.E. | B41: -19812716 | C41: -4103123 | D41: -8420324 | E41: -32336163 | F41: -5709560 | H41: -38045723
A42: RESULTADO NETO | B42: 3712681 | C42: -716186 | D42: -8788260 | E42: -5791765 | F42: 10288158 | G42: 0 | H42: 4496393

Sheet B-COL-302
A3: C O L O N I A
C5: C O S T O S T O T A L E S
B9: C O N C E P T O | C9: C O S T O S O P E R A T I V O S
C12: AGUA | D12: ALCANTARILLADO | E12: TOTAL
B14: RETRIBUCIONES AL PERSONAL | C14: 33263253.33 | D14: 864220.4256 | E14: 34127473.75
B16: MATERIALES Y SUMINISTROS | C16: 14847728.07 | D16: 389198.5346 | E16: 15236926.6
B18: ENERGIA Y FLUÍDOS | C18: 19074695.63 | D18: 817393.4545 | E18: 19892089.08
B20: SERVICIOS CONTRATADOS | C20: 18244265.69 | D20: 5292669.01 | E20: 23536934.7
B22: GASTOS VARIOS | C22: 6425124.141 | D22: 251764.3788 | E22: 6676888.519
B24: AMORTIZACIÓN | C24: 37391020.15 | D24: 7976169.196 | E24: 45367189.35
B27: TOTAL | C27: 129246087 | D27: 15591415 | E27: 144837502 | G27: 0.6249855558
B32: C O N C E P T O | C32: C O S T O D E A D M I N I S T R A T I V O - C O M E R C I A L
C35: COMERCIALIZACION | D35: ADMINISTRACION | E35: TOTAL
B37: RETRIBUCIONES AL PERSONAL | C37: 32356293.24 | D37: 15483042.39 | E37: 47839335.63
B39: MATERIALES Y SUMINISTROS | C39: 3942797.222 | D39: 388554.8946 | E39: 4331352.117
B41: ENERGIA Y FLUÍDOS | C41: 190116.3732 | D41: 3355653.806 | E41: 3545770.179
B43: SERVICIOS CONTRATADOS | C43: 18364761.35 | D43: 1341487.914 | E43: 19706249.26
B45: GASTOS VARIOS | C45: 7037664.23 | D45: 677070.93 | E45: 7714735.16
B47: AMORTIZACIÓN | C47: 2660624.583 | D47: 1109790.069 | E47: 3770414.652
B51: TOTAL | C51: 64552257 | D51: 22355600 | E51: 86907857 | G51: 0.3750144442
A56: C O S T O D E E X P L O T A C I O N | G56: 231745359

Sheet C-COL-302
A3: COBERTURAS,COSTOS E INGRESOS PROMEDIO
A5: C O L O N I A
B9: 1. COMPOSICION DEL COSTO PROPIO POR CONEXIÓN | C9: OPERATIVOS | D9: 0 | E9: ADMISTRATIVO-COMERCIAL
C11: AGUA | D11: ALCANTARILLADO
C12: ($/conex.agua) | D12: ($/conex.desague) | E12: ($/conex.agua)
B14: RETRIBUCIONES AL PERSONAL | C14: 630.98 | D14: 66.21363972 | E14: 907.47
B16: MATERIALES Y SUMINISTROS | C16: 281.65 | D16: 29.81907253 | E16: 82.16
B18: ENERGIA Y FLUÍDOS | C18: 361.83 | D18: 62.62591591 | E18: 67.26
B20: SERVICIOS CONTRATADOS | C20: 346.08 | D20: 405.50636 | E20: 373.81
B22: GASTOS VARIOS | C22: 121.88 | D22: 19.28933334 | E22: 146.34
B24: AMORTIZACIÓN | C24: 709.28 | D24: 611.1070484 | E24: 71.52
B28: TOTAL | C28: 2451.7 | D28: 1194.56137 | E28: 1648.56
B31: 2.CONEXIONES (promedio anual) | C31: 52717 | D31: 13052
B34: 3.COBERTURAS COSTO/INGRESO
B36: 3.1 COSTO DE EXPLOTACION/ INGRESO DE EXPLOT. | C36: 1.03 | D36: 0.79 | E36: 0
B38: 3.3 TOTAL | C38: 1.02 | D38: 0.8
B41: 4.M3 ELEVADOS | C41: 8407810
B43: 5.M3 FACTURADOS | C43: 5733080
B46: 6. COSTO PROMEDIO
B48: 6.1 COSTO VARIABLE/ M3ELEVADOS | C48: 5.43
B50: 6.2 COSTO VARIABLE / M3FACTURADOS | C50: 7.96
B52: 6.3 COSTO EXPLOTACION/M3FACT | C52: 49.23
B54: 6.4 TOTAL/M3FACT | C54: 51.39
B57: 7. INGRESOS PROMEDIO
B59: 7.1 VARIABLE/M3 FACT | C59: 30.46
B61: 7.2 FIJO/CONEXIONES | C61: 136.11
B63: 7.3 INGRESO EXPLOTACION/M3FACT | C63: 47.97
B65: 7.4 TOTAL/M3FACT | C65: 50.38

Sheet A-FLO-303
A2: FLORES | B2: ESTADO DE RENDIMIENTO ECONÓMICO (a valores históricos) | G2: PERÍODO ENERO-DICIEMBRE-2014
A4: CONCEPTO | B4: AGUA POTABLE
B5: USINA | C5: PERFORACIÓN | D5: MIXTO | E5: SUB-TOTAL | F5: SANEAMIENTO | G5: OTROS INGRESOS | H5: TOTAL
A6: INGRESOS | B6: 0 | C6: 0 | D6: 0 | E6: 0 | F6: 0 | G6: 0 | H6: 0
A7: Ingresos Variables | B7: 30626189 | C7: 0 | D7: 1471937 | E7: 32098126 | H7: 32098126
A8: Ingresos Fijos | B8: 16752525 | C8: 0 | D8: 992812 | E8: 17745337 | H8: 17745337
A9: INGRESOS DE EXPLOTACION | B9: 47378714 | C9: 0 | D9: 2464749 | E9: 49843463 | H9: 49843463
A10: Ingresos Alcantarillado | F10: 22776406 | H10: 22776406
A11: Ingresos Upas | G11: 0 | H11: 0
A12: Otros Ingresos | B12: 1942740 | C12: 0 | D12: 53333 | E12: 1996073 | F12: 1094 | G12: 0 | H12: 1997167
A13: TOTAL ING. DE EXPLOTACION | B13: 49321454 | C13: 0 | D13: 2518082 | E13: 51839536 | F13: 22777500 | G13: 0 | H13: 74617036
A14: COSTOS DE EXPLOTACION | B14: 0 | C14: 0 | D14: 0 | E14: 0 | F14: 0 | G14: 0 | H14: 0
A15: OPERATIVO | B15: 0 | C15: 0 | D15: 0 | E15: 0 | F15: 0 | G15: 0 | H15: 0
A16: Costo Operativo Var | B16: 14116109 | C16: 0 | D16: 342050 | E16: 14458159 | F16: 4138852 | G16: 0 | H16: 18597011
A17: Costo Operativo Fijo | B17: 23624236 | C17: 0 | D17: 2818648 | E17: 26442884 | F17: 18444238 | G17: 0 | H17: 44887122
A18: TOTAL OPERATIVO | B18: 37740345 | C18: 0 | D18: 3160698 | E18: 40901043 | F18: 22583090 | G18: 0 | H18: 63484133
A19: NO OPERATIVO | B19: 0 | C19: 0 | D19: 0 | E19: 0 | F19: 0 | G19: 0 | H19: 0
A20: COMERCIALIZACION | B20: 0 | C20: 0 | D20: 0 | E20: 0 | F20: 0 | G20: 0 | H20: 0
A21: Comercial Propios | B21: 15125801 | C21: 0 | D21: 1056932 | E21: 16182733 | F21: 6373852 | G21: 0 | H21: 22556585
A22: Comercial Asignados | B22: 4241519 | C22: 0 | D22: 216549 | E22: 4458068 | F22: 1958807 | G22: 0 | H22: 6416875
A23: Comercialización Upas | B23: 0 | C23: 0 | D23: 0 | E23: 0 | F23: 0 | G23: 0 | H23: 0
A24: TOTAL COMERCIALIZACION | B24: 19367320 | C24: 0 | D24: 1273481 | E24: 20640801 | F24: 8332659 | G24: 0 | H24: 28973460
A25: ADMINISTRACION | B25: 0 | C25: 0 | D25: 0 | E25: 0 | F25: 0 | G25: 0 | H25: 0
A26: Administración Propios | B26: 6143581 | C26: 0 | D26: 429289 | E26: 6572870 | F26: 2588840 | G26: 0 | H26: 9161710
A27: Administ. Asignados | B27: 6784120 | C27: 0 | D27: 346360 | E27: 7130480 | F27: 3133024 | G27: 0 | H27: 10263504
A28: Gastos Fiscales | B28: 2543122 | C28: 0 | D28: 129838 | E28: 2672960 | F28: 1174458 | G28: 0 | H28: 3847418
A29: TOTAL ADMINISTRACION | B29: 15470823 | C29: 0 | D29: 905487 | E29: 16376310 | F29: 6896322 | G29: 0 | H29: 23272632
A30: TOTAL NO OPERATIVO | B30: 34838143 | C30: 0 | D30: 2178968 | E30: 37017111 | F30: 15228981 | G30: 0 | H30: 52246092
A31: COSTO DE EXPLOTACION | B31: 72578488 | C31: 0 | D31: 5339666 | E31: 77918154 | F31: 37812071 | G31: 0 | H31: 115730225
A32: RESULTADO DE EXPLOTACION | B32: -23257034 | C32: 0 | D32: -2821584 | E32: -26078618 | F32: -15034571 | G32: 0 | H32: -41113189
A33: DIVERSOS Y EXTRAORDINARIOS | B33: 0 | C33: 0 | D33: 0 | E33: 0 | F33: 0 | G33: 0 | H33: 0
A34: Ingresos Div. y Extr | B34: 788989 | C34: 0 | D34: 40282 | E34: 829271 | F34: 364370 | G34: 0 | H34: 1193641
A35: Gtos. Div. y Extraor | B35: 121685 | C35: 0 | D35: 6213 | E35: 127898 | F35: 56196 | G35: 0 | H35: 184094
A36: RESULTADOS DIV. Y EXTRAORDINARIOS | B36: 667304 | C36: 0 | D36: 34069 | E36: 701373 | F36: 308174 | G36: 0 | H36: 1009547
A37: FINANCIEROS | B37: 0 | C37: 0 | D37: 0 | E37: 0 | F37: 0 | G37: 0 | H37: 0
A38: Ingresos Financieros | B38: 1687527 | C38: 0 | D38: 86156 | E38: 1773683 | F38: 779329 | G38: 0 | H38: 2553012
A39: Gastos Financieros | B39: 7895248 | C39: 0 | D39: 403088 | E39: 8298336 | F39: 3646162 | G39: 0 | H39: 11944498
A40: RESULTADO FINANCIERO | B40: -6207721 | C40: 0 | D40: -316932 | E40: -6524653 | F40: -2866833 | G40: 0 | H40: -9391486
A41: I.R.A.E. | B41: -5799551 | C41: 0 | D41: -296093 | E41: -6095644 | F41: -2678333 | H41: -8773977
A42: RESULTADO NETO | B42: -22997900 | C42: 0 | D42: -2808354 | E42: -25806254 | F42: -14914897 | G42: 0 | H42: -40721151

Sheet B-FLO-303
A3: F L O R E S
C5: C O S T O S T O T A L E S
B9: C O N C E P T O | C9: C O S T O S O P E R A T I V O S
C12: AGUA | D12: ALCANTARILLADO | E12: TOTAL
B14: RETRIBUCIONES AL PERSONAL | C14: 13173735.65 | D14: 5610729.126 | E14: 18784464.77
B16: MATERIALES Y SUMINISTROS | C16: 5505467.129 | D16: 324905.2143 | E16: 5830372.344
B18: ENERGIA Y FLUÍDOS | C18: 4748580.662 | D18: 3221940.815 | E18: 7970521.477
B20: SERVICIOS CONTRATADOS | C20: 4979885.943 | D20: 7534066.921 | E20: 12513952.86
B22: GASTOS VARIOS | C22: 2947509.483 | D22: 336090.212 | E22: 3283599.695
B24: AMORTIZACIÓN | C24: 9545864.137 | D24: 5555357.712 | E24: 15101221.85
B27: TOTAL | C27: 40901043 | D27: 22583090 | E27: 63484133 | G27: 0.6668331295
B32: C O N C E P T O | C32: C O S T O D E A D M I N I S T R A T I V O - C O M E R C I A L
C35: COMERCIALIZACION | D35: ADMINISTRACION | E35: TOTAL
B37: RETRIBUCIONES AL PERSONAL | C37: 13293691.63 | D37: 5837441.144 | E37: 19131132.78
B39: MATERIALES Y SUMINISTROS | C39: 1069246.064 | D39: 79512.83216 | E39: 1148758.896
B41: ENERGIA Y FLUÍDOS | C41: 58217.91626 | D41: 979089.2575 | E41: 1037307.174
B43: SERVICIOS CONTRATADOS | C43: 5396268.58 | D43: 1754545.918 | E43: 7150814.498
B45: GASTOS VARIOS | C45: 1815576.009 | D45: 173498.7112 | E45: 1989074.721
B47: AMORTIZACIÓN | C47: 923584.7985 | D47: 337622.1369 | E47: 1261206.935
B51: TOTAL | C51: 22556585 | D51: 9161710 | E51: 31718295 | G51: 0.3331668705
A56: C O S T O D E E X P L O T A C I O N | G56: 95202428

Sheet C-FLO-303
A3: COBERTURAS,COSTOS E INGRESOS PROMEDIO
A5: F L O R E S
B9: 1. COMPOSICION DEL COSTO PROPIO POR CONEXIÓN | C9: OPERATIVOS | D9: 0 | E9: ADMISTRATIVO-COMERCIAL
C11: AGUA | D11: ALCANTARILLADO
C12: ($/conex.agua) | D12: ($/conex.desague) | E12: ($/conex.agua)
B14: RETRIBUCIONES AL PERSONAL | C14: 1250.59 | D14: 676.1543898 | E14: 1816.13
B16: MATERIALES Y SUMINISTROS | C16: 522.64 | D16: 39.1546414 | E16: 109.05
B18: ENERGIA Y FLUÍDOS | C18: 450.79 | D18: 388.2792016 | E18: 98.47
B20: SERVICIOS CONTRATADOS | C20: 472.74 | D20: 907.9376863 | E20: 678.83
B22: GASTOS VARIOS | C22: 279.81 | D22: 40.50255628 | E22: 188.82
B24: AMORTIZACIÓN | C24: 906.2 | D24: 669.4815271 | E24: 119.73
B28: TOTAL | C28: 3882.77 | D28: 2721.510002 | E28: 3011.03
B31: 2.CONEXIONES (promedio anual) | C31: 10534 | D31: 8298
B34: 3.COBERTURAS COSTO/INGRESO
B36: 3.1 COSTO DE EXPLOTACION/ INGRESO DE EXPLOT. | C36: 1.5 | D36: 1.66 | E36: 0
B38: 3.3 TOTAL | C38: 1.47 | D38: 1.62
B41: 4.M3 ELEVADOS | C41: 2120330
B43: 5.M3 FACTURADOS | C43: 1230640
B46: 6. COSTO PROMEDIO
B48: 6.1 COSTO VARIABLE/ M3ELEVADOS | C48: 6.82
B50: 6.2 COSTO VARIABLE / M3FACTURADOS | C50: 11.75
B52: 6.3 COSTO EXPLOTACION/M3FACT | C52: 63.32
B54: 6.4 TOTAL/M3FACT | C54: 65.21
B57: 7. INGRESOS PROMEDIO
B59: 7.1 VARIABLE/M3 FACT | C59: 26.08
B61: 7.2 FIJO/CONEXIONES | C61: 140.38
B63: 7.3 INGRESO EXPLOTACION/M3FACT | C63: 42.12
B65: 7.4 TOTAL/M3FACT | C65: 44.24

Sheet A-SOR-304
A2: SORIANO | B2: ESTADO DE RENDIMIENTO ECONÓMICO (a valores históricos) | G2: PERÍODO ENERO-DICIEMBRE-2014
A4: CONCEPTO | B4: AGUA POTABLE
B5: USINA | C5: PERFORACIÓN | D5: MIXTO | E5: SUB-TOTAL | F5: SANEAMIENTO | G5: OTROS INGRESOS | H5: TOTAL
A6: INGRESOS | B6: 0 | C6: 0 | D6: 0 | E6: 0 | F6: 0 | G6: 0 | H6: 0
A7: Ingresos Variables | B7: 56452304 | C7: 14391422 | D7: 21477460 | E7: 92321186 | H7: 92321186
A8: Ingresos Fijos | B8: 27705189 | C8: 9471862 | D8: 13350628 | E8: 50527679 | H8: 50527679
A9: INGRESOS DE EXPLOTACION | B9: 84157493 | C9: 23863284 | D9: 34828088 | E9: 142848865 | H9: 142848865
A10: Ingresos Alcantarillado | F10: 48903246 | H10: 48903246
A11: Ingresos Upas | G11: 0 | H11: 0
A12: Otros Ingresos | B12: 3624323 | C12: 780294 | D12: 2009813 | E12: 6414430 | F12: 2898 | G12: 0 | H12: 6417328
A13: TOTAL ING. DE EXPLOTACION | B13: 87781816 | C13: 24643578 | D13: 36837901 | E13: 149263295 | F13: 48906144 | G13: 0 | H13: 198169439
A14: COSTOS DE EXPLOTACION | B14: 0 | C14: 0 | D14: 0 | E14: 0 | F14: 0 | G14: 0 | H14: 0
A15: OPERATIVO | B15: 0 | C15: 0 | D15: 0 | E15: 0 | F15: 0 | G15: 0 | H15: 0
A16: Costo Operativo Var | B16: 18891336 | C16: 4638955 | D16: 7618267 | E16: 31148558 | F16: 1696582 | G16: 0 | H16: 32845140
A17: Costo Operativo Fijo | B17: 29672808 | C17: 19149140 | D17: 15597939 | E17: 64419887 | F17: 15465170 | G17: 0 | H17: 79885057
A18: TOTAL OPERATIVO | B18: 48564144 | C18: 23788095 | D18: 23216206 | E18: 95568445 | F18: 17161752 | G18: 0 | H18: 112730197
A19: NO OPERATIVO | B19: 0 | C19: 0 | D19: 0 | E19: 0 | F19: 0 | G19: 0 | H19: 0
A20: COMERCIALIZACION | B20: 0 | C20: 0 | D20: 0 | E20: 0 | F20: 0 | G20: 0 | H20: 0
A21: Comercial Propios | B21: 18949914 | C21: 6572446 | D21: 9154283 | E21: 34676643 | F21: 8123741 | G21: 0 | H21: 42800384
A22: Comercial Asignados | B22: 7549012 | C22: 2119285 | D22: 3167966 | E22: 12836263 | F22: 4205804 | G22: 0 | H22: 17042067
A23: Comercialización Upas | B23: 0 | C23: 0 | D23: 0 | E23: 0 | F23: 0 | G23: 0 | H23: 0
A24: TOTAL COMERCIALIZACION | B24: 26498926 | C24: 8691731 | D24: 12322249 | E24: 47512906 | F24: 12329545 | G24: 0 | H24: 59842451
A25: ADMINISTRACION | B25: 0 | C25: 0 | D25: 0 | E25: 0 | F25: 0 | G25: 0 | H25: 0
A26: Administración Propios | B26: 5653953 | C26: 1960975 | D26: 2731299 | E26: 10346227 | F26: 2423824 | G26: 0 | H26: 12770051
A27: Administ. Asignados | B27: 12074306 | C27: 3389701 | D27: 5067019 | E27: 20531026 | F27: 6726994 | G27: 0 | H27: 27258020
A28: Gastos Fiscales | B28: 4526222 | C28: 1270677 | D28: 1899443 | E28: 7696342 | F28: 2521708 | G28: 0 | H28: 10218050
A29: TOTAL ADMINISTRACION | B29: 22254481 | C29: 6621353 | D29: 9697761 | E29: 38573595 | F29: 11672526 | G29: 0 | H29: 50246121
A30: TOTAL NO OPERATIVO | B30: 48753407 | C30: 15313084 | D30: 22020010 | E30: 86086501 | F30: 24002071 | G30: 0 | H30: 110088572
A31: COSTO DE EXPLOTACION | B31: 97317551 | C31: 39101179 | D31: 45236216 | E31: 181654946 | F31: 41163823 | G31: 0 | H31: 222818769
A32: RESULTADO DE EXPLOTACION | B32: -9535735 | C32: -14457601 | D32: -8398315 | E32: -32391651 | F32: 7742321 | G32: 0 | H32: -24649330
A33: DIVERSOS Y EXTRAORDINARIOS | B33: 0 | C33: 0 | D33: 0 | E33: 0 | F33: 0 | G33: 0 | H33: 0
A34: Ingresos Div. y Extr | B34: 1404235 | C34: 394220 | D34: 589292 | E34: 2387747 | F34: 782346 | G34: 0 | H34: 3170093
A35: Gtos. Div. y Extraor | B35: 216574 | C35: 60800 | D35: 90886 | E35: 368260 | F35: 120661 | G35: 0 | H35: 488921
A36: RESULTADOS DIV. Y EXTRAORDINARIOS | B36: 1187661 | C36: 333420 | D36: 498406 | E36: 2019487 | F36: 661685 | G36: 0 | H36: 2681172
A37: FINANCIEROS | B37: 0 | C37: 0 | D37: 0 | E37: 0 | F37: 0 | G37: 0 | H37: 0
A38: Ingresos Financieros | B38: 3003443 | C38: 843177 | D38: 1260404 | E38: 5107024 | F38: 1673317 | G38: 0 | H38: 6780341
A39: Gastos Financieros | B39: 14051881 | C39: 3944879 | D39: 5896914 | E39: 23893674 | F39: 7828766 | G39: 0 | H39: 31722440
A40: RESULTADO FINANCIERO | B40: -11048438 | C40: -3101702 | D40: -4636510 | E40: -18786650 | F40: -6155449 | G40: 0 | H40: -24942099
A41: I.R.A.E. | B41: -10321980 | C41: -2897759 | D41: -4331650 | E41: -17551389 | F41: -5750716 | H41: -23302105
A42: RESULTADO NETO | B42: -9074532 | C42: -14328124 | D42: -8204769 | E42: -31607425 | F42: 7999273 | G42: 0 | H42: -23608152

Sheet B-SOR-304
A3: S O R I A N O
C5: C O S T O S T O T A L E S
B9: C O N C E P T O | C9: C O S T O S O P E R A T I V O S
C12: AGUA | D12: ALCANTARILLADO | E12: TOTAL
B14: RETRIBUCIONES AL PERSONAL | C14: 30923283.76 | D14: 3232343.02 | E14: 34155626.78
B16: MATERIALES Y SUMINISTROS | C16: 14871927.03 | D16: 231626.7898 | E16: 15103553.81
B18: ENERGIA Y FLUÍDOS | C18: 12069138.18 | D18: 423315.7988 | E18: 12492453.98
B20: SERVICIOS CONTRATADOS | C20: 8509592.109 | D20: 4429080.23 | E20: 12938672.34
B22: GASTOS VARIOS | C22: 4941822.026 | D22: 153541.4547 | E22: 5095363.48
B24: AMORTIZACIÓN | C24: 24252681.9 | D24: 8691844.706 | E24: 32944526.61
B27: TOTAL | C27: 95568445 | D27: 17161752 | E27: 112730197 | G27: 0.6698144604
B32: C O N C E P T O | C32: C O S T O D E A D M I N I S T R A T I V O - C O M E R C I A L
C35: COMERCIALIZACION | D35: ADMINISTRACION | E35: TOTAL
B37: RETRIBUCIONES AL PERSONAL | C37: 22922762.87 | D37: 6297905.037 | E37: 29220667.9
B39: MATERIALES Y SUMINISTROS | C39: 1845835.1 | D39: 183745.5076 | E39: 2029580.608
B41: ENERGIA Y FLUÍDOS | C41: 126044.3253 | D41: 2261161.804 | E41: 2387206.13
B43: SERVICIOS CONTRATADOS | C43: 12984905.03 | D43: 2665491.428 | E43: 15650396.45
B45: GASTOS VARIOS | C45: 3050728.534 | D45: 563339.3481 | E45: 3614067.882
B47: AMORTIZACIÓN | C47: 1870108.147 | D47: 798407.8749 | E47: 2668516.022
B51: TOTAL | C51: 42800384 | D51: 12770051 | E51: 55570435 | G51: 0.3301855396
A56: C O S T O D E E X P L O T A C I O N | G56: 168300632

Sheet C-SOR-304
A3: COBERTURAS,COSTOS E INGRESOS PROMEDIO
A5: S O R I A N O
B9: 1. COMPOSICION DEL COSTO PROPIO POR CONEXIÓN | C9: OPERATIVOS | D9: 0 | E9: ADMISTRATIVO-COMERCIAL
C11: AGUA | D11: ALCANTARILLADO
C12: ($/conex.agua) | D12: ($/conex.desague) | E12: ($/conex.agua)
B14: RETRIBUCIONES AL PERSONAL | C14: 977.66 | D14: 218.1215345 | E14: 923.83
B16: MATERIALES Y SUMINISTROS | C16: 470.18 | D16: 15.63039273 | E16: 64.17
B18: ENERGIA Y FLUÍDOS | C18: 381.57 | D18: 28.5657466 | E18: 75.47
B20: SERVICIOS CONTRATADOS | C20: 269.04 | D20: 298.8784824 | E20: 494.8
B22: GASTOS VARIOS | C22: 156.24 | D22: 10.36112117 | E22: 114.26
B24: AMORTIZACIÓN | C24: 766.76 | D24: 586.5338219 | E24: 84.37
B28: TOTAL | C28: 3021.45 | D28: 1158.091099 | E28: 1756.9
B31: 2.CONEXIONES (promedio anual) | C31: 31630 | D31: 14819
B34: 3.COBERTURAS COSTO/INGRESO
B36: 3.1 COSTO DE EXPLOTACION/ INGRESO DE EXPLOT. | C36: 1.22 | D36: 0.84 | E36: 0
B38: 3.3 TOTAL | C38: 1.2 | D38: 0.84
B41: 4.M3 ELEVADOS | C41: 6196030
B43: 5.M3 FACTURADOS | C43: 3480910
B46: 6. COSTO PROMEDIO
B48: 6.1 COSTO VARIABLE/ M3ELEVADOS | C48: 5.03
B50: 6.2 COSTO VARIABLE / M3FACTURADOS | C50: 8.95
B52: 6.3 COSTO EXPLOTACION/M3FACT | C52: 52.19
B54: 6.4 TOTAL/M3FACT | C54: 54.11
B57: 7. INGRESOS PROMEDIO
B59: 7.1 VARIABLE/M3 FACT | C59: 26.52
B61: 7.2 FIJO/CONEXIONES | C61: 133.12
B63: 7.3 INGRESO EXPLOTACION/M3FACT | C63: 42.88
B65: 7.4 TOTAL/M3FACT | C65: 45.03

Sheet A-100-AG-LITORAL NORTE
A2: AMBITO GEOGRAFICO LITORAL NORTE | B2: ESTADO DE RENDIMIENTO ECONÓMICO (a valores históricos) | G2: PERÍODO ENERO-DICIEMBRE-2014
A4: CONCEPTO | B4: AGUA POTABLE
B5: USINA | C5: PERFORACIÓN | D5: MIXTO | E5: SUB-TOTAL | F5: SANEAMIENTO | G5: OTROS INGRESOS | H5: TOTAL
A6: INGRESOS | B6: 0 | C6: 0 | D6: 0 | E6: 0 | F6: 0 | G6: 0 | H6: 0
A7: Ingresos Variables | B7: 142212470 | C7: 40992015 | D7: 181088690 | E7: 364293175 | H7: 364293175
A8: Ingresos Fijos | B8: 69945589 | C8: 22503584 | D8: 94554899 | E8: 187004072 | H8: 187004072
A9: INGRESOS DE EXPLOTACION | B9: 212158059 | C9: 63495599 | D9: 275643589 | E9: 551297247 | H9: 551297247
A10: Ingresos Alcantarillado | F10: 225454479 | H10: 225454479
A11: Ingresos Upas | G11: 0 | H11: 0
A12: Otros Ingresos | B12: 15415153 | C12: 3410161 | D12: 16888704 | E12: 35714018 | F12: 120285 | G12: 1721 | H12: 35836024
A13: TOTAL ING. DE EXPLOTACION | B13: 227573212 | C13: 66905760 | D13: 292532293 | E13: 587011265 | F13: 225574764 | G13: 1721 | H13: 812587750
A14: COSTOS DE EXPLOTACION | B14: 0 | C14: 0 | D14: 0 | E14: 0 | F14: 0 | G14: 0 | H14: 0
A15: OPERATIVO | B15: 0 | C15: 0 | D15: 0 | E15: 0 | F15: 0 | G15: 0 | H15: 0
A16: Costo Operativo Var | B16: 39704635 | C16: 14217975 | D16: 59894540 | E16: 113817150 | F16: 18080362 | G16: 0 | H16: 131897512
A17: Costo Operativo Fijo | B17: 73572805 | C17: 56082768 | D17: 122681145 | E17: 252336718 | F17: 43518008 | G17: 0 | H17: 295854726
A18: TOTAL OPERATIVO | B18: 113277440 | C18: 70300743 | D18: 182575685 | E18: 366153868 | F18: 61598370 | G18: 0 | H18: 427752238
A19: NO OPERATIVO | B19: 0 | C19: 0 | D19: 0 | E19: 0 | F19: 0 | G19: 0 | H19: 0
A20: COMERCIALIZACION | B20: 0 | C20: 0 | D20: 0 | E20: 0 | F20: 0 | G20: 0 | H20: 0
A21: Comercial Propios | B21: 53185932 | C21: 24479597 | D21: 84047714 | E21: 161713243 | F21: 46042747 | G21: 0 | H21: 207755990
A22: Comercial Asignados | B22: 19570715 | C22: 5753725 | D22: 25157031 | E22: 50481471 | F22: 19398854 | G22: 0 | H22: 69880325
A23: Comercialización Upas | B23: 0 | C23: 0 | D23: 0 | E23: 0 | F23: 0 | G23: 0 | H23: 0
A24: TOTAL COMERCIALIZACION | B24: 72756647 | C24: 30233322 | D24: 109204745 | E24: 212194714 | F24: 65441601 | G24: 0 | H24: 277636315
A25: ADMINISTRACION | B25: 0 | C25: 0 | D25: 0 | E25: 0 | F25: 0 | G25: 0 | H25: 0
A26: Administración Propios | B26: 13865685 | C26: 5670300 | D26: 23236434 | E26: 42772419 | F26: 12371784 | G26: 0 | H26: 55144203
A27: Administ. Asignados | B27: 31302482 | C27: 9202824 | D27: 40237542 | E27: 80742848 | F27: 31027597 | G27: 0 | H27: 111770445
A28: Gastos Fiscales | B28: 11734172 | C28: 3449807 | D28: 15083604 | E28: 30267583 | F28: 11631127 | G28: 0 | H28: 41898710
A29: TOTAL ADMINISTRACION | B29: 56902339 | C29: 18322931 | D29: 78557580 | E29: 153782850 | F29: 55030508 | G29: 0 | H29: 208813358
A30: TOTAL NO OPERATIVO | B30: 129658986 | C30: 48556253 | D30: 187762325 | E30: 365977564 | F30: 120472109 | G30: 0 | H30: 486449673
A31: COSTO DE EXPLOTACION | B31: 242936426 | C31: 118856996 | D31: 370338010 | E31: 732131432 | F31: 182070479 | G31: 0 | H31: 914201911
A32: RESULTADO DE EXPLOTACION | B32: -15363214 | C32: -51951236 | D32: -77805717 | E32: -145120167 | F32: 43504285 | G32: 1721 | H32: -101614161
A33: DIVERSOS Y EXTRAORDINARIOS | B33: 0 | C33: 0 | D33: 0 | E33: 0 | F33: 0 | G33: 0 | H33: 0
A34: Ingresos Div. y Extr | B34: 3640463 | C34: 1070284 | D34: 4679606 | E34: 9390353 | F34: 3608495 | G34: 0 | H34: 12998848
A35: Gtos. Div. y Extraor | B35: 561466 | C35: 165069 | D35: 721732 | E35: 1448267 | F35: 556535 | G35: 0 | H35: 2004802
A36: RESULTADOS DIV. Y EXTRAORDINARIOS | B36: 3078997 | C36: 905215 | D36: 3957874 | E36: 7942086 | F36: 3051960 | G36: 0 | H36: 10994046
A37: FINANCIEROS | B37: 0 | C37: 0 | D37: 0 | E37: 0 | F37: 0 | G37: 0 | H37: 0
A38: Ingresos Financieros | B38: 7786386 | C38: 2289171 | D38: 10008952 | E38: 20084509 | F38: 7718010 | G38: 0 | H38: 27802519
A39: Gastos Financieros | B39: 36429319 | C39: 10710097 | D39: 46827797 | E39: 93967213 | F39: 36109412 | G39: 0 | H39: 130076625
A40: RESULTADO FINANCIERO | B40: -28642933 | C40: -8420926 | D40: -36818845 | E40: -73882704 | F40: -28391402 | G40: 0 | H40: -102274106
A41: I.R.A.E. | B41: -26759599 | C41: -7867232 | D41: -34397928 | E41: -69024759 | F41: -26524608 | H41: -95549367
A42: RESULTADO NETO | B42: -14167551 | C42: -51599715 | D42: -76268760 | E42: -142036026 | F42: 44689451 | G42: 1721 | H42: -97344854

Sheet B-100-AG-LITORAL NORTE
A3: AMBITO GEOGRAFICO LITORAL NORTE
C5: C O S T O S T O T A L E S
B9: C O N C E P T O | C9: C O S T O S O P E R A T I V O S
C12: AGUA | D12: ALCANTARILLADO | E12: TOTAL
B14: RETRIBUCIONES AL PERSONAL | C14: 112359121.5 | D14: 9030459.687 | E14: 121389581.2
B16: MATERIALES Y SUMINISTROS | C16: 46387601.19 | D16: 990675.4093 | E16: 47378276.6
B18: ENERGIA Y FLUÍDOS | C18: 55263719.36 | D18: 5458104.494 | E18: 60721823.85
B20: SERVICIOS CONTRATADOS | C20: 37364270.81 | D20: 19381663.66 | E20: 56745934.47
B22: GASTOS VARIOS | C22: 18526236.14 | D22: 826458.5847 | E22: 19352694.73
B24: AMORTIZACIÓN | C24: 96252919 | D24: 25911008.17 | E24: 122163927.2
B27: TOTAL | C27: 366153868 | D27: 61598370 | E27: 427752238 | G27: 0.6193451566
B32: C O N C E P T O | C32: C O S T O D E A D M I N I S T R A T I V O - C O M E R C I A L
C35: COMERCIALIZACION | D35: ADMINISTRACION | E35: TOTAL
B37: RETRIBUCIONES AL PERSONAL | C37: 21432410.53 | D37: 102995753.1 | E37: 124428163.7
B39: MATERIALES Y SUMINISTROS | C39: 1565887.641 | D39: 9425127.807 | E39: 10991015.45
B41: ENERGIA Y FLUÍDOS | C41: 10053537.66 | D41: 633226.4122 | E41: 10686764.08
B43: SERVICIOS CONTRATADOS | C43: 11925094.57 | D43: 64211032.47 | E43: 76136127.04
B45: GASTOS VARIOS | C45: 3726853.082 | D45: 18535801.26 | E45: 22262654.34
B47: AMORTIZACIÓN | C47: 6440419.508 | D47: 11955048.93 | E47: 18395468.43
B51: TOTAL | C51: 55144203 | D51: 207755990 | E51: 262900193 | G51: 0.3806548434
A56: C O S T O D E E X P L O T A C I O N | G56: 690652431

Sheet C-100-AG-LITORAL NORTE
A3: COBERTURAS,COSTOS E INGRESOS PROMEDIO
A5: A M B I T O G E O G R A F I C O L I T O R A L N O R T E
B9: 1. COMPOSICION DEL COSTO PROPIO POR CONEXIÓN | C9: OPERATIVOS | D9: 0 | E9: ADMISTRATIVO-COMERCIAL
C11: AGUA | D11: ALCANTARILLADO
C12: ($/conex.agua) | D12: ($/conex.desague) | E12: ($/conex.agua)
B14: RETRIBUCIONES AL PERSONAL | C14: 942.99 | D14: 129.8898177 | E14: 1044.28
B16: MATERIALES Y SUMINISTROS | C16: 389.31 | D16: 14.24940178 | E16: 92.24
B18: ENERGIA Y FLUÍDOS | C18: 463.81 | D18: 78.50676737 | E18: 89.69
B20: SERVICIOS CONTRATADOS | C20: 313.58 | D20: 278.7765902 | E20: 638.98
B22: GASTOS VARIOS | C22: 155.48 | D22: 11.88738543 | E22: 186.84
B24: AMORTIZACIÓN | C24: 807.82 | D24: 372.6915622 | E24: 154.39
B28: TOTAL | C28: 3072.99 | D28: 886.0015247 | E28: 2206.42
B31: 2.CONEXIONES (promedio anual) | C31: 119152 | D31: 69524
B34: 3.COBERTURAS COSTO/INGRESO
B36: 3.1 COSTO DE EXPLOTACION/ INGRESO DE EXPLOT. | C36: 1.25 | D36: 0.81 | E36: 0
B38: 3.3 TOTAL | C38: 1.23 | D38: 0.81
B41: 4.M3 ELEVADOS | C41: 31619880
B43: 5.M3 FACTURADOS | C43: 14763090
B46: 6. COSTO PROMEDIO
B48: 6.1 COSTO VARIABLE/ M3ELEVADOS | C48: 3.6
B50: 6.2 COSTO VARIABLE / M3FACTURADOS | C50: 7.71
B52: 6.3 COSTO EXPLOTACION/M3FACT | C52: 49.59
B54: 6.4 TOTAL/M3FACT | C54: 51.38
B57: 7. INGRESOS PROMEDIO
B59: 7.1 VARIABLE/M3 FACT | C59: 24.68
B61: 7.2 FIJO/CONEXIONES | C61: 130.79
B63: 7.3 INGRESO EXPLOTACION/M3FACT | C63: 39.76
B65: 7.4 TOTAL/M3FACT | C65: 41.76

Sheet A-PAY-101
A2: PAYSANDU | B2: ESTADO DE RENDIMIENTO ECONÓMICO (a valores históricos) | G2: PERÍODO ENERO-DICIEMBRE-2014
A4: CONCEPTO | B4: AGUA POTABLE
B5: USINA | C5: PERFORACIÓN | D5: MIXTO | E5: SUB-TOTAL | F5: SANEAMIENTO | G5: OTROS INGRESOS | H5: TOTAL
A6: INGRESOS | B6: 0 | C6: 0 | D6: 0 | E6: 0 | F6: 0 | G6: 0 | H6: 0
A7: Ingresos Variables | B7: 110135058 | C7: 12852504 | D7: 0 | E7: 122987562 | H7: 122987562
A8: Ingresos Fijos | B8: 54322882 | C8: 7095539 | D8: 0 | E8: 61418421 | H8: 61418421
A9: INGRESOS DE EXPLOTACION | B9: 164457940 | C9: 19948043 | D9: 0 | E9: 184405983 | H9: 184405983
A10: Ingresos Alcantarillado | F10: 74191042 | H10: 74191042
A11: Ingresos Upas | G11: 0 | H11: 0
A12: Otros Ingresos | B12: 13054315 | C12: 847175 | D12: 0 | E12: 13901490 | F12: 13860 | G12: 0 | H12: 13915350
A13: TOTAL ING. DE EXPLOTACION | B13: 177512255 | C13: 20795218 | D13: 0 | E13: 198307473 | F13: 74204902 | G13: 0 | H13: 272512375
A14: COSTOS DE EXPLOTACION | B14: 0 | C14: 0 | D14: 0 | E14: 0 | F14: 0 | G14: 0 | H14: 0
A15: OPERATIVO | B15: 0 | C15: 0 | D15: 0 | E15: 0 | F15: 0 | G15: 0 | H15: 0
A16: Costo Operativo Var | B16: 27463398 | C16: 5191972 | D16: 0 | E16: 32655370 | F16: 9367089 | G16: 0 | H16: 42022459
A17: Costo Operativo Fijo | B17: 52337147 | C17: 20117739 | D17: 0 | E17: 72454886 | F17: 4797092 | G17: 0 | H17: 77251978
A18: TOTAL OPERATIVO | B18: 79800545 | C18: 25309711 | D18: 0 | E18: 105110256 | F18: 14164181 | G18: 0 | H18: 119274437
A19: NO OPERATIVO | B19: 0 | C19: 0 | D19: 0 | E19: 0 | F19: 0 | G19: 0 | H19: 0
A20: COMERCIALIZACION | B20: 0 | C20: 0 | D20: 0 | E20: 0 | F20: 0 | G20: 0 | H20: 0
A21: Comercial Propios | B21: 34229291 | C21: 5202541 | D21: 0 | E21: 39431832 | F21: 11688102 | G21: 0 | H21: 51119934
A22: Comercial Asignados | B22: 15265601 | C22: 1788336 | D22: 0 | E22: 17053937 | F22: 6381432 | G22: 0 | H22: 23435369
A23: Comercialización Upas | B23: 0 | C23: 0 | D23: 0 | E23: 0 | F23: 0 | G23: 0 | H23: 0
A24: TOTAL COMERCIALIZACION | B24: 49494892 | C24: 6990877 | D24: 0 | E24: 56485769 | F24: 18069534 | G24: 0 | H24: 74555303
A25: ADMINISTRACION | B25: 0 | C25: 0 | D25: 0 | E25: 0 | F25: 0 | G25: 0 | H25: 0
A26: Administración Propios | B26: 9906548 | C26: 1505705 | D26: 0 | E26: 11412253 | F26: 3382739 | G26: 0 | H26: 14794992
A27: Administ. Asignados | B27: 24416644 | C27: 2860363 | D27: 0 | E27: 27277007 | F27: 10206815 | G27: 0 | H27: 37483822
A28: Gastos Fiscales | B28: 9152920 | C28: 1072247 | D28: 0 | E28: 10225167 | F28: 3826167 | G28: 0 | H28: 14051334
A29: TOTAL ADMINISTRACION | B29: 43476112 | C29: 5438315 | D29: 0 | E29: 48914427 | F29: 17415721 | G29: 0 | H29: 66330148
A30: TOTAL NO OPERATIVO | B30: 92971004 | C30: 12429192 | D30: 0 | E30: 105400196 | F30: 35485255 | G30: 0 | H30: 140885451
A31: COSTO DE EXPLOTACION | B31: 172771549 | C31: 37738903 | D31: 0 | E31: 210510452 | F31: 49649436 | G31: 0 | H31: 260159888
A32: RESULTADO DE EXPLOTACION | B32: 4740706 | C32: -16943685 | D32: 0 | E32: -12202979 | F32: 24555466 | G32: 0 | H32: 12352487
A33: DIVERSOS Y EXTRAORDINARIOS | B33: 0 | C33: 0 | D33: 0 | E33: 0 | F33: 0 | G33: 0 | H33: 0
A34: Ingresos Div. y Extr | B34: 2839644 | C34: 332659 | D34: 0 | E34: 3172303 | F34: 1187048 | G34: 0 | H34: 4359351
A35: Gtos. Div. y Extraor | B35: 437956 | C35: 51306 | D35: 0 | E35: 489262 | F35: 183077 | G35: 0 | H35: 672339
A36: RESULTADOS DIV. Y EXTRAORDINARIOS | B36: 2401688 | C36: 281353 | D36: 0 | E36: 2683041 | F36: 1003971 | G36: 0 | H36: 3687012
A37: FINANCIEROS | B37: 0 | C37: 0 | D37: 0 | E37: 0 | F37: 0 | G37: 0 | H37: 0
A38: Ingresos Financieros | B38: 6073558 | C38: 711506 | D38: 0 | E38: 6785064 | F38: 2538911 | G38: 0 | H38: 9323975
A39: Gastos Financieros | B39: 28415693 | C39: 3328844 | D39: 0 | E39: 31744537 | F39: 11878525 | G39: 0 | H39: 43623062
A40: RESULTADO FINANCIERO | B40: -22342135 | C40: -2617338 | D40: 0 | E40: -24959473 | F40: -9339614 | G40: 0 | H40: -34299087
A41: I.R.A.E. | B41: -20873093 | C41: -2445243 | D41: 0 | E41: -23318336 | F41: -8725515 | H41: -32043851
A42: RESULTADO NETO | B42: 5673352 | C42: -16834427 | D42: 0 | E42: -11161075 | F42: 24945338 | G42: 0 | H42: 13784263

Sheet B-PAY-101
A3: P AY S AN D U
C5: C O S T O S T O T A L E S
B9: C O N C E P T O | C9: C O S T O S O P E R A T I V O S
C12: AGUA | D12: ALCANTARILLADO | E12: TOTAL
B14: RETRIBUCIONES AL PERSONAL | C14: 33539071.81 | D14: 183053.66 | E14: 33722125.47
B16: MATERIALES Y SUMINISTROS | C16: 12877832.73 | D16: 163605.73 | E16: 13041438.46
B18: ENERGIA Y FLUÍDOS | C18: 17273300.16 | D18: 1414237.34 | E18: 18687537.5
B20: SERVICIOS CONTRATADOS | C20: 6302087.526 | D20: 8715701.71 | E20: 15017789.24
B22: GASTOS VARIOS | C22: 6396624.859 | D22: 127035.03 | E22: 6523659.889
B24: AMORTIZACIÓN | C24: 28721338.92 | D24: 3560547.53 | E24: 32281886.45
B27: TOTAL | C27: 105110256 | D27: 14164181 | E27: 119274437 | G27: 0.6440674295
B32: C O N C E P T O | C32: C O S T O D E A D M I N I S T R A T I V O - C O M E R C I A L
C35: COMERCIALIZACION | D35: ADMINISTRACION | E35: TOTAL
B37: RETRIBUCIONES AL PERSONAL | C37: 23868972.35 | D37: 3808228.947 | E37: 27677201.29
B39: MATERIALES Y SUMINISTROS | C39: 2418400.608 | D39: 568083.3212 | E39: 2986483.93
B41: ENERGIA Y FLUÍDOS | C41: 63371.11635 | D41: 2714621.73 | E41: 2777992.846
B43: SERVICIOS CONTRATADOS | C43: 16745405.05 | D43: 5138305.018 | E43: 21883710.07
B45: GASTOS VARIOS | C45: 4398373.136 | D45: 837236.0788 | E45: 5235609.215
B47: AMORTIZACIÓN | C47: 3625411.743 | D47: 1728516.905 | E47: 5353928.648
B51: TOTAL | C51: 51119934 | D51: 14794992 | E51: 65914926 | G51: 0.3559325705
A56: C O S T O D E E X P L O T A C I O N | G56: 185189363

Sheet C-PAY-101
A3: COBERTURAS,COSTOS E INGRESOS PROMEDIO
A5: P A Y S A N D U
B9: 1. COMPOSICION DEL COSTO PROPIO POR CONEXIÓN | C9: OPERATIVOS | D9: 0 | E9: ADMISTRATIVO-COMERCIAL
C11: AGUA | D11: ALCANTARILLADO
C12: ($/conex.agua) | D12: ($/conex.desague) | E12: ($/conex.agua)
B14: RETRIBUCIONES AL PERSONAL | C14: 894.49 | D14: 8.235644037 | E14: 738.16
B16: MATERIALES Y SUMINISTROS | C16: 343.45 | D16: 7.360675305 | E16: 79.65
B18: ENERGIA Y FLUÍDOS | C18: 460.68 | D18: 63.62700049 | E18: 74.09
B20: SERVICIOS CONTRATADOS | C20: 168.08 | D20: 392.1222707 | E20: 583.64
B22: GASTOS VARIOS | C22: 170.6 | D22: 5.71534755 | E22: 139.63
B24: AMORTIZACIÓN | C24: 766 | D24: 160.190198 | E24: 142.79
B28: TOTAL | C28: 2803.3 | D28: 637.251136 | E28: 1757.96
B31: 2.CONEXIONES (promedio anual) | C31: 37495 | D31: 22227
B34: 3.COBERTURAS COSTO/INGRESO
B36: 3.1 COSTO DE EXPLOTACION/ INGRESO DE EXPLOT. | C36: 1.06 | D36: 0.67 | E36: 0
B38: 3.3 TOTAL | C38: 1.05 | D38: 0.68
B41: 4.M3 ELEVADOS | C41: 10898900
B43: 5.M3 FACTURADOS | C43: 4862090
B46: 6. COSTO PROMEDIO
B48: 6.1 COSTO VARIABLE/ M3ELEVADOS | C48: 3
B50: 6.2 COSTO VARIABLE / M3FACTURADOS | C50: 6.72
B52: 6.3 COSTO EXPLOTACION/M3FACT | C52: 43.3
B54: 6.4 TOTAL/M3FACT | C54: 45.13
B57: 7. INGRESOS PROMEDIO
B59: 7.1 VARIABLE/M3 FACT | C59: 25.3
B61: 7.2 FIJO/CONEXIONES | C61: 136.5
B63: 7.3 INGRESO EXPLOTACION/M3FACT | C63: 40.79
B65: 7.4 TOTAL/M3FACT | C65: 42.83

Sheet A-RN-102
A2: RIO NEGRO | B2: ESTADO DE RENDIMIENTO ECONÓMICO (a valores históricos) | G2: PERÍODO ENERO-DICIEMBRE-2014
A4: CONCEPTO | B4: AGUA POTABLE
B5: USINA | C5: PERFORACIÓN | D5: MIXTO | E5: SUB-TOTAL | F5: SANEAMIENTO | G5: OTROS INGRESOS | H5: TOTAL
A6: INGRESOS | B6: 0 | C6: 0 | D6: 0 | E6: 0 | F6: 0 | G6: 0 | H6: 0
A7: Ingresos Variables | B7: 32077411 | C7: 22991186 | D7: 2557940 | E7: 57626537 | H7: 57626537
A8: Ingresos Fijos | B8: 15622707 | C8: 12508750 | D8: 1531637 | E8: 29663094 | H8: 29663094
A9: INGRESOS DE EXPLOTACION | B9: 47700118 | C9: 35499936 | D9: 4089577 | E9: 87289631 | H9: 87289631
A10: Ingresos Alcantarillado | F10: 32261968 | H10: 32261968
A11: Ingresos Upas | G11: 0 | H11: 0
A12: Otros Ingresos | B12: 2360838 | C12: 2139312 | D12: 187095 | E12: 4687245 | F12: 2180 | G12: 0 | H12: 4689425
A13: TOTAL ING. DE EXPLOTACION | B13: 50060956 | C13: 37639248 | D13: 4276672 | E13: 91976876 | F13: 32264148 | G13: 0 | H13: 124241024
A14: COSTOS DE EXPLOTACION | B14: 0 | C14: 0 | D14: 0 | E14: 0 | F14: 0 | G14: 0 | H14: 0
A15: OPERATIVO | B15: 0 | C15: 0 | D15: 0 | E15: 0 | F15: 0 | G15: 0 | H15: 0
A16: Costo Operativo Var | B16: 12241237 | C16: 7610958 | D16: 318364 | E16: 20170559 | F16: 2828698 | G16: 0 | H16: 22999257
A17: Costo Operativo Fijo | B17: 21235658 | C17: 26576392 | D17: 3226556 | E17: 51038606 | F17: 9082784 | G17: 0 | H17: 60121390
A18: TOTAL OPERATIVO | B18: 33476895 | C18: 34187350 | D18: 3544920 | E18: 71209165 | F18: 11911482 | G18: 0 | H18: 83120647
A19: NO OPERATIVO | B19: 0 | C19: 0 | D19: 0 | E19: 0 | F19: 0 | G19: 0 | H19: 0
A20: COMERCIALIZACION | B20: 0 | C20: 0 | D20: 0 | E20: 0 | F20: 0 | G20: 0 | H20: 0
A21: Comercial Propios | B21: 18956641 | C21: 16092029 | D21: 2010010 | E21: 37058680 | F21: 9974349 | G21: 0 | H21: 47033029
A22: Comercial Asignados | B22: 4305114 | C22: 3236879 | D22: 367783 | E22: 7909776 | F22: 2774634 | G22: 0 | H22: 10684410
A23: Comercialización Upas | B23: 0 | C23: 0 | D23: 0 | E23: 0 | F23: 0 | G23: 0 | H23: 0
A24: TOTAL COMERCIALIZACION | B24: 23261755 | C24: 19328908 | D24: 2377793 | E24: 44968456 | F24: 12748983 | G24: 0 | H24: 57717439
A25: ADMINISTRACION | B25: 0 | C25: 0 | D25: 0 | E25: 0 | F25: 0 | G25: 0 | H25: 0
A26: Administración Propios | B26: 3959137 | C26: 3360857 | D26: 419795 | E26: 7739789 | F26: 2083165 | G26: 0 | H26: 9822954
A27: Administ. Asignados | B27: 6885837 | C27: 5177243 | D27: 588252 | E27: 12651332 | F27: 4437903 | G27: 0 | H27: 17089235
A28: Gastos Fiscales | B28: 2581252 | C28: 1940762 | D28: 220515 | E28: 4742529 | F28: 1663610 | G28: 0 | H28: 6406139
A29: TOTAL ADMINISTRACION | B29: 13426226 | C29: 10478862 | D29: 1228562 | E29: 25133650 | F29: 8184678 | G29: 0 | H29: 33318328
A30: TOTAL NO OPERATIVO | B30: 36687981 | C30: 29807770 | D30: 3606355 | E30: 70102106 | F30: 20933661 | G30: 0 | H30: 91035767
A31: COSTO DE EXPLOTACION | B31: 70164876 | C31: 63995120 | D31: 7151275 | E31: 141311271 | F31: 32845143 | G31: 0 | H31: 174156414
A32: RESULTADO DE EXPLOTACION | B32: -20103920 | C32: -26355872 | D32: -2874603 | E32: -49334395 | F32: -580995 | G32: 0 | H32: -49915390
A33: DIVERSOS Y EXTRAORDINARIOS | B33: 0 | C33: 0 | D33: 0 | E33: 0 | F33: 0 | G33: 0 | H33: 0
A34: Ingresos Div. y Extr | B34: 800820 | C34: 602111 | D34: 68413 | E34: 1471344 | F34: 516127 | G34: 0 | H34: 1987471
A35: Gtos. Div. y Extraor | B35: 123510 | C35: 92863 | D35: 10551 | E35: 226924 | F35: 79602 | G35: 0 | H35: 306526
A36: RESULTADOS DIV. Y EXTRAORDINARIOS | B36: 677310 | C36: 509248 | D36: 57862 | E36: 1244420 | F36: 436525 | G36: 0 | H36: 1680945
A37: FINANCIEROS | B37: 0 | C37: 0 | D37: 0 | E37: 0 | F37: 0 | G37: 0 | H37: 0
A38: Ingresos Financieros | B38: 1712829 | C38: 1287822 | D38: 146326 | E38: 3146977 | F38: 1103913 | G38: 0 | H38: 4250890
A39: Gastos Financieros | B39: 8013626 | C39: 6025191 | D39: 684599 | E39: 14723416 | F39: 5164760 | G39: 0 | H39: 19888176
A40: RESULTADO FINANCIERO | B40: -6300797 | C40: -4737369 | D40: -538273 | E40: -11576439 | F40: -4060847 | G40: 0 | H40: -15637286
A41: I.R.A.E. | B41: -5886506 | C41: -4425878 | D41: -502880 | E41: -10815264 | F41: -3793837 | H41: -14609101
A42: RESULTADO NETO | B42: -19840901 | C42: -26158115 | D42: -2852134 | E42: -48851150 | F42: -411480 | G42: 0 | H42: -49262630

Sheet B-RN-102
A3: R I O N E G R O
C5: C O S T O S T O T A L E S
B9: C O N C E P T O | C9: C O S T O S O P E R A T I V O S
C12: AGUA | D12: ALCANTARILLADO | E12: TOTAL
B14: RETRIBUCIONES AL PERSONAL | C14: 25019448.15 | D14: 3865229.143 | E14: 28884677.29
B16: MATERIALES Y SUMINISTROS | C16: 6936064.793 | D16: 215093.0403 | E16: 7151157.834
B18: ENERGIA Y FLUÍDOS | C18: 11189279.85 | D18: 1968392.423 | E18: 13157672.27
B20: SERVICIOS CONTRATADOS | C20: 6967587.124 | D20: 1712918.279 | E20: 8680505.404
B22: GASTOS VARIOS | C22: 4632203.519 | D22: 332172.5657 | E22: 4964376.084
B24: AMORTIZACIÓN | C24: 16464581.57 | D24: 3817676.549 | E24: 20282258.12
B27: TOTAL | C27: 71209165 | D27: 11911482 | E27: 83120647 | G27: 0.5938180323
B32: C O N C E P T O | C32: C O S T O D E A D M I N I S T R A T I V O - C O M E R C I A L
C35: COMERCIALIZACION | D35: ADMINISTRACION | E35: TOTAL
B37: RETRIBUCIONES AL PERSONAL | C37: 22703769.16 | D37: 3016777.209 | E37: 25720546.37
B39: MATERIALES Y SUMINISTROS | C39: 2122301.734 | D39: 416692.3424 | E39: 2538994.076
B41: ENERGIA Y FLUÍDOS | C41: 168707.3135 | D41: 2405324.36 | E41: 2574031.674
B43: SERVICIOS CONTRATADOS | C43: 15625285.95 | D43: 1922747.801 | E43: 17548033.75
B45: GASTOS VARIOS | C45: 4879764.817 | D45: 492833.4662 | E45: 5372598.283
B47: AMORTIZACIÓN | C47: 1533200.026 | D47: 1568578.821 | E47: 3101778.847
B51: TOTAL | C51: 47033029 | D51: 9822954 | E51: 56855983 | G51: 0.4061819677
A56: C O S T O D E E X P L O T A C I O N | G56: 139976630

Sheet C-RN-102
A3: COBERTURAS,COSTOS E INGRESOS PROMEDIO
A5: R I O N E G R O
B9: 1. COMPOSICION DEL COSTO PROPIO POR CONEXIÓN | C9: OPERATIVOS | D9: 0 | E9: ADMISTRATIVO-COMERCIAL
C11: AGUA | D11: ALCANTARILLADO
C12: ($/conex.agua) | D12: ($/conex.desague) | E12: ($/conex.agua)
B14: RETRIBUCIONES AL PERSONAL | C14: 1344.91 | D14: 386.0210869 | E14: 1382.6
B16: MATERIALES Y SUMINISTROS | C16: 372.85 | D16: 21.48137824 | E16: 136.48
B18: ENERGIA Y FLUÍDOS | C18: 601.48 | D18: 196.5836835 | E18: 138.37
B20: SERVICIOS CONTRATADOS | C20: 374.54 | D20: 171.0694377 | E20: 943.29
B22: GASTOS VARIOS | C22: 249 | D22: 33.1741302 | E22: 288.8
B24: AMORTIZACIÓN | C24: 885.05 | D24: 381.2720013 | E24: 166.74
B28: TOTAL | C28: 3827.83 | D28: 1189.601718 | E28: 3056.28
B31: 2.CONEXIONES (promedio anual) | C31: 18603 | D31: 10013
B34: 3.COBERTURAS COSTO/INGRESO
B36: 3.1 COSTO DE EXPLOTACION/ INGRESO DE EXPLOT. | C36: 1.54 | D36: 1.02 | E36: 0
B38: 3.3 TOTAL | C38: 1.51 | D38: 1.01
B41: 4.M3 ELEVADOS | C41: 3848630
B43: 5.M3 FACTURADOS | C43: 2231570
B46: 6. COSTO PROMEDIO
B48: 6.1 COSTO VARIABLE/ M3ELEVADOS | C48: 5.24
B50: 6.2 COSTO VARIABLE / M3FACTURADOS | C50: 9.04
B52: 6.3 COSTO EXPLOTACION/M3FACT | C52: 63.32
B54: 6.4 TOTAL/M3FACT | C54: 65.18
B57: 7. INGRESOS PROMEDIO
B59: 7.1 VARIABLE/M3 FACT | C59: 25.82
B61: 7.2 FIJO/CONEXIONES | C61: 132.88
B63: 7.3 INGRESO EXPLOTACION/M3FACT | C63: 41.22
B65: 7.4 TOTAL/M3FACT | C65: 43.29

Sheet A-SAL-103
A2: SALTO | B2: ESTADO DE RENDIMIENTO ECONÓMICO (a valores históricos) | G2: PERÍODO ENERO-DICIEMBRE-2014
A4: CONCEPTO | B4: AGUA POTABLE
B5: USINA | C5: PERFORACIÓN | D5: MIXTO | E5: SUB-TOTAL | F5: SANEAMIENTO | G5: OTROS INGRESOS | H5: TOTAL
A6: INGRESOS | B6: 0 | C6: 0 | D6: 0 | E6: 0 | F6: 0 | G6: 0 | H6: 0
A7: Ingresos Variables | B7: 0 | C7: 0 | D7: 109953765 | E7: 109953765 | H7: 109953765
A8: Ingresos Fijos | B8: 0 | C8: 0 | D8: 58489836 | E8: 58489836 | H8: 58489836
A9: INGRESOS DE EXPLOTACION | B9: 0 | C9: 0 | D9: 168443601 | E9: 168443601 | H9: 168443601
A10: Ingresos Alcantarillado | F10: 82018196 | H10: 82018196
A11: Ingresos Upas | G11: 0 | H11: 0
A12: Otros Ingresos | B12: 0 | C12: 0 | D12: 10498999 | E12: 10498999 | F12: 65619 | G12: 1721 | H12: 10566339
A13: TOTAL ING. DE EXPLOTACION | B13: 0 | C13: 0 | D13: 178942600 | E13: 178942600 | F13: 82083815 | G13: 1721 | H13: 261028136
A14: COSTOS DE EXPLOTACION | B14: 0 | C14: 0 | D14: 0 | E14: 0 | F14: 0 | G14: 0 | H14: 0
A15: OPERATIVO | B15: 0 | C15: 0 | D15: 0 | E15: 0 | F15: 0 | G15: 0 | H15: 0
A16: Costo Operativo Var | B16: 0 | C16: 0 | D16: 39129984 | E16: 39129984 | F16: 532830 | G16: 0 | H16: 39662814
A17: Costo Operativo Fijo | B17: 0 | C17: 0 | D17: 73062396 | E17: 73062396 | F17: 13084531 | G17: 0 | H17: 86146927
A18: TOTAL OPERATIVO | B18: 0 | C18: 0 | D18: 112192380 | E18: 112192380 | F18: 13617361 | G18: 0 | H18: 125809741
A19: NO OPERATIVO | B19: 0 | C19: 0 | D19: 0 | E19: 0 | F19: 0 | G19: 0 | H19: 0
A20: COMERCIALIZACION | B20: 0 | C20: 0 | D20: 0 | E20: 0 | F20: 0 | G20: 0 | H20: 0
A21: Comercial Propios | B21: 0 | C21: 0 | D21: 44886360 | E21: 44886360 | F21: 15995928 | G21: 0 | H21: 60882288
A22: Comercial Asignados | B22: 0 | C22: 0 | D22: 15388607 | E22: 15388607 | F22: 7058999 | G22: 0 | H22: 22447606
A23: Comercialización Upas | B23: 0 | C23: 0 | D23: 0 | E23: 0 | F23: 0 | G23: 0 | H23: 0
A24: TOTAL COMERCIALIZACION | B24: 0 | C24: 0 | D24: 60274967 | E24: 60274967 | F24: 23054927 | G24: 0 | H24: 83329894
A25: ADMINISTRACION | B25: 0 | C25: 0 | D25: 0 | E25: 0 | F25: 0 | G25: 0 | H25: 0
A26: Administración Propios | B26: 0 | C26: 0 | D26: 13441538 | E26: 13441538 | F26: 4790094 | G26: 0 | H26: 18231632
A27: Administ. Asignados | B27: 0 | C27: 0 | D27: 24613387 | E27: 24613387 | F27: 11290552 | G27: 0 | H27: 35903939
A28: Gastos Fiscales | B28: 0 | C28: 0 | D28: 9226671 | E28: 9226671 | F28: 4232421 | G28: 0 | H28: 13459092
A29: TOTAL ADMINISTRACION | B29: 0 | C29: 0 | D29: 47281596 | E29: 47281596 | F29: 20313067 | G29: 0 | H29: 67594663
A30: TOTAL NO OPERATIVO | B30: 0 | C30: 0 | D30: 107556563 | E30: 107556563 | F30: 43367994 | G30: 0 | H30: 150924557
A31: COSTO DE EXPLOTACION | B31: 0 | C31: 0 | D31: 219748943 | E31: 219748943 | F31: 56985355 | G31: 0 | H31: 276734298
A32: RESULTADO DE EXPLOTACION | B32: 0 | C32: 0 | D32: -40806343 | E32: -40806343 | F32: 25098460 | G32: 1721 | H32: -15706162
A33: DIVERSOS Y EXTRAORDINARIOS | B33: 0 | C33: 0 | D33: 0 | E33: 0 | F33: 0 | G33: 0 | H33: 0
A34: Ingresos Div. y Extr | B34: 0 | C34: 0 | D34: 2862525 | E34: 2862525 | F34: 1313085 | G34: 0 | H34: 4175610
A35: Gtos. Div. y Extraor | B35: 0 | C35: 0 | D35: 441485 | E35: 441485 | F35: 202516 | G35: 0 | H35: 644001
A36: RESULTADOS DIV. Y EXTRAORDINARIOS | B36: 0 | C36: 0 | D36: 2421040 | E36: 2421040 | F36: 1110569 | G36: 0 | H36: 3531609
A37: FINANCIEROS | B37: 0 | C37: 0 | D37: 0 | E37: 0 | F37: 0 | G37: 0 | H37: 0
A38: Ingresos Financieros | B38: 0 | C38: 0 | D38: 6122497 | E38: 6122497 | F38: 2808487 | G38: 0 | H38: 8930984
A39: Gastos Financieros | B39: 0 | C39: 0 | D39: 28644659 | E39: 28644659 | F39: 13139760 | G39: 0 | H39: 41784419
A40: RESULTADO FINANCIERO | B40: 0 | C40: 0 | D40: -22522162 | E40: -22522162 | F40: -10331273 | G40: 0 | H40: -32853435
A41: I.R.A.E. | B41: 0 | C41: 0 | D41: -21041283 | E41: -21041283 | F41: -9651971 | H41: -30693254
A42: RESULTADO NETO | B42: 0 | C42: 0 | D42: -39866182 | E42: -39866182 | F42: 25529727 | G42: 1721 | H42: -14334734

Sheet B-SAL-103
A3: S A L T O
C5: C O S T O S T O T A L E S
B9: C O N C E P T O | C9: C O S T O S O P E R A T I V O S
C12: AGUA | D12: ALCANTARILLADO | E12: TOTAL
B14: RETRIBUCIONES AL PERSONAL | C14: 26018655.79 | D14: -635590.7244 | E14: 25383065.07
B16: MATERIALES Y SUMINISTROS | C16: 18843648.92 | D16: 216918.074 | E16: 19060566.99
B18: ENERGIA Y FLUÍDOS | C18: 15464108.41 | D18: 273608.574 | E18: 15737716.98
B20: SERVICIOS CONTRATADOS | C20: 15709415.26 | D20: 3471077.48 | E20: 19180492.74
B22: GASTOS VARIOS | C22: 3131392.377 | D22: 116933.0453 | E22: 3248325.422
B24: AMORTIZACIÓN | C24: 33025159.25 | D24: 10174414.55 | E24: 43199573.8
B27: TOTAL | C27: 112192380 | D27: 13617361 | E27: 125809741 | G27: 0.6139346739
B32: C O N C E P T O | C32: C O S T O D E A D M I N I S T R A T I V O - C O M E R C I A L
C35: COMERCIALIZACION | D35: ADMINISTRACION | E35: TOTAL
B37: RETRIBUCIONES AL PERSONAL | C37: 30188039.25 | D37: 8990265.84 | E37: 39178305.09
B39: MATERIALES Y SUMINISTROS | C39: 2490481.415 | D39: 338238.5382 | E39: 2828719.954
B41: ENERGIA Y FLUÍDOS | C41: 74406.01329 | D41: 2703496.483 | E41: 2777902.496
B43: SERVICIOS CONTRATADOS | C43: 18085956.07 | D43: 2898738.068 | E43: 20984694.14
B45: GASTOS VARIOS | C45: 5416625.231 | D45: 1329384.396 | E45: 6746009.627
B47: AMORTIZACIÓN | C47: 4626780.013 | D47: 1971508.675 | E47: 6598288.688
B51: TOTAL | C51: 60882288 | D51: 18231632 | E51: 79113920 | G51: 0.3860653261
A56: C O S T O D E E X P L O T A C I O N | G56: 204923661

Sheet C-SAL-103
A3: COBERTURAS,COSTOS E INGRESOS PROMEDIO
A5: S A L T O
B9: 1. COMPOSICION DEL COSTO PROPIO POR CONEXIÓN | C9: OPERATIVOS | D9: 0 | E9: ADMISTRATIVO-COMERCIAL
C11: AGUA | D11: ALCANTARILLADO
C12: ($/conex.agua) | D12: ($/conex.desague) | E12: ($/conex.agua)
B14: RETRIBUCIONES AL PERSONAL | C14: 697.89 | D14: -23.92046684 | E14: 1050.86
B16: MATERIALES Y SUMINISTROS | C16: 505.44 | D16: 8.163715104 | E16: 75.87
B18: ENERGIA Y FLUÍDOS | C18: 414.79 | D18: 10.29726296 | E18: 74.51
B20: SERVICIOS CONTRATADOS | C20: 421.37 | D20: 130.6340552 | E20: 562.86
B22: GASTOS VARIOS | C22: 83.99 | D22: 4.400776986 | E22: 180.95
B24: AMORTIZACIÓN | C24: 885.82 | D24: 382.9142505 | E24: 176.98
B28: TOTAL | C28: 3009.3 | D28: 512.4895939 | E28: 2122.03
B31: 2.CONEXIONES (promedio anual) | C31: 37282 | D31: 26571
B34: 3.COBERTURAS COSTO/INGRESO
B36: 3.1 COSTO DE EXPLOTACION/ INGRESO DE EXPLOT. | C36: 1.23 | D36: 0.69 | E36: 0
B38: 3.3 TOTAL | C38: 1.21 | D38: 0.7
B41: 4.M3 ELEVADOS | C41: 10760130
B43: 5.M3 FACTURADOS | C43: 4586350
B46: 6. COSTO PROMEDIO
B48: 6.1 COSTO VARIABLE/ M3ELEVADOS | C48: 3.64
B50: 6.2 COSTO VARIABLE / M3FACTURADOS | C50: 8.53
B52: 6.3 COSTO EXPLOTACION/M3FACT | C52: 47.91
B54: 6.4 TOTAL/M3FACT | C54: 49.67
B57: 7. INGRESOS PROMEDIO
B59: 7.1 VARIABLE/M3 FACT | C59: 23.97
B61: 7.2 FIJO/CONEXIONES | C61: 130.74
B63: 7.3 INGRESO EXPLOTACION/M3FACT | C63: 39.02
B65: 7.4 TOTAL/M3FACT | C65: 40.98

Sheet A-ART-104
A2: ARTIGAS | B2: ESTADO DE RENDIMIENTO ECONÓMICO (a valores históricos) | G2: PERÍODO ENERO-DICIEMBRE-2014
A4: CONCEPTO | B4: AGUA POTABLE
B5: USINA | C5: PERFORACIÓN | D5: MIXTO | E5: SUB-TOTAL | F5: SANEAMIENTO | G5: OTROS INGRESOS | H5: TOTAL
A6: INGRESOS | B6: 0 | C6: 0 | D6: 0 | E6: 0 | F6: 0 | G6: 0 | H6: 0
A7: Ingresos Variables | B7: 0 | C7: 5148325 | D7: 68576984 | E7: 73725309 | H7: 73725309
A8: Ingresos Fijos | B8: 0 | C8: 2899296 | D8: 34533426 | E8: 37432722 | H8: 37432722
A9: INGRESOS DE EXPLOTACION | B9: 0 | C9: 8047621 | D9: 103110410 | E9: 111158031 | H9: 111158031
A10: Ingresos Alcantarillado | F10: 36983273 | H10: 36983273
A11: Ingresos Upas | G11: 0 | H11: 0
A12: Otros Ingresos | B12: 0 | C12: 423673 | D12: 6202610 | E12: 6626283 | F12: 38626 | G12: 0 | H12: 6664909
A13: TOTAL ING. DE EXPLOTACION | B13: 0 | C13: 8471294 | D13: 109313020 | E13: 117784314 | F13: 37021899 | G13: 0 | H13: 154806213
A14: COSTOS DE EXPLOTACION | B14: 0 | C14: 0 | D14: 0 | E14: 0 | F14: 0 | G14: 0 | H14: 0
A15: OPERATIVO | B15: 0 | C15: 0 | D15: 0 | E15: 0 | F15: 0 | G15: 0 | H15: 0
A16: Costo Operativo Var | B16: 0 | C16: 1415045 | D16: 20446192 | E16: 21861237 | F16: 5351745 | G16: 0 | H16: 27212982
A17: Costo Operativo Fijo | B17: 0 | C17: 9388636 | D17: 46392193 | E17: 55780829 | F17: 16553602 | G17: 0 | H17: 72334431
A18: TOTAL OPERATIVO | B18: 0 | C18: 10803681 | D18: 66838385 | E18: 77642066 | F18: 21905347 | G18: 0 | H18: 99547413
A19: NO OPERATIVO | B19: 0 | C19: 0 | D19: 0 | E19: 0 | F19: 0 | G19: 0 | H19: 0
A20: COMERCIALIZACION | B20: 0 | C20: 0 | D20: 0 | E20: 0 | F20: 0 | G20: 0 | H20: 0
A21: Comercial Propios | B21: 0 | C21: 3185027 | D21: 37151344 | E21: 40336371 | F21: 8384368 | G21: 0 | H21: 48720739
A22: Comercial Asignados | B22: 0 | C22: 728510 | D22: 9400641 | E22: 10129151 | F22: 3183789 | G22: 0 | H22: 13312940
A23: Comercialización Upas | B23: 0 | C23: 0 | D23: 0 | E23: 0 | F23: 0 | G23: 0 | H23: 0
A24: TOTAL COMERCIALIZACION | B24: 0 | C24: 3913537 | D24: 46551985 | E24: 50465522 | F24: 11568157 | G24: 0 | H24: 62033679
A25: ADMINISTRACION | B25: 0 | C25: 0 | D25: 0 | E25: 0 | F25: 0 | G25: 0 | H25: 0
A26: Administración Propios | B26: 0 | C26: 803738 | D26: 9375101 | E26: 10178839 | F26: 2115786 | G26: 0 | H26: 12294625
A27: Administ. Asignados | B27: 0 | C27: 1165219 | D27: 15035903 | E27: 16201122 | F27: 5092327 | G27: 0 | H27: 21293449
A28: Gastos Fiscales | B28: 0 | C28: 436798 | D28: 5636418 | E28: 6073216 | F28: 1908930 | G28: 0 | H28: 7982146
A29: TOTAL ADMINISTRACION | B29: 0 | C29: 2405755 | D29: 30047422 | E29: 32453177 | F29: 9117043 | G29: 0 | H29: 41570220
A30: TOTAL NO OPERATIVO | B30: 0 | C30: 6319292 | D30: 76599407 | E30: 82918699 | F30: 20685200 | G30: 0 | H30: 103603899
A31: COSTO DE EXPLOTACION | B31: 0 | C31: 17122973 | D31: 143437792 | E31: 160560765 | F31: 42590547 | G31: 0 | H31: 203151312
A32: RESULTADO DE EXPLOTACION | B32: 0 | C32: -8651679 | D32: -34124772 | E32: -42776451 | F32: -5568648 | G32: 0 | H32: -48345099
A33: DIVERSOS Y EXTRAORDINARIOS | B33: 0 | C33: 0 | D33: 0 | E33: 0 | F33: 0 | G33: 0 | H33: 0
A34: Ingresos Div. y Extr | B34: 0 | C34: 135514 | D34: 1748668 | E34: 1884182 | F34: 592235 | G34: 0 | H34: 2476417
A35: Gtos. Div. y Extraor | B35: 0 | C35: 20900 | D35: 269696 | E35: 290596 | F35: 91340 | G35: 0 | H35: 381936
A36: RESULTADOS DIV. Y EXTRAORDINARIOS | B36: 0 | C36: 114614 | D36: 1478972 | E36: 1593586 | F36: 500895 | G36: 0 | H36: 2094481
A37: FINANCIEROS | B37: 0 | C37: 0 | D37: 0 | E37: 0 | F37: 0 | G37: 0 | H37: 0
A38: Ingresos Financieros | B38: 0 | C38: 289844 | D38: 3740130 | E38: 4029974 | F38: 1266699 | G38: 0 | H38: 5296673
A39: Gastos Financieros | B39: 0 | C39: 1356062 | D39: 17498539 | E39: 18854601 | F39: 5926368 | G39: 0 | H39: 24780969
A40: RESULTADO FINANCIERO | B40: 0 | C40: -1066218 | D40: -13758409 | E40: -14824627 | F40: -4659669 | G40: 0 | H40: -19484296
A41: I.R.A.E. | B41: 0 | C41: -996112 | D41: -12853765 | E41: -13849877 | F41: -4353286 | H41: -18203163
A42: RESULTADO NETO | B42: 0 | C42: -8607171 | D42: -33550444 | E42: -42157615 | F42: -5374136 | G42: 0 | H42: -47531751

Sheet B-ART-104
A3: A R T I G A S
C5: C O S T O S T O T A L E S
B9: C O N C E P T O | C9: C O S T O S O P E R A T I V O S
C12: AGUA | D12: ALCANTARILLADO | E12: TOTAL
B14: RETRIBUCIONES AL PERSONAL | C14: 27781945.75 | D14: 5617767.608 | E14: 33399713.36
B16: MATERIALES Y SUMINISTROS | C16: 7730054.75 | D16: 395058.5649 | E16: 8125113.315
B18: ENERGIA Y FLUÍDOS | C18: 11337030.94 | D18: 1801866.157 | E18: 13138897.1
B20: SERVICIOS CONTRATADOS | C20: 8385180.908 | D20: 5481966.187 | E20: 13867147.09
B22: GASTOS VARIOS | C22: 4366015.389 | D22: 250317.9437 | E22: 4616333.333
B24: AMORTIZACIÓN | C24: 18041838.26 | D24: 8358370.539 | E24: 26400208.8
B27: TOTAL | C27: 77642066 | D27: 21905347 | E27: 99547413 | G27: 0.6199906034
B32: C O N C E P T O | C32: C O S T O D E A D M I N I S T R A T I V O - C O M E R C I A L
C35: COMERCIALIZACION | D35: ADMINISTRACION | E35: TOTAL
B37: RETRIBUCIONES AL PERSONAL | C37: 26234972.36 | D37: 5617138.537 | E37: 31852110.9
B39: MATERIALES Y SUMINISTROS | C39: 2393944.05 | D39: 242873.4392 | E39: 2636817.489
B41: ENERGIA Y FLUÍDOS | C41: 326741.9691 | D41: 2230095.09 | E41: 2556837.059
B43: SERVICIOS CONTRATADOS | C43: 13754385.4 | D43: 1965303.684 | E43: 15719689.08
B45: GASTOS VARIOS | C45: 3841038.075 | D45: 1067399.142 | E45: 4908437.217
B47: AMORTIZACIÓN | C47: 2169657.144 | D47: 1171815.107 | E47: 3341472.251
B51: TOTAL | C51: 48720739 | D51: 12294625 | E51: 61015364 | G51: 0.3800093966
A56: C O S T O D E E X P L O T A C I O N | G56: 160562777

Sheet C-ART-104
A3: COBERTURAS,COSTOS E INGRESOS PROMEDIO
A5: A R T I G A S
B9: 1. COMPOSICION DEL COSTO PROPIO POR CONEXIÓN | C9: OPERATIVOS | D9: 0 | E9: ADMISTRATIVO-COMERCIAL
C11: AGUA | D11: ALCANTARILLADO
C12: ($/conex.agua) | D12: ($/conex.desague) | E12: ($/conex.agua)
B14: RETRIBUCIONES AL PERSONAL | C14: 1077.99 | D14: 524.3879033 | E14: 1235.92
B16: MATERIALES Y SUMINISTROS | C16: 299.94 | D16: 36.87655791 | E16: 102.31
B18: ENERGIA Y FLUÍDOS | C18: 439.9 | D18: 168.194358 | E18: 99.21
B20: SERVICIOS CONTRATADOS | C20: 325.36 | D20: 511.7115828 | E20: 609.95
B22: GASTOS VARIOS | C22: 169.41 | D22: 23.36581197 | E22: 190.46
B24: AMORTIZACIÓN | C24: 700.06 | D24: 780.2082087 | E24: 129.66
B28: TOTAL | C28: 3012.66 | D28: 2044.744423 | E28: 2367.51
B31: 2.CONEXIONES (promedio anual) | C31: 25772 | D31: 10713
B34: 3.COBERTURAS COSTO/INGRESO
B36: 3.1 COSTO DE EXPLOTACION/ INGRESO DE EXPLOT. | C36: 1.36 | D36: 1.15 | E36: 0
B38: 3.3 TOTAL | C38: 1.34 | D38: 1.14
B41: 4.M3 ELEVADOS | C41: 6112220
B43: 5.M3 FACTURADOS | C43: 3083080
B46: 6. COSTO PROMEDIO
B48: 6.1 COSTO VARIABLE/ M3ELEVADOS | C48: 3.58
B50: 6.2 COSTO VARIABLE / M3FACTURADOS | C50: 7.09
B52: 6.3 COSTO EXPLOTACION/M3FACT | C52: 52.08
B54: 6.4 TOTAL/M3FACT | C54: 53.8
B57: 7. INGRESOS PROMEDIO
B59: 7.1 VARIABLE/M3 FACT | C59: 23.91
B61: 7.2 FIJO/CONEXIONES | C61: 121.04
B63: 7.3 INGRESO EXPLOTACION/M3FACT | C63: 38.2
B65: 7.4 TOTAL/M3FACT | C65: 40.12

Sheet A-200-AG-NORESTE
A2: AMBITO GEOGRAFICO NORESTE | B2: ESTADO DE RENDIMIENTO ECONÓMICO (a valores históricos) | G2: PERÍODO ENERO-DICIEMBRE-2014
A4: CONCEPTO | B4: AGUA POTABLE
B5: USINA | C5: PERFORACIÓN | D5: MIXTO | E5: SUB-TOTAL | F5: SANEAMIENTO | G5: OTROS INGRESOS | H5: TOTAL
A6: INGRESOS | B6: 0 | C6: 0 | D6: 0 | E6: 0 | F6: 0 | G6: 0 | H6: 0
A7: Ingresos Variables | B7: 76177178 | C7: 11015264 | D7: 194576493 | E7: 281768935 | H7: 281768935
A8: Ingresos Fijos | B8: 42690839 | C8: 6586356 | D8: 104986429 | E8: 154263624 | H8: 154263624
A9: INGRESOS DE EXPLOTACION | B9: 118868017 | C9: 17601620 | D9: 299562922 | E9: 436032559 | H9: 436032559
A10: Ingresos Alcantarillado | F10: 125860909 | H10: 125860909
A11: Ingresos Upas | G11: 0 | H11: 0
A12: Otros Ingresos | B12: 6258214 | C12: 638046 | D12: 18880017 | E12: 25776277 | F12: 71457 | G12: 0 | H12: 25847734
A13: TOTAL ING. DE EXPLOTACION | B13: 125126231 | C13: 18239666 | D13: 318442939 | E13: 461808836 | F13: 125932366 | G13: 0 | H13: 587741202
A14: COSTOS DE EXPLOTACION | B14: 0 | C14: 0 | D14: 0 | E14: 0 | F14: 0 | G14: 0 | H14: 0
A15: OPERATIVO | B15: 0 | C15: 0 | D15: 0 | E15: 0 | F15: 0 | G15: 0 | H15: 0
A16: Costo Operativo Var | B16: 31711337 | C16: 5035669 | D16: 76605705 | E16: 113352711 | F16: 29253419 | G16: 0 | H16: 142606130
A17: Costo Operativo Fijo | B17: 63930779 | C17: 21818878 | D17: 177174294 | E17: 262923951 | F17: 108596178 | G17: 0 | H17: 371520129
A18: TOTAL OPERATIVO | B18: 95642116 | C18: 26854547 | D18: 253779999 | E18: 376276662 | F18: 137849597 | G18: 0 | H18: 514126259
A19: NO OPERATIVO | B19: 0 | C19: 0 | D19: 0 | E19: 0 | F19: 0 | G19: 0 | H19: 0
A20: COMERCIALIZACION | B20: 0 | C20: 0 | D20: 0 | E20: 0 | F20: 0 | G20: 0 | H20: 0
A21: Comercial Propios | B21: 64419037 | C21: 9773272 | D21: 119211216 | E21: 193403525 | F21: 40869451 | G21: 0 | H21: 234272976
A22: Comercial Asignados | B22: 10760537 | C22: 1568565 | D22: 27385280 | E22: 39714382 | F22: 10829862 | G22: 0 | H22: 50544244
A23: Comercialización Upas | B23: 0 | C23: 0 | D23: 0 | E23: 0 | F23: 0 | G23: 0 | H23: 0
A24: TOTAL COMERCIALIZACION | B24: 75179574 | C24: 11341837 | D24: 146596496 | E24: 233117907 | F24: 51699313 | G24: 0 | H24: 284817220
A25: ADMINISTRACION | B25: 0 | C25: 0 | D25: 0 | E25: 0 | F25: 0 | G25: 0 | H25: 0
A26: Administración Propios | B26: 10781426 | C26: 1708826 | D26: 32865607 | E26: 45355859 | F26: 9596622 | G26: 0 | H26: 54952481
A27: Administ. Asignados | B27: 17210996 | C27: 2508849 | D27: 43801527 | E27: 63521372 | F27: 17321879 | G27: 0 | H27: 80843251
A28: Gastos Fiscales | B28: 6451782 | C28: 940477 | D28: 16419613 | E28: 23811872 | F28: 6493348 | G28: 0 | H28: 30305220
A29: TOTAL ADMINISTRACION | B29: 34444204 | C29: 5158152 | D29: 93086747 | E29: 132689103 | F29: 33411849 | G29: 0 | H29: 166100952
A30: TOTAL NO OPERATIVO | B30: 109623778 | C30: 16499989 | D30: 239683243 | E30: 365807010 | F30: 85111162 | G30: 0 | H30: 450918172
A31: COSTO DE EXPLOTACION | B31: 205265894 | C31: 43354536 | D31: 493463242 | E31: 742083672 | F31: 222960759 | G31: 0 | H31: 965044431
A32: RESULTADO DE EXPLOTACION | B32: -80139663 | C32: -25114870 | D32: -175020303 | E32: -280274836 | F32: -97028393 | G32: 0 | H32: -377303229
A33: DIVERSOS Y EXTRAORDINARIOS | B33: 0 | C33: 0 | D33: 0 | E33: 0 | F33: 0 | G33: 0 | H33: 0
A34: Ingresos Div. y Extr | B34: 2001630 | C34: 291778 | D34: 5094096 | E34: 7387504 | F34: 2014526 | G34: 0 | H34: 9402030
A35: Gtos. Div. y Extraor | B35: 308710 | C35: 45001 | D35: 785659 | E35: 1139370 | F35: 310699 | G35: 0 | H35: 1450069
A36: RESULTADOS DIV. Y EXTRAORDINARIOS | B36: 1692920 | C36: 246777 | D36: 4308437 | E36: 6248134 | F36: 1703827 | G36: 0 | H36: 7951961
A37: FINANCIEROS | B37: 0 | C37: 0 | D37: 0 | E37: 0 | F37: 0 | G37: 0 | H37: 0
A38: Ingresos Financieros | B38: 4281177 | C38: 624068 | D38: 10895482 | E38: 15800727 | F38: 4308759 | G38: 0 | H38: 20109486
A39: Gastos Financieros | B39: 20029876 | C39: 2919757 | D39: 50975504 | E39: 73925137 | F39: 20158920 | G39: 0 | H39: 94084057
A40: RESULTADO FINANCIERO | B40: -15748699 | C40: -2295689 | D40: -40080022 | E40: -58124410 | F40: -15850161 | G40: 0 | H40: -73974571
A41: I.R.A.E. | B41: -14713190 | C41: -2144743 | D41: -37444677 | E41: -54302610 | F41: -14807980 | H41: -69110590
A42: RESULTADO NETO | B42: -79482252 | C42: -25019039 | D42: -173347211 | E42: -277848502 | F42: -96366747 | G42: 0 | H42: -374215249

Sheet B-200-AG-NORESTE
A3: AMBITO GEOGRAFICO NORESTE
C5: C O S T O S T O T A L E S
B9: C O N C E P T O | C9: C O S T O S O P E R A T I V O S
C12: AGUA | D12: ALCANTARILLADO | E12: TOTAL
B14: RETRIBUCIONES AL PERSONAL | C14: 133892117.5 | D14: 29529262 | E14: 163421379.5
B16: MATERIALES Y SUMINISTROS | C16: 30840044.68 | D16: 5833832.48 | E16: 36673877.16
B18: ENERGIA Y FLUÍDOS | C18: 64645129.95 | D18: 16954904.88 | E18: 81600034.83
B20: SERVICIOS CONTRATADOS | C20: 36350170.88 | D20: 31352001.46 | E20: 67702172.34
B22: GASTOS VARIOS | C22: 16833380.23 | D22: 1392855.329 | E22: 18226235.56
B24: AMORTIZACIÓN | C24: 93715818.76 | D24: 52786740.84 | E24: 146502559.6
B27: TOTAL | C27: 376276662 | D27: 137849597 | E27: 514126259 | G27: 0.6399765492
B32: C O N C E P T O | C32: C O S T O D E A D M I N I S T R A T I V O - C O M E R C I A L
C35: COMERCIALIZACION | D35: ADMINISTRACION | E35: TOTAL
B37: RETRIBUCIONES AL PERSONAL | C37: 25882163.86 | D37: 89397489.19 | E37: 115279653
B39: MATERIALES Y SUMINISTROS | C39: 1200207.498 | D39: 8655171.713 | E39: 9855379.211
B41: ENERGIA Y FLUÍDOS | C41: 9863994.943 | D41: 656713.5097 | E41: 10520708.45
B43: SERVICIOS CONTRATADOS | C43: 6873082.199 | D43: 103611980.9 | E43: 110485063.1
B45: GASTOS VARIOS | C45: 3927085.037 | D45: 23457880.6 | E45: 27384965.64
B47: AMORTIZACIÓN | C47: 7205947.467 | D47: 8493740.091 | E47: 15699687.56
B51: TOTAL | C51: 54952481 | D51: 234272976 | E51: 289225457 | G51: 0.3600234508
A56: C O S T O D E E X P L O T A C I O N | G56: 803351716

Sheet C-200-AG-NORESTE
A3: COBERTURAS,COSTOS E INGRESOS PROMEDIO
A5: A M B I T O G E O G R A F I C O N O R E S T E
B9: 1. COMPOSICION DEL COSTO PROPIO POR CONEXIÓN | C9: OPERATIVOS | D9: 0 | E9: ADMISTRATIVO-COMERCIAL
C11: AGUA | D11: ALCANTARILLADO
C12: ($/conex.agua) | D12: ($/conex.desague) | E12: ($/conex.agua)
B14: RETRIBUCIONES AL PERSONAL | C14: 1343.18 | D14: 701.0745965 | E14: 1156.46
B16: MATERIALES Y SUMINISTROS | C16: 309.38 | D16: 138.5050446 | E16: 98.87
B18: ENERGIA Y FLUÍDOS | C18: 648.51 | D18: 402.5381027 | E18: 105.54
B20: SERVICIOS CONTRATADOS | C20: 364.66 | D20: 744.3495124 | E20: 1108.36
B22: GASTOS VARIOS | C22: 168.87 | D22: 33.06874001 | E22: 274.72
B24: AMORTIZACIÓN | C24: 940.14 | D24: 1253.246459 | E24: 157.5
B28: TOTAL | C28: 3774.74 | D28: 3272.782455 | E28: 2901.45
B31: 2.CONEXIONES (promedio anual) | C31: 99683 | D31: 42120
B34: 3.COBERTURAS COSTO/INGRESO
B36: 3.1 COSTO DE EXPLOTACION/ INGRESO DE EXPLOT. | C36: 1.61 | D36: 1.77 | E36: 0
B38: 3.3 TOTAL | C38: 1.57 | D38: 1.73
B41: 4.M3 ELEVADOS | C41: 22859160
B43: 5.M3 FACTURADOS | C43: 10810280
B46: 6. COSTO PROMEDIO
B48: 6.1 COSTO VARIABLE/ M3ELEVADOS | C48: 4.96
B50: 6.2 COSTO VARIABLE / M3FACTURADOS | C50: 10.49
B52: 6.3 COSTO EXPLOTACION/M3FACT | C52: 68.65
B54: 6.4 TOTAL/M3FACT | C54: 70.57
B57: 7. INGRESOS PROMEDIO
B59: 7.1 VARIABLE/M3 FACT | C59: 26.06
B61: 7.2 FIJO/CONEXIONES | C61: 128.96
B63: 7.3 INGRESO EXPLOTACION/M3FACT | C63: 42.72
B65: 7.4 TOTAL/M3FACT | C65: 44.86

Sheet A-RIV-201
A2: RIVERA | B2: ESTADO DE RENDIMIENTO ECONÓMICO (a valores históricos) | G2: PERÍODO ENERO-DICIEMBRE-2014
A4: CONCEPTO | B4: AGUA POTABLE
B5: USINA | C5: PERFORACIÓN | D5: MIXTO | E5: SUB-TOTAL | F5: SANEAMIENTO | G5: OTROS INGRESOS | H5: TOTAL
A6: INGRESOS | B6: 0 | C6: 0 | D6: 0 | E6: 0 | F6: 0 | G6: 0 | H6: 0
A7: Ingresos Variables | B7: 0 | C7: 6196016 | D7: 87680975 | E7: 93876991 | H7: 93876991
A8: Ingresos Fijos | B8: 0 | C8: 3721565 | D8: 47506218 | E8: 51227783 | H8: 51227783
A9: INGRESOS DE EXPLOTACION | B9: 0 | C9: 9917581 | D9: 135187193 | E9: 145104774 | H9: 145104774
A10: Ingresos Alcantarillado | F10: 40184299 | H10: 40184299
A11: Ingresos Upas | G11: 0 | H11: 0
A12: Otros Ingresos | B12: 0 | C12: 405668 | D12: 9343078 | E12: 9748746 | F12: 28144 | G12: 0 | H12: 9776890
A13: TOTAL ING. DE EXPLOTACION | B13: 0 | C13: 10323249 | D13: 144530271 | E13: 154853520 | F13: 40212443 | G13: 0 | H13: 195065963
A14: COSTOS DE EXPLOTACION | B14: 0 | C14: 0 | D14: 0 | E14: 0 | F14: 0 | G14: 0 | H14: 0
A15: OPERATIVO | B15: 0 | C15: 0 | D15: 0 | E15: 0 | F15: 0 | G15: 0 | H15: 0
A16: Costo Operativo Var | B16: 0 | C16: 2678134 | D16: 39530079 | E16: 42208213 | F16: 9035859 | G16: 0 | H16: 51244072
A17: Costo Operativo Fijo | B17: 0 | C17: 5063179 | D17: 86831417 | E17: 91894596 | F17: 54296686 | G17: 0 | H17: 146191282
A18: TOTAL OPERATIVO | B18: 0 | C18: 7741313 | D18: 126361496 | E18: 134102809 | F18: 63332545 | G18: 0 | H18: 197435354
A19: NO OPERATIVO | B19: 0 | C19: 0 | D19: 0 | E19: 0 | F19: 0 | G19: 0 | H19: 0
A20: COMERCIALIZACION | B20: 0 | C20: 0 | D20: 0 | E20: 0 | F20: 0 | G20: 0 | H20: 0
A21: Comercial Propios | B21: 0 | C21: 5046793 | D21: 56242238 | E21: 61289031 | F21: 12738235 | G21: 0 | H21: 74027266
A22: Comercial Asignados | B22: 0 | C22: 887773 | D22: 12429234 | E22: 13317007 | F22: 3458168 | G22: 0 | H22: 16775175
A23: Comercialización Upas | B23: 0 | C23: 0 | D23: 0 | E23: 0 | F23: 0 | G23: 0 | H23: 0
A24: TOTAL COMERCIALIZACION | B24: 0 | C24: 5934566 | D24: 68671472 | E24: 74606038 | F24: 16196403 | G24: 0 | H24: 90802441
A25: ADMINISTRACION | B25: 0 | C25: 0 | D25: 0 | E25: 0 | F25: 0 | G25: 0 | H25: 0
A26: Administración Propios | B26: 0 | C26: 950640 | D26: 10594080 | E26: 11544720 | F26: 2399440 | G26: 0 | H26: 13944160
A27: Administ. Asignados | B27: 0 | C27: 1419953 | D27: 19880003 | E27: 21299956 | F27: 5531184 | G27: 0 | H27: 26831140
A28: Gastos Fiscales | B28: 0 | C28: 532289 | D28: 7452296 | E28: 7984585 | F28: 2073441 | G28: 0 | H28: 10058026
A29: TOTAL ADMINISTRACION | B29: 0 | C29: 2902882 | D29: 37926379 | E29: 40829261 | F29: 10004065 | G29: 0 | H29: 50833326
A30: TOTAL NO OPERATIVO | B30: 0 | C30: 8837448 | D30: 106597851 | E30: 115435299 | F30: 26200468 | G30: 0 | H30: 141635767
A31: COSTO DE EXPLOTACION | B31: 0 | C31: 16578761 | D31: 232959347 | E31: 249538108 | F31: 89533013 | G31: 0 | H31: 339071121
A32: RESULTADO DE EXPLOTACION | B32: 0 | C32: -6255512 | D32: -88429076 | E32: -94684588 | F32: -49320570 | G32: 0 | H32: -144005158
A33: DIVERSOS Y EXTRAORDINARIOS | B33: 0 | C33: 0 | D33: 0 | E33: 0 | F33: 0 | G33: 0 | H33: 0
A34: Ingresos Div. y Extr | B34: 0 | C34: 165139 | D34: 2312035 | E34: 2477174 | F34: 643274 | G34: 0 | H34: 3120448
A35: Gtos. Div. y Extraor | B35: 0 | C35: 25469 | D35: 356583 | E35: 382052 | F35: 99212 | G35: 0 | H35: 481264
A36: RESULTADOS DIV. Y EXTRAORDINARIOS | B36: 0 | C36: 139670 | D36: 1955452 | E36: 2095122 | F36: 544062 | G36: 0 | H36: 2639184
A37: FINANCIEROS | B37: 0 | C37: 0 | D37: 0 | E37: 0 | F37: 0 | G37: 0 | H37: 0
A38: Ingresos Financieros | B38: 0 | C38: 353209 | D38: 4945083 | E38: 5298292 | F38: 1375863 | G38: 0 | H38: 6674155
A39: Gastos Financieros | B39: 0 | C39: 1652518 | D39: 23136024 | E39: 24788542 | F39: 6437102 | G39: 0 | H39: 31225644
A40: RESULTADO FINANCIERO | B40: 0 | C40: -1299309 | D40: -18190941 | E40: -19490250 | F40: -5061239 | G40: 0 | H40: -24551489
A41: I.R.A.E. | B41: 0 | C41: -1213878 | D41: -16994848 | E41: -18208726 | F41: -4728451 | H41: -22937177
A42: RESULTADO NETO | B42: 0 | C42: -6201273 | D42: -87669717 | E42: -93870990 | F42: -49109296 | G42: 0 | H42: -142980286

Sheet B-RIV-201
A3: R I V E R A
C5: C O S T O S T O T A L E S
B9: C O N C E P T O | C9: C O S T O S O P E R A T I V O S
C12: AGUA | D12: ALCANTARILLADO | E12: TOTAL
B14: RETRIBUCIONES AL PERSONAL | C14: 36447555.98 | D14: 11199070.84 | E14: 47646626.82
B16: MATERIALES Y SUMINISTROS | C16: 6144434.264 | D16: 1403100.936 | E16: 7547535.199
B18: ENERGIA Y FLUÍDOS | C18: 27512634.21 | D18: 4795119.03 | E18: 32307753.24
B20: SERVICIOS CONTRATADOS | C20: 26623937.51 | D20: 24008873.41 | E20: 50632810.92
B22: GASTOS VARIOS | C22: 4803784.397 | D22: 738749.3882 | E22: 5542533.785
B24: AMORTIZACIÓN | C24: 32570462.64 | D24: 21187631.39 | E24: 53758094.04
B27: TOTAL | C27: 134102809 | D27: 63332545 | E27: 197435354 | G27: 0.6917682684
B32: C O N C E P T O | C32: C O S T O D E A D M I N I S T R A T I V O - C O M E R C I A L
C35: COMERCIALIZACION | D35: ADMINISTRACION | E35: TOTAL
B37: RETRIBUCIONES AL PERSONAL | C37: 29662583.68 | D37: 5354616.84 | E37: 35017200.52
B39: MATERIALES Y SUMINISTROS | C39: 2582253.703 | D39: 268699.9403 | E39: 2850953.643
B41: ENERGIA Y FLUÍDOS | C41: 143650.8793 | D41: 3095845.219 | E41: 3239496.098
B43: SERVICIOS CONTRATADOS | C43: 29078415.97 | D43: 1700617.368 | E43: 30779033.34
B45: GASTOS VARIOS | C45: 9887153.334 | D45: 1183475.514 | E45: 11070628.85
B47: AMORTIZACIÓN | C47: 2673208.437 | D47: 2340905.119 | E47: 5014113.556
B51: TOTAL | C51: 74027266 | D51: 13944160 | E51: 87971426 | G51: 0.3082317316
A56: C O S T O D E E X P L O T A C I O N | G56: 285406780

Sheet C-RIV-201
A3: COBERTURAS,COSTOS E INGRESOS PROMEDIO
A5: R I V E R A
B9: 1. COMPOSICION DEL COSTO PROPIO POR CONEXIÓN | C9: OPERATIVOS | D9: 0 | E9: ADMISTRATIVO-COMERCIAL
C11: AGUA | D11: ALCANTARILLADO
C12: ($/conex.agua) | D12: ($/conex.desague) | E12: ($/conex.agua)
B14: RETRIBUCIONES AL PERSONAL | C14: 1135.54 | D14: 839.3847128 | E14: 1090.98
B16: MATERIALES Y SUMINISTROS | C16: 191.43 | D16: 105.1642134 | E16: 88.82
B18: ENERGIA Y FLUÍDOS | C18: 857.17 | D18: 359.400317 | E18: 100.93
B20: SERVICIOS CONTRATADOS | C20: 829.48 | D20: 1799.495834 | E20: 958.94
B22: GASTOS VARIOS | C22: 149.66 | D22: 55.37021348 | E22: 344.91
B24: AMORTIZACIÓN | C24: 1014.75 | D24: 1588.040128 | E24: 156.22
B28: TOTAL | C28: 4178.03 | D28: 4746.855419 | E28: 2740.8
B31: 2.CONEXIONES (promedio anual) | C31: 32097 | D31: 13342
B34: 3.COBERTURAS COSTO/INGRESO
B36: 3.1 COSTO DE EXPLOTACION/ INGRESO DE EXPLOT. | C36: 1.61 | D36: 2.23 | E36: 0
B38: 3.3 TOTAL | C38: 1.58 | D38: 2.16
B41: 4.M3 ELEVADOS | C41: 8219880
B43: 5.M3 FACTURADOS | C43: 3623540
B46: 6. COSTO PROMEDIO
B48: 6.1 COSTO VARIABLE/ M3ELEVADOS | C48: 5.13
B50: 6.2 COSTO VARIABLE / M3FACTURADOS | C50: 11.65
B52: 6.3 COSTO EXPLOTACION/M3FACT | C52: 68.87
B54: 6.4 TOTAL/M3FACT | C54: 70.79
B57: 7. INGRESOS PROMEDIO
B59: 7.1 VARIABLE/M3 FACT | C59: 25.91
B61: 7.2 FIJO/CONEXIONES | C61: 133
B63: 7.3 INGRESO EXPLOTACION/M3FACT | C63: 42.74
B65: 7.4 TOTAL/M3FACT | C65: 44.88

Sheet A-TAC-202
A2: TACUAREMBO | B2: ESTADO DE RENDIMIENTO ECONÓMICO (a valores históricos) | G2: PERÍODO ENERO-DICIEMBRE-2014
A4: CONCEPTO | B4: AGUA POTABLE
B5: USINA | C5: PERFORACIÓN | D5: MIXTO | E5: SUB-TOTAL | F5: SANEAMIENTO | G5: OTROS INGRESOS | H5: TOTAL
A6: INGRESOS | B6: 0 | C6: 0 | D6: 0 | E6: 0 | F6: 0 | G6: 0 | H6: 0
A7: Ingresos Variables | B7: 2644611 | C7: 0 | D7: 91092275 | E7: 93736886 | H7: 93736886
A8: Ingresos Fijos | B8: 1840225 | C8: 0 | D8: 48241764 | E8: 50081989 | H8: 50081989
A9: INGRESOS DE EXPLOTACION | B9: 4484836 | C9: 0 | D9: 139334039 | E9: 143818875 | H9: 143818875
A10: Ingresos Alcantarillado | F10: 41981186 | H10: 41981186
A11: Ingresos Upas | G11: 0 | H11: 0
A12: Otros Ingresos | B12: 168133 | C12: 0 | D12: 8150668 | E12: 8318801 | F12: 43313 | G12: 0 | H12: 8362114
A13: TOTAL ING. DE EXPLOTACION | B13: 4652969 | C13: 0 | D13: 147484707 | E13: 152137676 | F13: 42024499 | G13: 0 | H13: 194162175
A14: COSTOS DE EXPLOTACION | B14: 0 | C14: 0 | D14: 0 | E14: 0 | F14: 0 | G14: 0 | H14: 0
A15: OPERATIVO | B15: 0 | C15: 0 | D15: 0 | E15: 0 | F15: 0 | G15: 0 | H15: 0
A16: Costo Operativo Var | B16: 1743911 | C16: 0 | D16: 28666809 | E16: 30410720 | F16: 9011329 | G16: 0 | H16: 39422049
A17: Costo Operativo Fijo | B17: 9924634 | C17: 0 | D17: 59647025 | E17: 69571659 | F17: 24914939 | G17: 0 | H17: 94486598
A18: TOTAL OPERATIVO | B18: 11668545 | C18: 0 | D18: 88313834 | E18: 99982379 | F18: 33926268 | G18: 0 | H18: 133908647
A19: NO OPERATIVO | B19: 0 | C19: 0 | D19: 0 | E19: 0 | F19: 0 | G19: 0 | H19: 0
A20: COMERCIALIZACION | B20: 0 | C20: 0 | D20: 0 | E20: 0 | F20: 0 | G20: 0 | H20: 0
A21: Comercial Propios | B21: 1725495 | C21: 0 | D21: 46894198 | E21: 48619693 | F21: 10343978 | G21: 0 | H21: 58963671
A22: Comercial Asignados | B22: 400143 | C22: 0 | D22: 12683309 | E22: 13083452 | F22: 3614000 | G22: 0 | H22: 16697452
A23: Comercialización Upas | B23: 0 | C23: 0 | D23: 0 | E23: 0 | F23: 0 | G23: 0 | H23: 0
A24: TOTAL COMERCIALIZACION | B24: 2125638 | C24: 0 | D24: 59577507 | E24: 61703145 | F24: 13957978 | G24: 0 | H24: 75661123
A25: ADMINISTRACION | B25: 0 | C25: 0 | D25: 0 | E25: 0 | F25: 0 | G25: 0 | H25: 0
A26: Administración Propios | B26: 724611 | C26: 0 | D26: 19692935 | E26: 20417546 | F26: 4343891 | G26: 0 | H26: 24761437
A27: Administ. Asignados | B27: 640011 | C27: 0 | D27: 20286383 | E27: 20926394 | F27: 5780430 | G27: 0 | H27: 26706824
A28: Gastos Fiscales | B28: 239917 | C28: 0 | D28: 7604634 | E28: 7844551 | F28: 2166875 | G28: 0 | H28: 10011426
A29: TOTAL ADMINISTRACION | B29: 1604539 | C29: 0 | D29: 47583952 | E29: 49188491 | F29: 12291196 | G29: 0 | H29: 61479687
A30: TOTAL NO OPERATIVO | B30: 3730177 | C30: 0 | D30: 107161459 | E30: 110891636 | F30: 26249174 | G30: 0 | H30: 137140810
A31: COSTO DE EXPLOTACION | B31: 15398722 | C31: 0 | D31: 195475293 | E31: 210874015 | F31: 60175442 | G31: 0 | H31: 271049457
A32: RESULTADO DE EXPLOTACION | B32: -10745753 | C32: 0 | D32: -47990586 | E32: -58736339 | F32: -18150943 | G32: 0 | H32: -76887282
A33: DIVERSOS Y EXTRAORDINARIOS | B33: 0 | C33: 0 | D33: 0 | E33: 0 | F33: 0 | G33: 0 | H33: 0
A34: Ingresos Div. y Extr | B34: 74433 | C34: 0 | D34: 2359296 | E34: 2433729 | F34: 672261 | G34: 0 | H34: 3105990
A35: Gtos. Div. y Extraor | B35: 11480 | C35: 0 | D35: 363872 | E35: 375352 | F35: 103682 | G35: 0 | H35: 479034
A36: RESULTADOS DIV. Y EXTRAORDINARIOS | B36: 62953 | C36: 0 | D36: 1995424 | E36: 2058377 | F36: 568579 | G36: 0 | H36: 2626956
A37: FINANCIEROS | B37: 0 | C37: 0 | D37: 0 | E37: 0 | F37: 0 | G37: 0 | H37: 0
A38: Ingresos Financieros | B38: 159201 | C38: 0 | D38: 5046169 | E38: 5205370 | F38: 1437862 | G38: 0 | H38: 6643232
A39: Gastos Financieros | B39: 744835 | C39: 0 | D39: 23608962 | E39: 24353797 | F39: 6727171 | G39: 0 | H39: 31080968
A40: RESULTADO FINANCIERO | B40: -585634 | C40: 0 | D40: -18562793 | E40: -19148427 | F40: -5289309 | G40: 0 | H40: -24437736
A41: I.R.A.E. | B41: -547128 | C41: 0 | D41: -17342251 | E41: -17889379 | F41: -4941525 | H41: -22830904
A42: RESULTADO NETO | B42: -10721306 | C42: 0 | D42: -47215704 | E42: -57937010 | F42: -17930148 | G42: 0 | H42: -75867158

Sheet B-TAC-202
A3: T A C U A R E M B O
C5: C O S T O S T O T A L E S
B9: C O N C E P T O | C9: C O S T O S O P E R A T I V O S
C12: AGUA | D12: ALCANTARILLADO | E12: TOTAL
B14: RETRIBUCIONES AL PERSONAL | C14: 38112615.55 | D14: 11536887.6 | E14: 49649503.14
B16: MATERIALES Y SUMINISTROS | C16: 11234031.5 | D16: 2944675.185 | E16: 14178706.68
B18: ENERGIA Y FLUÍDOS | C18: 16817372.68 | D18: 5054215.682 | E18: 21871588.36
B20: SERVICIOS CONTRATADOS | C20: 2599970.829 | D20: 1521457.37 | E20: 4121428.199
B22: GASTOS VARIOS | C22: 4409880.069 | D22: 411467.5693 | E22: 4821347.638
B24: AMORTIZACIÓN | C24: 26808508.38 | D24: 12457564.6 | E24: 39266072.98
B27: TOTAL | C27: 99982379 | D27: 33926268 | E27: 133908647 | G27: 0.6152935559
B32: C O N C E P T O | C32: C O S T O D E A D M I N I S T R A T I V O - C O M E R C I A L
C35: COMERCIALIZACION | D35: ADMINISTRACION | E35: TOTAL
B37: RETRIBUCIONES AL PERSONAL | C37: 23829939.82 | D37: 13873362.22 | E37: 37703302.04
B39: MATERIALES Y SUMINISTROS | C39: 2849886.446 | D39: 350038.9357 | E39: 3199925.382
B41: ENERGIA Y FLUÍDOS | C41: 124700.7886 | D41: 3281172.117 | E41: 3405872.906
B43: SERVICIOS CONTRATADOS | C43: 23561471.59 | D43: 2786757.578 | E43: 26348229.17
B45: GASTOS VARIOS | C45: 6039637.074 | D45: 1567345.573 | E45: 7606982.647
B47: AMORTIZACIÓN | C47: 2558035.278 | D47: 2902760.578 | E47: 5460795.856
B51: TOTAL | C51: 58963671 | D51: 24761437 | E51: 83725108 | G51: 0.3847064441
A56: C O S T O D E E X P L O T A C I O N | G56: 217633755

Sheet C-TAC-202
A3: COBERTURAS,COSTOS E INGRESOS PROMEDIO
A5: T A C U A R E M B O
B9: 1. COMPOSICION DEL COSTO PROPIO POR CONEXIÓN | C9: OPERATIVOS | D9: 0 | E9: ADMISTRATIVO-COMERCIAL
C11: AGUA | D11: ALCANTARILLADO
C12: ($/conex.agua) | D12: ($/conex.desague) | E12: ($/conex.agua)
B14: RETRIBUCIONES AL PERSONAL | C14: 1175.15 | D14: 836.0063476 | E14: 1162.53
B16: MATERIALES Y SUMINISTROS | C16: 346.39 | D16: 213.3822598 | E16: 98.67
B18: ENERGIA Y FLUÍDOS | C18: 518.54 | D18: 366.2475132 | E18: 105.02
B20: SERVICIOS CONTRATADOS | C20: 80.17 | D20: 110.2505341 | E20: 812.41
B22: GASTOS VARIOS | C22: 135.97 | D22: 29.81649053 | E22: 234.55
B24: AMORTIZACIÓN | C24: 826.61 | D24: 902.7220722 | E24: 168.38
B28: TOTAL | C28: 3082.83 | D28: 2458.425217 | E28: 2581.56
B31: 2.CONEXIONES (promedio anual) | C31: 32432 | D31: 13800
B34: 3.COBERTURAS COSTO/INGRESO
B36: 3.1 COSTO DE EXPLOTACION/ INGRESO DE EXPLOT. | C36: 1.39 | D36: 1.43 | E36: 0
B38: 3.3 TOTAL | C38: 1.36 | D38: 1.41
B41: 4.M3 ELEVADOS | C41: 7639480
B43: 5.M3 FACTURADOS | C43: 3604650
B46: 6. COSTO PROMEDIO
B48: 6.1 COSTO VARIABLE/ M3ELEVADOS | C48: 3.98
B50: 6.2 COSTO VARIABLE / M3FACTURADOS | C50: 8.44
B52: 6.3 COSTO EXPLOTACION/M3FACT | C52: 58.5
B54: 6.4 TOTAL/M3FACT | C54: 60.4
B57: 7. INGRESOS PROMEDIO
B59: 7.1 VARIABLE/M3 FACT | C59: 26
B61: 7.2 FIJO/CONEXIONES | C61: 128.68
B63: 7.3 INGRESO EXPLOTACION/M3FACT | C63: 42.21
B65: 7.4 TOTAL/M3FACT | C65: 44.33

Sheet A-CL-204
A2: CERRO LARGO | B2: ESTADO DE RENDIMIENTO ECONÓMICO (a valores históricos) | G2: PERÍODO ENERO-DICIEMBRE-2014
A4: CONCEPTO | B4: AGUA POTABLE
B5: USINA | C5: PERFORACIÓN | D5: MIXTO | E5: SUB-TOTAL | F5: SANEAMIENTO | G5: OTROS INGRESOS | H5: TOTAL
A6: INGRESOS | B6: 0 | C6: 0 | D6: 0 | E6: 0 | F6: 0 | G6: 0 | H6: 0
A7: Ingresos Variables | B7: 73532568 | C7: 4819249 | D7: 15803244 | E7: 94155061 | H7: 94155061
A8: Ingresos Fijos | B8: 40850615 | C8: 2864790 | D8: 9238449 | E8: 52953854 | H8: 52953854
A9: INGRESOS DE EXPLOTACION | B9: 114383183 | C9: 7684039 | D9: 25041693 | E9: 147108915 | H9: 147108915
A10: Ingresos Alcantarillado | F10: 43695424 | H10: 43695424
A11: Ingresos Upas | G11: 0 | H11: 0
A12: Otros Ingresos | B12: 6090080 | C12: 232378 | D12: 1386272 | E12: 7708730 | F12: 0 | G12: 0 | H12: 7708730
A13: TOTAL ING. DE EXPLOTACION | B13: 120473263 | C13: 7916417 | D13: 26427965 | E13: 154817645 | F13: 43695424 | G13: 0 | H13: 198513069
A14: COSTOS DE EXPLOTACION | B14: 0 | C14: 0 | D14: 0 | E14: 0 | F14: 0 | G14: 0 | H14: 0
A15: OPERATIVO | B15: 0 | C15: 0 | D15: 0 | E15: 0 | F15: 0 | G15: 0 | H15: 0
A16: Costo Operativo Var | B16: 29967427 | C16: 2357536 | D16: 8408816 | E16: 40733779 | F16: 11206230 | G16: 0 | H16: 51940009
A17: Costo Operativo Fijo | B17: 54006144 | C17: 16755701 | D17: 30695853 | E17: 101457698 | F17: 29384550 | G17: 0 | H17: 130842248
A18: TOTAL OPERATIVO | B18: 83973571 | C18: 19113237 | D18: 39104669 | E18: 142191477 | F18: 40590780 | G18: 0 | H18: 182782257
A19: NO OPERATIVO | B19: 0 | C19: 0 | D19: 0 | E19: 0 | F19: 0 | G19: 0 | H19: 0
A20: COMERCIALIZACION | B20: 0 | C20: 0 | D20: 0 | E20: 0 | F20: 0 | G20: 0 | H20: 0
A21: Comercial Propios | B21: 62693542 | C21: 4726479 | D21: 16074779 | E21: 83494800 | F21: 17787239 | G21: 0 | H21: 101282039
A22: Comercial Asignados | B22: 10360394 | C22: 680791 | D22: 2272737 | E22: 13313922 | F22: 3757693 | G22: 0 | H22: 17071615
A23: Comercialización Upas | B23: 0 | C23: 0 | D23: 0 | E23: 0 | F23: 0 | G23: 0 | H23: 0
A24: TOTAL COMERCIALIZACION | B24: 73053936 | C24: 5407270 | D24: 18347516 | E24: 96808722 | F24: 21544932 | G24: 0 | H24: 118353654
A25: ADMINISTRACION | B25: 0 | C25: 0 | D25: 0 | E25: 0 | F25: 0 | G25: 0 | H25: 0
A26: Administración Propios | B26: 10056815 | C26: 758185 | D26: 2578591 | E26: 13393591 | F26: 2853290 | G26: 0 | H26: 16246881
A27: Administ. Asignados | B27: 16570985 | C27: 1088896 | D27: 3635141 | E27: 21295022 | F27: 6010265 | G27: 0 | H27: 27305287
A28: Gastos Fiscales | B28: 6211865 | C28: 408187 | D28: 1362681 | E28: 7982733 | F28: 2253027 | G28: 0 | H28: 10235760
A29: TOTAL ADMINISTRACION | B29: 32839665 | C29: 2255268 | D29: 7576413 | E29: 42671346 | F29: 11116582 | G29: 0 | H29: 53787928
A30: TOTAL NO OPERATIVO | B30: 105893601 | C30: 7662538 | D30: 25923929 | E30: 139480068 | F30: 32661514 | G30: 0 | H30: 172141582
A31: COSTO DE EXPLOTACION | B31: 189867172 | C31: 26775775 | D31: 65028598 | E31: 281671545 | F31: 73252294 | G31: 0 | H31: 354923839
A32: RESULTADO DE EXPLOTACION | B32: -69393909 | C32: -18859358 | D32: -38600633 | E32: -126853900 | F32: -29556870 | G32: 0 | H32: -156410770
A33: DIVERSOS Y EXTRAORDINARIOS | B33: 0 | C33: 0 | D33: 0 | E33: 0 | F33: 0 | G33: 0 | H33: 0
A34: Ingresos Div. y Extr | B34: 1927196 | C34: 126639 | D34: 422763 | E34: 2476598 | F34: 698989 | G34: 0 | H34: 3175587
A35: Gtos. Div. y Extraor | B35: 297231 | C35: 19532 | D35: 65202 | E35: 381965 | F35: 107805 | G35: 0 | H35: 489770
A36: RESULTADOS DIV. Y EXTRAORDINARIOS | B36: 1629965 | C36: 107107 | D36: 357561 | E36: 2094633 | F36: 591184 | G36: 0 | H36: 2685817
A37: FINANCIEROS | B37: 0 | C37: 0 | D37: 0 | E37: 0 | F37: 0 | G37: 0 | H37: 0
A38: Ingresos Financieros | B38: 4121975 | C38: 270857 | D38: 904227 | E38: 5297059 | F38: 1495034 | G38: 0 | H38: 6792093
A39: Gastos Financieros | B39: 19285040 | C39: 1267241 | D39: 4230519 | E39: 24782800 | F39: 6994646 | G39: 0 | H39: 31777446
A40: RESULTADO FINANCIERO | B40: -15163065 | C40: -996384 | D40: -3326292 | E40: -19485741 | F40: -5499612 | G40: 0 | H40: -24985353
A41: I.R.A.E. | B41: -14166060 | C41: -930864 | D41: -3107578 | E41: -18204502 | F41: -5138004 | H41: -23342506
A42: RESULTADO NETO | B42: -68760949 | C42: -18817771 | D42: -38461786 | E42: -126040506 | F42: -29327294 | G42: 0 | H42: -155367800

Sheet B-CL-204
A3: C E R R O L A R G O
C5: C O S T O S T O T A L E S
B9: C O N C E P T O | C9: C O S T O S O P E R A T I V O S
C12: AGUA | D12: ALCANTARILLADO | E12: TOTAL
B14: RETRIBUCIONES AL PERSONAL | C14: 59331945.98 | D14: 6793303.568 | E14: 66125249.55
B16: MATERIALES Y SUMINISTROS | C16: 13461578.92 | D16: 1486056.36 | E16: 14947635.28
B18: ENERGIA Y FLUÍDOS | C18: 20315123.06 | D18: 7105570.173 | E18: 27420693.23
B20: SERVICIOS CONTRATADOS | C20: 7126262.541 | D20: 5821670.68 | E20: 12947933.22
B22: GASTOS VARIOS | C22: 7619715.765 | D22: 242638.3717 | E22: 7862354.137
B24: AMORTIZACIÓN | C24: 34336850.74 | D24: 19141540.85 | E24: 53478391.58
B27: TOTAL | C27: 142191477 | D27: 40590780 | E27: 182782257 | G27: 0.6086428711
B32: C O N C E P T O | C32: C O S T O D E A D M I N I S T R A T I V O - C O M E R C I A L
C35: COMERCIALIZACION | D35: ADMINISTRACION | E35: TOTAL
B37: RETRIBUCIONES AL PERSONAL | C37: 35904965.69 | D37: 6654184.798 | E37: 42559150.48
B39: MATERIALES Y SUMINISTROS | C39: 3223031.565 | D39: 581468.6217 | E39: 3804500.187
B41: ENERGIA Y FLUÍDOS | C41: 388361.8418 | D41: 3486977.607 | E41: 3875339.449
B43: SERVICIOS CONTRATADOS | C43: 50972093.34 | D43: 2385707.253 | E43: 53357800.59
B45: GASTOS VARIOS | C45: 7531090.194 | D45: 1176263.95 | E45: 8707354.144
B47: AMORTIZACIÓN | C47: 3262496.376 | D47: 1962278.77 | E47: 5224775.146
B51: TOTAL | C51: 101282039 | D51: 16246881 | E51: 117528920 | G51: 0.3913571289
A56: C O S T O D E E X P L O T A C I O N | G56: 300311177

Sheet C-CL-204
A3: COBERTURAS,COSTOS E INGRESOS PROMEDIO
A5: C E R R O L A R G O
B9: 1. COMPOSICION DEL COSTO PROPIO POR CONEXIÓN | C9: OPERATIVOS | D9: 0 | E9: ADMISTRATIVO-COMERCIAL
C11: AGUA | D11: ALCANTARILLADO
C12: ($/conex.agua) | D12: ($/conex.desague) | E12: ($/conex.agua)
B14: RETRIBUCIONES AL PERSONAL | C14: 1687.77 | D14: 453.5521143 | E14: 1210.65
B16: MATERIALES Y SUMINISTROS | C16: 382.93 | D16: 99.2159407 | E16: 108.22
B18: ENERGIA Y FLUÍDOS | C18: 577.89 | D18: 474.4004655 | E18: 110.24
B20: SERVICIOS CONTRATADOS | C20: 202.72 | D20: 388.6814448 | E20: 1517.83
B22: GASTOS VARIOS | C22: 216.75 | D22: 16.19965093 | E22: 247.69
B24: AMORTIZACIÓN | C24: 976.76 | D24: 1277.97709 | E24: 148.63
B28: TOTAL | C28: 4044.82 | D28: 2710.026706 | E28: 3343.26
B31: 2.CONEXIONES (promedio anual) | C31: 35154 | D31: 14978
B34: 3.COBERTURAS COSTO/INGRESO
B36: 3.1 COSTO DE EXPLOTACION/ INGRESO DE EXPLOT. | C36: 1.82 | D36: 1.68 | E36: 0
B38: 3.3 TOTAL | C38: 1.78 | D38: 1.64
B41: 4.M3 ELEVADOS | C41: 6999800
B43: 5.M3 FACTURADOS | C43: 3582090
B46: 6. COSTO PROMEDIO
B48: 6.1 COSTO VARIABLE/ M3ELEVADOS | C48: 5.82
B50: 6.2 COSTO VARIABLE / M3FACTURADOS | C50: 11.37
B52: 6.3 COSTO EXPLOTACION/M3FACT | C52: 78.63
B54: 6.4 TOTAL/M3FACT | C54: 80.58
B57: 7. INGRESOS PROMEDIO
B59: 7.1 VARIABLE/M3 FACT | C59: 26.28
B61: 7.2 FIJO/CONEXIONES | C61: 125.53
B63: 7.3 INGRESO EXPLOTACION/M3FACT | C63: 43.22
B65: 7.4 TOTAL/M3FACT | C65: 45.39

Sheet A-500-AG-SURESTE
A2: AMBITO GEOGRAFICO SURESTE | B2: ESTADO DE RENDIMIENTO ECONÓMICO (a valores históricos) | G2: PERÍODO ENERO-DICIEMBRE-2014
A4: CONCEPTO | B4: AGUA POTABLE
B5: USINA | C5: PERFORACIÓN | D5: MIXTO | E5: SUB-TOTAL | F5: SANEAMIENTO | G5: OTROS INGRESOS | H5: TOTAL
A6: INGRESOS | B6: 0 | C6: 0 | D6: 0 | E6: 0 | F6: 0 | G6: 0 | H6: 0
A7: Ingresos Variables | B7: 154894049 | C7: 44673025 | D7: 22749149 | E7: 222316223 | H7: 222316223
A8: Ingresos Fijos | B8: 91570063 | C8: 38518612 | D8: 17885064 | E8: 147973739 | H8: 147973739
A9: INGRESOS DE EXPLOTACION | B9: 246464112 | C9: 83191637 | D9: 40634213 | E9: 370289962 | H9: 370289962
A10: Ingresos Alcantarillado | F10: 81974984 | H10: 81974984
A11: Ingresos Upas | G11: 0 | H11: 0
A12: Otros Ingresos | B12: 14193181 | C12: 4764504 | D12: 2404906 | E12: 21362591 | F12: 11016 | G12: 0 | H12: 21373607
A13: TOTAL ING. DE EXPLOTACION | B13: 260657293 | C13: 87956141 | D13: 43039119 | E13: 391652553 | F13: 81986000 | G13: 0 | H13: 473638553
A14: COSTOS DE EXPLOTACION | B14: 0 | C14: 0 | D14: 0 | E14: 0 | F14: 0 | G14: 0 | H14: 0
A15: OPERATIVO | B15: 0 | C15: 0 | D15: 0 | E15: 0 | F15: 0 | G15: 0 | H15: 0
A16: Costo Operativo Var | B16: 49718948 | C16: 17210643 | D16: 10633306 | E16: 77562897 | F16: 16501591 | G16: 0 | H16: 94064488
A17: Costo Operativo Fijo | B17: 130143803 | C17: 52287708 | D17: 44984305 | E17: 227415816 | F17: 73346811 | G17: 0 | H17: 300762627
A18: TOTAL OPERATIVO | B18: 179862751 | C18: 69498351 | D18: 55617611 | E18: 304978713 | F18: 89848402 | G18: 0 | H18: 394827115
A19: NO OPERATIVO | B19: 0 | C19: 0 | D19: 0 | E19: 0 | F19: 0 | G19: 0 | H19: 0
A20: COMERCIALIZACION | B20: 0 | C20: 0 | D20: 0 | E20: 0 | F20: 0 | G20: 0 | H20: 0
A21: Comercial Propios | B21: 80120475 | C21: 29750649 | D21: 16096990 | E21: 125968114 | F21: 19134430 | G21: 0 | H21: 145102544
A22: Comercial Asignados | B22: 22415862 | C22: 7564004 | D22: 3701254 | E22: 33681120 | F22: 7050587 | G22: 0 | H22: 40731707
A23: Comercialización Upas | B23: 0 | C23: 0 | D23: 0 | E23: 0 | F23: 0 | G23: 0 | H23: 0
A24: TOTAL COMERCIALIZACION | B24: 102536337 | C24: 37314653 | D24: 19798244 | E24: 159649234 | F24: 26185017 | G24: 0 | H24: 185834251
A25: ADMINISTRACION | B25: 0 | C25: 0 | D25: 0 | E25: 0 | F25: 0 | G25: 0 | H25: 0
A26: Administración Propios | B26: 55740918 | C26: 20153218 | D26: 10722110 | E26: 86616246 | F26: 13043918 | G26: 0 | H26: 99660164
A27: Administ. Asignados | B27: 35853165 | C27: 12098284 | D27: 5919990 | E27: 53871439 | F27: 11277097 | G27: 0 | H27: 65148536
A28: Gastos Fiscales | B28: 13440059 | C28: 4535211 | D28: 2219191 | E28: 20194461 | F28: 4227377 | G28: 0 | H28: 24421838
A29: TOTAL ADMINISTRACION | B29: 105034142 | C29: 36786713 | D29: 18861291 | E29: 160682146 | F29: 28548392 | G29: 0 | H29: 189230538
A30: TOTAL NO OPERATIVO | B30: 207570479 | C30: 74101366 | D30: 38659535 | E30: 320331380 | F30: 54733409 | G30: 0 | H30: 375064789
A31: COSTO DE EXPLOTACION | B31: 387433230 | C31: 143599717 | D31: 94277146 | E31: 625310093 | F31: 144581811 | G31: 0 | H31: 769891904
A32: RESULTADO DE EXPLOTACION | B32: -126775937 | C32: -55643576 | D32: -51238027 | E32: -233657540 | F32: -62595811 | G32: 0 | H32: -296253351
A33: DIVERSOS Y EXTRAORDINARIOS | B33: 0 | C33: 0 | D33: 0 | E33: 0 | F33: 0 | G33: 0 | H33: 0
A34: Ingresos Div. y Extr | B34: 4169706 | C34: 1407025 | D34: 688491 | E34: 6265222 | F34: 1311523 | G34: 0 | H34: 7576745
A35: Gtos. Div. y Extraor | B35: 643090 | C35: 217003 | D35: 106186 | E35: 966279 | F35: 202275 | G35: 0 | H35: 1168554
A36: RESULTADOS DIV. Y EXTRAORDINARIOS | B36: 3526616 | C36: 1190022 | D36: 582305 | E36: 5298943 | F36: 1109248 | G36: 0 | H36: 6408191
A37: FINANCIEROS | B37: 0 | C37: 0 | D37: 0 | E37: 0 | F37: 0 | G37: 0 | H37: 0
A38: Ingresos Financieros | B38: 8918354 | C38: 3009408 | D38: 1472577 | E38: 13400339 | F38: 2805139 | G38: 0 | H38: 16205478
A39: Gastos Financieros | B39: 41725331 | C39: 14079787 | D39: 6889588 | E39: 62694706 | F39: 13124103 | G39: 0 | H39: 75818809
A40: RESULTADO FINANCIERO | B40: -32806977 | C40: -11070379 | D40: -5417011 | E40: -49294367 | F40: -10318964 | G40: 0 | H40: -59613331
A41: I.R.A.E. | B41: -30649850 | C41: -10342479 | D41: -5060831 | E41: -46053160 | F41: -9640470 | H41: -55693630
A42: RESULTADO NETO | B42: -125406448 | C42: -55181454 | D42: -51011902 | E42: -231599804 | F42: -62165057 | G42: 0 | H42: -293764861

Sheet B-500-AG-SURESTE
A3: AMBITO GEOGRAFICO SURESTE
C5: C O S T O S T O T A L E S
B9: C O N C E P T O | C9: C O S T O S O P E R A T I V O S
C12: AGUA | D12: ALCANTARILLADO | E12: TOTAL
B14: RETRIBUCIONES AL PERSONAL | C14: 116493751.3 | D14: 29192038.09 | E14: 145685789.4
B16: MATERIALES Y SUMINISTROS | C16: 22017510.92 | D16: 2908544.403 | E16: 24926055.32
B18: ENERGIA Y FLUÍDOS | C18: 44415668.73 | D18: 9180592.085 | E18: 53596260.82
B20: SERVICIOS CONTRATADOS | C20: 18350679.18 | D20: 8294060.833 | E20: 26644740.01
B22: GASTOS VARIOS | C22: 12902704.28 | D22: 3244138.677 | E22: 16146842.96
B24: AMORTIZACIÓN | C24: 90798398.57 | D24: 37029027.91 | E24: 127827426.5
B27: TOTAL | C27: 304978713 | D27: 89848402 | E27: 394827115 | G27: 0.6173130041
B32: C O N C E P T O | C32: C O S T O D E A D M I N I S T R A T I V O - C O M E R C I A L
C35: COMERCIALIZACION | D35: ADMINISTRACION | E35: TOTAL
B37: RETRIBUCIONES AL PERSONAL | C37: 86849934.29 | D37: 32129805.07 | E37: 118979739.4
B39: MATERIALES Y SUMINISTROS | C39: 6006250.527 | D39: 1478446.962 | E39: 7484697.489
B41: ENERGIA Y FLUÍDOS | C41: 361148.7245 | D41: 9277982.237 | E41: 9639130.961
B43: SERVICIOS CONTRATADOS | C43: 34473462.74 | D43: 12219745.23 | E43: 46693207.97
B45: GASTOS VARIOS | C45: 9152506.794 | D45: 12374126.35 | E45: 21526633.14
B47: AMORTIZACIÓN | C47: 8259240.923 | D47: 32180058.15 | E47: 40439299.08
B51: TOTAL | C51: 145102544 | D51: 99660164 | E51: 244762708 | G51: 0.3826869959
A56: C O S T O D E E X P L O T A C I O N | G56: 639589823

Sheet C-500-AG-SURESTE
A3: COBERTURAS,COSTOS E INGRESOS PROMEDIO
A5: A M B I T O G E O G R A F I C O S U R E S T E
B9: 1. COMPOSICION DEL COSTO PROPIO POR CONEXIÓN | C9: OPERATIVOS | D9: 0 | E9: ADMISTRATIVO-COMERCIAL
C11: AGUA | D11: ALCANTARILLADO
C12: ($/conex.agua) | D12: ($/conex.desague) | E12: ($/conex.agua)
B14: RETRIBUCIONES AL PERSONAL | C14: 1389.31 | D14: 1063.77225 | E14: 1418.96
B16: MATERIALES Y SUMINISTROS | C16: 262.58 | D16: 105.988791 | E16: 89.26
B18: ENERGIA Y FLUÍDOS | C18: 529.7 | D18: 334.5452986 | E18: 114.96
B20: SERVICIOS CONTRATADOS | C20: 218.85 | D20: 302.239663 | E20: 556.87
B22: GASTOS VARIOS | C22: 153.88 | D22: 118.2180117 | E22: 256.73
B24: AMORTIZACIÓN | C24: 1082.87 | D24: 1349.35602 | E24: 482.28
B28: TOTAL | C28: 3637.19 | D28: 3274.120035 | E28: 2919.06
B31: 2.CONEXIONES (promedio anual) | C31: 83850 | D31: 27442
B34: 3.COBERTURAS COSTO/INGRESO
B36: 3.1 COSTO DE EXPLOTACION/ INGRESO DE EXPLOT. | C36: 1.6 | D36: 1.76 | E36: 0
B38: 3.3 TOTAL | C38: 1.56 | D38: 1.72
B41: 4.M3 ELEVADOS | C41: 13464320
B43: 5.M3 FACTURADOS | C43: 8008800
B46: 6. COSTO PROMEDIO
B48: 6.1 COSTO VARIABLE/ M3ELEVADOS | C48: 5.76
B50: 6.2 COSTO VARIABLE / M3FACTURADOS | C50: 9.68
B52: 6.3 COSTO EXPLOTACION/M3FACT | C52: 78.08
B54: 6.4 TOTAL/M3FACT | C54: 80.28
B57: 7. INGRESOS PROMEDIO
B59: 7.1 VARIABLE/M3 FACT | C59: 27.76
B61: 7.2 FIJO/CONEXIONES | C61: 147.06
B63: 7.3 INGRESO EXPLOTACION/M3FACT | C63: 48.9
B65: 7.4 TOTAL/M3FACT | C65: 51.36

Sheet A-ROC-502
A2: ROCHA | B2: ESTADO DE RENDIMIENTO ECONÓMICO (a valores históricos) | G2: PERÍODO ENERO-DICIEMBRE-2014
A4: CONCEPTO | B4: AGUA POTABLE
B5: USINA | C5: PERFORACIÓN | D5: MIXTO | E5: SUB-TOTAL | F5: SANEAMIENTO | G5: OTROS INGRESOS | H5: TOTAL
A6: INGRESOS | B6: 0 | C6: 0 | D6: 0 | E6: 0 | F6: 0 | G6: 0 | H6: 0
A7: Ingresos Variables | B7: 47194061 | C7: 41090630 | D7: 11576878 | E7: 99861569 | H7: 99861569
A8: Ingresos Fijos | B8: 29582976 | C8: 36386218 | D8: 11911922 | E8: 77881116 | H8: 77881116
A9: INGRESOS DE EXPLOTACION | B9: 76777037 | C9: 77476848 | D9: 23488800 | E9: 177742685 | H9: 177742685
A10: Ingresos Alcantarillado | F10: 23980243 | H10: 23980243
A11: Ingresos Upas | G11: 0 | H11: 0
A12: Otros Ingresos | B12: 5744918 | C12: 4557607 | D12: 1709338 | E12: 12011863 | F12: 9871 | G12: 0 | H12: 12021734
A13: TOTAL ING. DE EXPLOTACION | B13: 82521955 | C13: 82034455 | D13: 25198138 | E13: 189754548 | F13: 23990114 | G13: 0 | H13: 213744662
A14: COSTOS DE EXPLOTACION | B14: 0 | C14: 0 | D14: 0 | E14: 0 | F14: 0 | G14: 0 | H14: 0
A15: OPERATIVO | B15: 0 | C15: 0 | D15: 0 | E15: 0 | F15: 0 | G15: 0 | H15: 0
A16: Costo Operativo Var | B16: 14772394 | C16: 16204678 | D16: 6330130 | E16: 37307202 | F16: 1808352 | G16: 0 | H16: 39115554
A17: Costo Operativo Fijo | B17: 41433288 | C17: 40582645 | D17: 25168450 | E17: 107184383 | F17: 22135453 | G17: 0 | H17: 129319836
A18: TOTAL OPERATIVO | B18: 56205682 | C18: 56787323 | D18: 31498580 | E18: 144491585 | F18: 23943805 | G18: 0 | H18: 168435390
A19: NO OPERATIVO | B19: 0 | C19: 0 | D19: 0 | E19: 0 | F19: 0 | G19: 0 | H19: 0
A20: COMERCIALIZACION | B20: 0 | C20: 0 | D20: 0 | E20: 0 | F20: 0 | G20: 0 | H20: 0
A21: Comercial Propios | B21: 31570738 | C21: 28024783 | D21: 11143908 | E21: 70739429 | F21: 7033238 | G21: 0 | H21: 77772667
A22: Comercial Asignados | B22: 14178918 | C22: 7054754 | D22: 2166976 | E22: 23400648 | F22: 2063088 | G22: 0 | H22: 25463736
A23: Comercialización Upas | B23: 0 | C23: 0 | D23: 0 | E23: 0 | F23: 0 | G23: 0 | H23: 0
A24: TOTAL COMERCIALIZACION | B24: 45749656 | C24: 35079537 | D24: 13310884 | E24: 94140077 | F24: 9096326 | G24: 0 | H24: 103236403
A25: ADMINISTRACION | B25: 0 | C25: 0 | D25: 0 | E25: 0 | F25: 0 | G25: 0 | H25: 0
A26: Administración Propios | B26: 20512263 | C26: 18208371 | D26: 7240463 | E26: 45961097 | F26: 4569664 | G26: 0 | H26: 50530761
A27: Administ. Asignados | B27: 22678544 | C27: 11283762 | D27: 3465980 | E27: 37428286 | F27: 3299817 | G27: 0 | H27: 40728103
A28: Gastos Fiscales | B28: 8501368 | C28: 4229876 | D28: 1299271 | E28: 14030515 | F28: 1236983 | G28: 0 | H28: 15267498
A29: TOTAL ADMINISTRACION | B29: 51692175 | C29: 33722009 | D29: 12005714 | E29: 97419898 | F29: 9106464 | G29: 0 | H29: 106526362
A30: TOTAL NO OPERATIVO | B30: 97441831 | C30: 68801546 | D30: 25316598 | E30: 191559975 | F30: 18202790 | G30: 0 | H30: 209762765
A31: COSTO DE EXPLOTACION | B31: 153647513 | C31: 125588869 | D31: 56815178 | E31: 336051560 | F31: 42146595 | G31: 0 | H31: 378198155
A32: RESULTADO DE EXPLOTACION | B32: -71125558 | C32: -43554414 | D32: -31617040 | E32: -146297012 | F32: -18156481 | G32: 0 | H32: -164453493
A33: DIVERSOS Y EXTRAORDINARIOS | B33: 0 | C33: 0 | D33: 0 | E33: 0 | F33: 0 | G33: 0 | H33: 0
A34: Ingresos Div. y Extr | B34: 2637504 | C34: 1312296 | D34: 403092 | E34: 4352892 | F34: 383767 | G34: 0 | H34: 4736659
A35: Gtos. Div. y Extraor | B35: 406780 | C35: 202394 | D35: 62169 | E35: 671343 | F35: 59188 | G35: 0 | H35: 730531
A36: RESULTADOS DIV. Y EXTRAORDINARIOS | B36: 2230724 | C36: 1109902 | D36: 340923 | E36: 3681549 | F36: 324579 | G36: 0 | H36: 4006128
A37: FINANCIEROS | B37: 0 | C37: 0 | D37: 0 | E37: 0 | F37: 0 | G37: 0 | H37: 0
A38: Ingresos Financieros | B38: 5641211 | C38: 2806798 | D38: 862151 | E38: 9310160 | F38: 820818 | G38: 0 | H38: 10130978
A39: Gastos Financieros | B39: 26392920 | C39: 13131859 | D39: 4033651 | E39: 43558430 | F39: 3840274 | G39: 0 | H39: 47398704
A40: RESULTADO FINANCIERO | B40: -20751709 | C40: -10325061 | D40: -3171500 | E40: -34248270 | F40: -3019456 | G40: 0 | H40: -37267726
A41: I.R.A.E. | B41: -19387240 | C41: -9646167 | D41: -2962968 | E41: -31996375 | F41: -2820920 | H41: -34817295
A42: RESULTADO NETO | B42: -70259303 | C42: -43123406 | D42: -31484649 | E42: -144867358 | F42: -18030438 | G42: 0 | H42: -162897796

Sheet B-ROC-502
A3: R O C H A
C5: C O S T O S T O T A L E S
B9: C O N C E P T O | C9: C O S T O S O P E R A T I V O S
C12: AGUA | D12: ALCANTARILLADO | E12: TOTAL
B14: RETRIBUCIONES AL PERSONAL | C14: 53354743.9 | D14: 8681578.494 | E14: 62036322.4
B16: MATERIALES Y SUMINISTROS | C16: 10250735.67 | D16: 659652.5303 | E16: 10910388.2
B18: ENERGIA Y FLUÍDOS | C18: 23057275.45 | D18: 893493.6686 | E18: 23950769.12
B20: SERVICIOS CONTRATADOS | C20: 5369573.576 | D20: 1797686.891 | E20: 7167260.467
B22: GASTOS VARIOS | C22: 5443912.861 | D22: 1120459.441 | E22: 6564372.302
B24: AMORTIZACIÓN | C24: 47015343.53 | D24: 10790933.97 | E24: 57806277.51
B27: TOTAL | C27: 144491585 | D27: 23943805 | E27: 168435390 | G27: 0.5676216922
B32: C O N C E P T O | C32: C O S T O D E A D M I N I S T R A T I V O - C O M E R C I A L
C35: COMERCIALIZACION | D35: ADMINISTRACION | E35: TOTAL
B37: RETRIBUCIONES AL PERSONAL | C37: 44182906.31 | D37: 16633317.25 | E37: 60816223.56
B39: MATERIALES Y SUMINISTROS | C39: 2905452.217 | D39: 818188.0884 | E39: 3723640.305
B41: ENERGIA Y FLUÍDOS | C41: 186309.7218 | D41: 4584043.726 | E41: 4770353.448
B43: SERVICIOS CONTRATADOS | C43: 21361856.53 | D43: 4372769.005 | E43: 25734625.53
B45: GASTOS VARIOS | C45: 4974992.03 | D45: 7296198.378 | E45: 12271190.41
B47: AMORTIZACIÓN | C47: 4161150.194 | D47: 16826244.55 | E47: 20987394.75
B51: TOTAL | C51: 77772667 | D51: 50530761 | E51: 128303428 | G51: 0.4323783078
A56: C O S T O D E E X P L O T A C I O N | G56: 296738818

Sheet C-ROC-502
A3: COBERTURAS,COSTOS E INGRESOS PROMEDIO
A5: R O C H A
B9: 1. COMPOSICION DEL COSTO PROPIO POR CONEXIÓN | C9: OPERATIVOS | D9: 0 | E9: ADMISTRATIVO-COMERCIAL
C11: AGUA | D11: ALCANTARILLADO
C12: ($/conex.agua) | D12: ($/conex.desague) | E12: ($/conex.agua)
B14: RETRIBUCIONES AL PERSONAL | C14: 1382.89 | D14: 1131.592609 | E14: 1576.28
B16: MATERIALES Y SUMINISTROS | C16: 265.69 | D16: 85.98182094 | E16: 96.51
B18: ENERGIA Y FLUÍDOS | C18: 597.62 | D18: 116.4616356 | E18: 123.64
B20: SERVICIOS CONTRATADOS | C20: 139.17 | D20: 234.3178951 | E20: 667.01
B22: GASTOS VARIOS | C22: 141.1 | D22: 146.0452869 | E22: 318.05
B24: AMORTIZACIÓN | C24: 1218.58 | D24: 1406.534668 | E24: 543.97
B28: TOTAL | C28: 3745.05 | D28: 3120.933916 | E28: 3325.46
B31: 2.CONEXIONES (promedio anual) | C31: 38582 | D31: 7672
B34: 3.COBERTURAS COSTO/INGRESO
B36: 3.1 COSTO DE EXPLOTACION/ INGRESO DE EXPLOT. | C36: 1.77 | D36: 1.76 | E36: 0
B38: 3.3 TOTAL | C38: 1.71 | D38: 1.72
B41: 4.M3 ELEVADOS | C41: 5960870
B43: 5.M3 FACTURADOS | C43: 3415040
B46: 6. COSTO PROMEDIO
B48: 6.1 COSTO VARIABLE/ M3ELEVADOS | C48: 6.26
B50: 6.2 COSTO VARIABLE / M3FACTURADOS | C50: 10.92
B52: 6.3 COSTO EXPLOTACION/M3FACT | C52: 98.4
B54: 6.4 TOTAL/M3FACT | C54: 101.99
B57: 7. INGRESOS PROMEDIO
B59: 7.1 VARIABLE/M3 FACT | C59: 29.24
B61: 7.2 FIJO/CONEXIONES | C61: 168.22
B63: 7.3 INGRESO EXPLOTACION/M3FACT | C63: 55.56
B65: 7.4 TOTAL/M3FACT | C65: 59.57

Sheet A-TT-203
A2: TREINTA Y TRES | B2: ESTADO DE RENDIMIENTO ECONÓMICO (a valores históricos) | G2: PERÍODO ENERO-DICIEMBRE-2014
A4: CONCEPTO | B4: AGUA POTABLE
B5: USINA | C5: PERFORACIÓN | D5: MIXTO | E5: SUB-TOTAL | F5: SANEAMIENTO | G5: OTROS INGRESOS | H5: TOTAL
A6: INGRESOS | B6: 0 | C6: 0 | D6: 0 | E6: 0 | F6: 0 | G6: 0 | H6: 0
A7: Ingresos Variables | B7: 49918095 | C7: 0 | D7: 6589261 | E7: 56507356 | H7: 56507356
A8: Ingresos Fijos | B8: 29531167 | C8: 0 | D8: 3129162 | E8: 32660329 | H8: 32660329
A9: INGRESOS DE EXPLOTACION | B9: 79449262 | C9: 0 | D9: 9718423 | E9: 89167685 | H9: 89167685
A10: Ingresos Alcantarillado | F10: 28990529 | H10: 28990529
A11: Ingresos Upas | G11: 0 | H11: 0
A12: Otros Ingresos | B12: 4649025 | C12: 0 | D12: 350799 | E12: 4999824 | F12: 1146 | G12: 0 | H12: 5000970
A13: TOTAL ING. DE EXPLOTACION | B13: 84098287 | C13: 0 | D13: 10069222 | E13: 94167509 | F13: 28991675 | G13: 0 | H13: 123159184
A14: COSTOS DE EXPLOTACION | B14: 0 | C14: 0 | D14: 0 | E14: 0 | F14: 0 | G14: 0 | H14: 0
A15: OPERATIVO | B15: 0 | C15: 0 | D15: 0 | E15: 0 | F15: 0 | G15: 0 | H15: 0
A16: Costo Operativo Var | B16: 15611303 | C16: 0 | D16: 1823030 | E16: 17434333 | F16: 7778329 | G16: 0 | H16: 25212662
A17: Costo Operativo Fijo | B17: 35812653 | C17: 0 | D17: 6640949 | E17: 42453602 | F17: 25927727 | G17: 0 | H17: 68381329
A18: TOTAL OPERATIVO | B18: 51423956 | C18: 0 | D18: 8463979 | E18: 59887935 | F18: 33706056 | G18: 0 | H18: 93593991
A19: NO OPERATIVO | B19: 0 | C19: 0 | D19: 0 | E19: 0 | F19: 0 | G19: 0 | H19: 0
A20: COMERCIALIZACION | B20: 0 | C20: 0 | D20: 0 | E20: 0 | F20: 0 | G20: 0 | H20: 0
A21: Comercial Propios | B21: 24733488 | C21: 0 | D21: 2666044 | E21: 27399532 | F21: 6554184 | G21: 0 | H21: 33953716
A22: Comercial Asignados | B22: 7232238 | C22: 0 | D22: 865927 | E22: 8098165 | F22: 2493210 | G22: 0 | H22: 10591375
A23: Comercialización Upas | B23: 0 | C23: 0 | D23: 0 | E23: 0 | F23: 0 | G23: 0 | H23: 0
A24: TOTAL COMERCIALIZACION | B24: 31965726 | C24: 0 | D24: 3531971 | E24: 35497697 | F24: 9047394 | G24: 0 | H24: 44545091
A25: ADMINISTRACION | B25: 0 | C25: 0 | D25: 0 | E25: 0 | F25: 0 | G25: 0 | H25: 0
A26: Administración Propios | B26: 8390568 | C26: 0 | D26: 904427 | E26: 9294995 | F26: 2223436 | G26: 0 | H26: 11518431
A27: Administ. Asignados | B27: 11567640 | C27: 0 | D27: 1385012 | E27: 12952652 | F27: 3987778 | G27: 0 | H27: 16940430
A28: Gastos Fiscales | B28: 4336291 | C28: 0 | D28: 519191 | E28: 4855482 | F28: 1494874 | G28: 0 | H28: 6350356
A29: TOTAL ADMINISTRACION | B29: 24294499 | C29: 0 | D29: 2808630 | E29: 27103129 | F29: 7706088 | G29: 0 | H29: 34809217
A30: TOTAL NO OPERATIVO | B30: 56260225 | C30: 0 | D30: 6340601 | E30: 62600826 | F30: 16753482 | G30: 0 | H30: 79354308
A31: COSTO DE EXPLOTACION | B31: 107684181 | C31: 0 | D31: 14804580 | E31: 122488761 | F31: 50459538 | G31: 0 | H31: 172948299
A32: RESULTADO DE EXPLOTACION | B32: -23585894 | C32: 0 | D32: -4735358 | E32: -28321252 | F32: -21467863 | G32: 0 | H32: -49789115
A33: DIVERSOS Y EXTRAORDINARIOS | B33: 0 | C33: 0 | D33: 0 | E33: 0 | F33: 0 | G33: 0 | H33: 0
A34: Ingresos Div. y Extr | B34: 1345311 | C34: 0 | D34: 161076 | E34: 1506387 | F34: 463777 | G34: 0 | H34: 1970164
A35: Gtos. Div. y Extraor | B35: 207486 | C35: 0 | D35: 24843 | E35: 232329 | F35: 71528 | G35: 0 | H35: 303857
A36: RESULTADOS DIV. Y EXTRAORDINARIOS | B36: 1137825 | C36: 0 | D36: 136233 | E36: 1274058 | F36: 392249 | G36: 0 | H36: 1666307
A37: FINANCIEROS | B37: 0 | C37: 0 | D37: 0 | E37: 0 | F37: 0 | G37: 0 | H37: 0
A38: Ingresos Financieros | B38: 2877411 | C38: 0 | D38: 344517 | E38: 3221928 | F38: 991946 | G38: 0 | H38: 4213874
A39: Gastos Financieros | B39: 13462232 | C39: 0 | D39: 1611854 | E39: 15074086 | F39: 4640911 | G39: 0 | H39: 19714997
A40: RESULTADO FINANCIERO | B40: -10584821 | C40: 0 | D40: -1267337 | E40: -11852158 | F40: -3648965 | G40: 0 | H40: -15501123
A41: I.R.A.E. | B41: -9888846 | C41: 0 | D41: -1184007 | E41: -11072853 | F41: -3409037 | H41: -14481890
A42: RESULTADO NETO | B42: -23144044 | C42: 0 | D42: -4682455 | E42: -27826499 | F42: -21315542 | G42: 0 | H42: -49142041

Sheet B-TT-203
A3: T R E I N T A Y T R E S
C5: C O S T O S T O T A L E S
B9: C O N C E P T O | C9: C O S T O S O P E R A T I V O S
C12: AGUA | D12: ALCANTARILLADO | E12: TOTAL
B14: RETRIBUCIONES AL PERSONAL | C14: 22866812.11 | D14: 8486548.867 | E14: 31353360.98
B16: MATERIALES Y SUMINISTROS | C16: 5399514.612 | D16: 982512.0809 | E16: 6382026.693
B18: ENERGIA Y FLUÍDOS | C18: 9657031.453 | D18: 4334012.548 | E18: 13991044
B20: SERVICIOS CONTRATADOS | C20: 2368225.162 | D20: 3213967.966 | E20: 5582193.128
B22: GASTOS VARIOS | C22: 2970109.734 | D22: 680023.3094 | E22: 3650133.044
B24: AMORTIZACIÓN | C24: 16626241.93 | D24: 16008991.23 | E24: 32635233.16
B27: TOTAL | C27: 59887935 | D27: 33706056 | E27: 93593991 | G27: 0.6730178341
B32: C O N C E P T O | C32: C O S T O D E A D M I N I S T R A T I V O - C O M E R C I A L
C35: COMERCIALIZACION | D35: ADMINISTRACION | E35: TOTAL
B37: RETRIBUCIONES AL PERSONAL | C37: 22167057.7 | D37: 3041940.805 | E37: 25208998.51
B39: MATERIALES Y SUMINISTROS | C39: 1502514.256 | D39: 160699.1922 | E39: 1663213.448
B41: ENERGIA Y FLUÍDOS | C41: 79109.24077 | D41: 1894485.283 | E41: 1973594.524
B43: SERVICIOS CONTRATADOS | C43: 5966350.766 | D43: 3911506.82 | E43: 9877857.587
B45: GASTOS VARIOS | C45: 2480975.897 | D45: 720134.5252 | E45: 3201110.422
B47: AMORTIZACIÓN | C47: 1757708.139 | D47: 1789664.374 | E47: 3547372.514
B51: TOTAL | C51: 33953716 | D51: 11518431 | E51: 45472147 | G51: 0.3269821659
A56: C O S T O D E E X P L O T A C I O N | G56: 139066138

Sheet C-TT-203
A3: COBERTURAS,COSTOS E INGRESOS PROMEDIO
A5: T R E I N T A Y T R E S
B9: 1. COMPOSICION DEL COSTO PROPIO POR CONEXIÓN | C9: OPERATIVOS | D9: 0 | E9: ADMISTRATIVO-COMERCIAL
C11: AGUA | D11: ALCANTARILLADO
C12: ($/conex.agua) | D12: ($/conex.desague) | E12: ($/conex.agua)
B14: RETRIBUCIONES AL PERSONAL | C14: 1058.01 | D14: 820.7494069 | E14: 1166.38
B16: MATERIALES Y SUMINISTROS | C16: 249.83 | D16: 95.02051072 | E16: 76.95
B18: ENERGIA Y FLUÍDOS | C18: 446.82 | D18: 419.1501497 | E18: 91.32
B20: SERVICIOS CONTRATADOS | C20: 109.57 | D20: 310.8286234 | E20: 457.03
B22: GASTOS VARIOS | C22: 137.42 | D22: 65.7662775 | E22: 148.11
B24: AMORTIZACIÓN | C24: 769.27 | D24: 1548.258339 | E24: 164.13
B28: TOTAL | C28: 2770.92 | D28: 3259.773308 | E28: 2103.92
B31: 2.CONEXIONES (promedio anual) | C31: 21613 | D31: 10340
B34: 3.COBERTURAS COSTO/INGRESO
B36: 3.1 COSTO DE EXPLOTACION/ INGRESO DE EXPLOT. | C36: 1.3 | D36: 1.74 | E36: 0
B38: 3.3 TOTAL | C38: 1.28 | D38: 1.7
B41: 4.M3 ELEVADOS | C41: 3550910
B43: 5.M3 FACTURADOS | C43: 2194730
B46: 6. COSTO PROMEDIO
B48: 6.1 COSTO VARIABLE/ M3ELEVADOS | C48: 4.91
B50: 6.2 COSTO VARIABLE / M3FACTURADOS | C50: 7.94
B52: 6.3 COSTO EXPLOTACION/M3FACT | C52: 55.81
B54: 6.4 TOTAL/M3FACT | C54: 57.74
B57: 7. INGRESOS PROMEDIO
B59: 7.1 VARIABLE/M3 FACT | C59: 25.75
B61: 7.2 FIJO/CONEXIONES | C61: 125.93
B63: 7.3 INGRESO EXPLOTACION/M3FACT | C63: 42.91
B65: 7.4 TOTAL/M3FACT | C65: 45.06

Sheet A-LAV-503
A2: LAVALLEJA | B2: ESTADO DE RENDIMIENTO ECONÓMICO (a valores históricos) | G2: PERÍODO ENERO-DICIEMBRE-2014
A4: CONCEPTO | B4: AGUA POTABLE
B5: USINA | C5: PERFORACIÓN | D5: MIXTO | E5: SUB-TOTAL | F5: SANEAMIENTO | G5: OTROS INGRESOS | H5: TOTAL
A6: INGRESOS | B6: 0 | C6: 0 | D6: 0 | E6: 0 | F6: 0 | G6: 0 | H6: 0
A7: Ingresos Variables | B7: 57781894 | C7: 3582394 | D7: 4583010 | E7: 65947298 | H7: 65947298
A8: Ingresos Fijos | B8: 32455921 | C8: 2132394 | D8: 2843980 | E8: 37432295 | H8: 37432295
A9: INGRESOS DE EXPLOTACION | B9: 90237815 | C9: 5714788 | D9: 7426990 | E9: 103379593 | H9: 103379593
A10: Ingresos Alcantarillado | F10: 29004212 | H10: 29004212
A11: Ingresos Upas | G11: 0 | H11: 0
A12: Otros Ingresos | B12: 3799238 | C12: 206898 | D12: 344767 | E12: 4350903 | F12: 0 | G12: 0 | H12: 4350903
A13: TOTAL ING. DE EXPLOTACION | B13: 94037053 | C13: 5921686 | D13: 7771757 | E13: 107730496 | F13: 29004212 | G13: 0 | H13: 136734708
A14: COSTOS DE EXPLOTACION | B14: 0 | C14: 0 | D14: 0 | E14: 0 | F14: 0 | G14: 0 | H14: 0
A15: OPERATIVO | B15: 0 | C15: 0 | D15: 0 | E15: 0 | F15: 0 | G15: 0 | H15: 0
A16: Costo Operativo Var | B16: 19335249 | C16: 1005965 | D16: 2480147 | E16: 22821361 | F16: 6914912 | G16: 0 | H16: 29736273
A17: Costo Operativo Fijo | B17: 52897861 | C17: 11705062 | D17: 13174905 | E17: 77777828 | F17: 25283633 | G17: 0 | H17: 103061461
A18: TOTAL OPERATIVO | B18: 72233110 | C18: 12711027 | D18: 15655052 | E18: 100599189 | F18: 32198545 | G18: 0 | H18: 132797734
A19: NO OPERATIVO | B19: 0 | C19: 0 | D19: 0 | E19: 0 | F19: 0 | G19: 0 | H19: 0
A20: COMERCIALIZACION | B20: 0 | C20: 0 | D20: 0 | E20: 0 | F20: 0 | G20: 0 | H20: 0
A21: Comercial Propios | B21: 23816249 | C21: 1725866 | D21: 2287038 | E21: 27829153 | F21: 5547007 | G21: 0 | H21: 33376160
A22: Comercial Asignados | B22: 1004706 | C22: 509250 | D22: 668351 | E22: 2182307 | F22: 2494289 | G22: 0 | H22: 4676596
A23: Comercialización Upas | B23: 0 | C23: 0 | D23: 0 | E23: 0 | F23: 0 | G23: 0 | H23: 0
A24: TOTAL COMERCIALIZACION | B24: 24820955 | C24: 2235116 | D24: 2955389 | E24: 30011460 | F24: 8041296 | G24: 0 | H24: 38052756
A25: ADMINISTRACION | B25: 0 | C25: 0 | D25: 0 | E25: 0 | F25: 0 | G25: 0 | H25: 0
A26: Administración Propios | B26: 26838087 | C26: 1944847 | D26: 2577220 | E26: 31360154 | F26: 6250819 | G26: 0 | H26: 37610973
A27: Administ. Asignados | B27: 1606982 | C27: 814522 | D27: 1068998 | E27: 3490502 | F27: 3989502 | G27: 0 | H27: 7480004
A28: Gastos Fiscales | B28: 602400 | C28: 305335 | D28: 400729 | E28: 1308464 | F28: 1495521 | G28: 0 | H28: 2803985
A29: TOTAL ADMINISTRACION | B29: 29047469 | C29: 3064704 | D29: 4046947 | E29: 36159120 | F29: 11735842 | G29: 0 | H29: 47894962
A30: TOTAL NO OPERATIVO | B30: 53868424 | C30: 5299820 | D30: 7002336 | E30: 66170580 | F30: 19777138 | G30: 0 | H30: 85947718
A31: COSTO DE EXPLOTACION | B31: 126101534 | C31: 18010847 | D31: 22657388 | E31: 166769769 | F31: 51975683 | G31: 0 | H31: 218745452
A32: RESULTADO DE EXPLOTACION | B32: -32064481 | C32: -12089161 | D32: -14885631 | E32: -59039273 | F32: -22971471 | G32: 0 | H32: -82010744
A33: DIVERSOS Y EXTRAORDINARIOS | B33: 0 | C33: 0 | D33: 0 | E33: 0 | F33: 0 | G33: 0 | H33: 0
A34: Ingresos Div. y Extr | B34: 186891 | C34: 94729 | D34: 124324 | E34: 405944 | F34: 463979 | G34: 0 | H34: 869923
A35: Gtos. Div. y Extraor | B35: 28824 | C35: 14610 | D35: 19174 | E35: 62608 | F35: 71559 | G35: 0 | H35: 134167
A36: RESULTADOS DIV. Y EXTRAORDINARIOS | B36: 158067 | C36: 80119 | D36: 105150 | E36: 343336 | F36: 392420 | G36: 0 | H36: 735756
A37: FINANCIEROS | B37: 0 | C37: 0 | D37: 0 | E37: 0 | F37: 0 | G37: 0 | H37: 0
A38: Ingresos Financieros | B38: 399731 | C38: 202610 | D38: 265910 | E38: 868251 | F38: 992375 | G38: 0 | H38: 1860626
A39: Gastos Financieros | B39: 1870180 | C39: 947928 | D39: 1244082 | E39: 4062190 | F39: 4642918 | G39: 0 | H39: 8705108
A40: RESULTADO FINANCIERO | B40: -1470449 | C40: -745318 | D40: -978172 | E40: -3193939 | F40: -3650543 | G40: 0 | H40: -6844482
A41: I.R.A.E. | B41: -1373763 | C41: -696312 | D41: -913856 | E41: -2983931 | F41: -3410512 | H41: -6394443
A42: RESULTADO NETO | B42: -32003100 | C42: -12058048 | D42: -14844797 | E42: -58905945 | F42: -22819082 | G42: 0 | H42: -81725027

Sheet B-LAV-503
A3: L A V A L L E J A
C5: C O S T O S T O T A L E S
B9: C O N C E P T O | C9: C O S T O S O P E R A T I V O S
C12: AGUA | D12: ALCANTARILLADO | E12: TOTAL
B14: RETRIBUCIONES AL PERSONAL | C14: 40272195.3 | D14: 12023910.73 | E14: 52296106.03
B16: MATERIALES Y SUMINISTROS | C16: 6367260.637 | D16: 1266379.792 | E16: 7633640.428
B18: ENERGIA Y FLUÍDOS | C18: 11701361.83 | D18: 3953085.869 | E18: 15654447.7
B20: SERVICIOS CONTRATADOS | C20: 10612880.44 | D20: 3282405.976 | E20: 13895286.42
B22: GASTOS VARIOS | C22: 4488681.686 | D22: 1443655.927 | E22: 5932337.613
B24: AMORTIZACIÓN | C24: 27156809.11 | D24: 10229106.71 | E24: 37385915.81
B27: TOTAL | C27: 100599189 | D27: 32198545 | E27: 132797734 | G27: 0.651656504
B32: C O N C E P T O | C32: C O S T O D E A D M I N I S T R A T I V O - C O M E R C I A L
C35: COMERCIALIZACION | D35: ADMINISTRACION | E35: TOTAL
B37: RETRIBUCIONES AL PERSONAL | C37: 20499970.28 | D37: 12454547.01 | E37: 32954517.29
B39: MATERIALES Y SUMINISTROS | C39: 1598284.054 | D39: 499559.6811 | E39: 2097843.735
B41: ENERGIA Y FLUÍDOS | C41: 95729.76194 | D41: 2799453.228 | E41: 2895182.99
B43: SERVICIOS CONTRATADOS | C43: 7145255.447 | D43: 3935469.405 | E43: 11080724.85
B45: GASTOS VARIOS | C45: 1696538.867 | D45: 4357793.447 | E45: 6054332.314
B47: AMORTIZACIÓN | C47: 2340381.589 | D47: 13564150.23 | E47: 15904531.82
B51: TOTAL | C51: 33376160 | D51: 37610973 | E51: 70987133 | G51: 0.348343496
A56: C O S T O D E E X P L O T A C I O N | G56: 203784867

Sheet C-LAV-503
A3: COBERTURAS,COSTOS E INGRESOS PROMEDIO
A5: L A V A L L E J A
B9: 1. COMPOSICION DEL COSTO PROPIO POR CONEXIÓN | C9: OPERATIVOS | D9: 0 | E9: ADMISTRATIVO-COMERCIAL
C11: AGUA | D11: ALCANTARILLADO
C12: ($/conex.agua) | D12: ($/conex.desague) | E12: ($/conex.agua)
B14: RETRIBUCIONES AL PERSONAL | C14: 1702.48 | D14: 1275.070067 | E14: 1393.13
B16: MATERIALES Y SUMINISTROS | C16: 269.17 | D16: 134.2926608 | E16: 88.69
B18: ENERGIA Y FLUÍDOS | C18: 494.67 | D18: 419.2031674 | E18: 122.39
B20: SERVICIOS CONTRATADOS | C20: 448.65 | D20: 348.0812276 | E20: 468.43
B22: GASTOS VARIOS | C22: 189.76 | D22: 153.0918268 | E22: 255.94
B24: AMORTIZACIÓN | C24: 1148.04 | D24: 1084.740902 | E24: 672.35
B28: TOTAL | C28: 4252.77 | D28: 3414.479852 | E28: 3000.93
B31: 2.CONEXIONES (promedio anual) | C31: 23655 | D31: 9430
B34: 3.COBERTURAS COSTO/INGRESO
B36: 3.1 COSTO DE EXPLOTACION/ INGRESO DE EXPLOT. | C36: 1.55 | D36: 1.79 | E36: 0
B38: 3.3 TOTAL | C38: 1.54 | D38: 1.75
B41: 4.M3 ELEVADOS | C41: 3952540
B43: 5.M3 FACTURADOS | C43: 2399030
B46: 6. COSTO PROMEDIO
B48: 6.1 COSTO VARIABLE/ M3ELEVADOS | C48: 5.77
B50: 6.2 COSTO VARIABLE / M3FACTURADOS | C50: 9.51
B52: 6.3 COSTO EXPLOTACION/M3FACT | C52: 69.52
B54: 6.4 TOTAL/M3FACT | C54: 69.99
B57: 7. INGRESOS PROMEDIO
B59: 7.1 VARIABLE/M3 FACT | C59: 27.49
B61: 7.2 FIJO/CONEXIONES | C61: 131.87
B63: 7.3 INGRESO EXPLOTACION/M3FACT | C63: 44.91
B65: 7.4 TOTAL/M3FACT | C65: 45.44

Sheet A-UGD-501
A2: U.G.D. | B2: ESTADO DE RENDIMIENTO ECONÓMICO (a valores históricos) | G2: PERÍODO ENERO-DICIEMBRE-2014
A4: CONCEPTO | B4: AGUA POTABLE
B5: USINA | C5: PERFORACIÓN | D5: MIXTO | E5: SUB-TOTAL | F5: SANEAMIENTO | G5: OTROS INGRESOS | H5: TOTAL
A6: INGRESOS | B6: 0 | C6: 0 | D6: 0 | E6: 0 | F6: 0 | G6: 0 | H6: 0
A7: Ingresos Variables | B7: 412750854 | C7: 0 | D7: 0 | E7: 412750854 | H7: 412750854
A8: Ingresos Fijos | B8: 245679136 | C8: 0 | D8: 0 | E8: 245679136 | H8: 245679136
A9: INGRESOS DE EXPLOTACION | B9: 658429990 | C9: 0 | D9: 0 | E9: 658429990 | H9: 658429990
A10: Ingresos Alcantarillado | F10: 207643185 | H10: 207643185
A11: Ingresos Upas | G11: 0 | H11: 0
A12: Otros Ingresos | B12: 38110097 | C12: 0 | D12: 0 | E12: 38110097 | F12: 95904 | G12: 0 | H12: 38206001
A13: TOTAL ING. DE EXPLOTACION | B13: 696540087 | C13: 0 | D13: 0 | E13: 696540087 | F13: 207739089 | G13: 0 | H13: 904279176
A14: COSTOS DE EXPLOTACION | B14: 0 | C14: 0 | D14: 0 | E14: 0 | F14: 0 | G14: 0 | H14: 0
A15: OPERATIVO | B15: 0 | C15: 0 | D15: 0 | E15: 0 | F15: 0 | G15: 0 | H15: 0
A16: Costo Operativo Var | B16: 80291637 | C16: 0 | D16: 0 | E16: 80291637 | F16: 44707637 | G16: 0 | H16: 124999274
A17: Costo Operativo Fijo | B17: 149709097 | C17: 0 | D17: 0 | E17: 149709097 | F17: 96544604 | G17: 0 | H17: 246253701
A18: TOTAL OPERATIVO | B18: 230000734 | C18: 0 | D18: 0 | E18: 230000734 | F18: 141252241 | G18: 0 | H18: 371252975
A19: NO OPERATIVO | B19: 0 | C19: 0 | D19: 0 | E19: 0 | F19: 0 | G19: 0 | H19: 0
A20: COMERCIALIZACION | B20: 0 | C20: 0 | D20: 0 | E20: 0 | F20: 0 | G20: 0 | H20: 0
A21: Comercial Propios | B21: 44639560 | C21: 0 | D21: 0 | E21: 44639560 | F21: 12558115 | G21: 0 | H21: 57197675
A22: Comercial Asignados | B22: 0 | C22: 0 | D22: 0 | E22: 0 | F22: 0 | G22: 0 | H22: 0
A23: Comercialización Upas | B23: 0 | C23: 0 | D23: 0 | E23: 0 | F23: 0 | G23: 0 | H23: 0
A24: TOTAL COMERCIALIZACION | B24: 44639560 | C24: 0 | D24: 0 | E24: 44639560 | F24: 12558115 | G24: 0 | H24: 57197675
A25: ADMINISTRACION | B25: 0 | C25: 0 | D25: 0 | E25: 0 | F25: 0 | G25: 0 | H25: 0
A26: Administración Propios | B26: 26245154 | C26: 0 | D26: 0 | E26: 26245154 | F26: 7383353 | G26: 0 | H26: 33628507
A27: Administ. Asignados | B27: 34257970 | C27: 0 | D27: 0 | E27: 34257970 | F27: 10217243 | G27: 0 | H27: 44475213
A28: Gastos Fiscales | B28: 45909547 | C28: 0 | D28: 0 | E28: 45909547 | F28: 13692260 | G28: 0 | H28: 59601807
A29: TOTAL ADMINISTRACION | B29: 106412671 | C29: 0 | D29: 0 | E29: 106412671 | F29: 31292856 | G29: 0 | H29: 137705527
A30: TOTAL NO OPERATIVO | B30: 151052231 | C30: 0 | D30: 0 | E30: 151052231 | F30: 43850971 | G30: 0 | H30: 194903202
A31: COSTO DE EXPLOTACION | B31: 381052965 | C31: 0 | D31: 0 | E31: 381052965 | F31: 185103212 | G31: 0 | H31: 566156177
A32: RESULTADO DE EXPLOTACION | B32: 315487122 | C32: 0 | D32: 0 | E32: 315487122 | F32: 22635877 | G32: 0 | H32: 338122999
A33: DIVERSOS Y EXTRAORDINARIOS | B33: 0 | C33: 0 | D33: 0 | E33: 0 | F33: 0 | G33: 0 | H33: 0
A34: Ingresos Div. y Extr | B34: 1517858 | C34: 0 | D34: 0 | E34: 1517858 | F34: 452692 | G34: 0 | H34: 1970550
A35: Gtos. Div. y Extraor | B35: 256122 | C35: 0 | D35: 0 | E35: 256122 | F35: 76387 | G35: 0 | H35: 332509
A36: RESULTADOS DIV. Y EXTRAORDINARIOS | B36: 1261736 | C36: 0 | D36: 0 | E36: 1261736 | F36: 376305 | G36: 0 | H36: 1638041
A37: FINANCIEROS | B37: 0 | C37: 0 | D37: 0 | E37: 0 | F37: 0 | G37: 0 | H37: 0
A38: Ingresos Financieros | B38: 36899941 | C38: 0 | D38: 0 | E38: 36899941 | F38: 11005196 | G38: 0 | H38: 47905137
A39: Gastos Financieros | B39: 480249 | C39: 0 | D39: 0 | E39: 480249 | F39: 143232 | G39: 0 | H39: 623481
A40: RESULTADO FINANCIERO | B40: 36419692 | C40: 0 | D40: 0 | E40: 36419692 | F40: 10861964 | G40: 0 | H40: 47281656
A41: I.R.A.E. | B41: -81903900 | C41: 0 | D41: 0 | E41: -81903900 | F41: -24427369 | H41: -106331269
A42: RESULTADO NETO | B42: 435072450 | C42: 0 | D42: 0 | E42: 435072450 | F42: 58301515 | G42: 0 | H42: 493373965

Sheet B-UGD-501
A3: U . G . D.
C5: C O S T O S T O T A L E S
B9: C O N C E P T O | C9: C O S T O S O P E R A T I V O S
C12: AGUA | D12: ALCANTARILLADO | E12: TOTAL
B14: RETRIBUCIONES AL PERSONAL | C14: 49140544.76 | D14: 21582951.67 | E14: 70723496.43
B16: MATERIALES Y SUMINISTROS | C16: 32130613.85 | D16: 11219549.88 | E16: 43350163.73
B18: ENERGIA Y FLUÍDOS | C18: 38861104.89 | D18: 29920665.45 | E18: 68781770.34
B20: SERVICIOS CONTRATADOS | C20: 16071244.96 | D20: 34456927.9 | E20: 50528172.86
B22: GASTOS VARIOS | C22: 13163492.65 | D22: 1119930.13 | E22: 14283422.78
B24: AMORTIZACIÓN | C24: 80633732.86 | D24: 42952215.44 | E24: 123585948.3
B27: TOTAL | C27: 230000734 | D27: 141252240.5 | E27: 371252974.4 | G27: 0.8034402109 | I27: -0.03999999166 | J27: -0.5299999714
B32: C O N C E P T O | C32: C O S T O D E A D M I N I S T R A T I V O - C O M E R C I A L
C35: COMERCIALIZACION | D35: ADMINISTRACION | E35: TOTAL
B37: RETRIBUCIONES AL PERSONAL | C37: 23440910.82 | D37: 15076312.52 | E37: 38517223.34
B39: MATERIALES Y SUMINISTROS | C39: 5880709.06 | D39: 1349893.42 | E39: 7230602.48
B41: ENERGIA Y FLUÍDOS | C41: 828452.9 | D41: -650201.84 | E41: 178251.06
B43: SERVICIOS CONTRATADOS | C43: 24489789.98 | D43: 10283683.75 | E43: 34773473.73
B45: GASTOS VARIOS | C45: 2236320.73 | D45: 4491108.71 | E45: 6727429.44
B47: AMORTIZACIÓN | C47: 321490.93 | D47: 3077710.44 | E47: 3399201.37
B51: TOTAL | C51: 57197674.42 | D51: 33628507 | E51: 90826181.42 | G51: 0.1965597891 | I51: -0.5800000057 | J51: 0
A56: C O S T O D E E X P L O T A C I O N | G56: 462079155.9
G60: -1.149999976

Sheet C-UGD-501
A3: COBERTURAS,COSTOS E INGRESOS PROMEDIO
A5: U . G . D .
B9: 1. COMPOSICION DEL COSTO PROPIO POR CONEXIÓN | C9: OPERATIVOS | D9: 0 | E9: ADMISTRATIVO-COMERCIAL
C11: AGUA | D11: ALCANTARILLADO
C12: ($/conex.agua) | D12: ($/conex.desague) | E12: ($/conex.agua)
B14: RETRIBUCIONES AL PERSONAL | C14: 691.39 | D14: 539.7222154 | E14: 541.92
B16: MATERIALES Y SUMINISTROS | C16: 452.07 | D16: 280.5659027 | E16: 101.73
B18: ENERGIA Y FLUÍDOS | C18: 546.76 | D18: 748.2223974 | E18: 2.51
B20: SERVICIOS CONTRATADOS | C20: 226.12 | D20: 861.660154 | E20: 489.25
B22: GASTOS VARIOS | C22: 185.21 | D22: 28.00595489 | E22: 94.65
B24: AMORTIZACIÓN | C24: 1134.49 | D24: 1074.100764 | E24: 47.83
B28: TOTAL | C28: 3236.04 | D28: 3532.277388 | E28: 1277.89
B31: 2.CONEXIONES (promedio anual) | C31: 71075 | D31: 39989
B34: 3.COBERTURAS COSTO/INGRESO
B36: 3.1 COSTO DE EXPLOTACION/ INGRESO DE EXPLOT. | C36: 0.55 | D36: 0.89 | E36: 0
B38: 3.3 TOTAL | C38: 0.41 | D38: 0.73
B41: 4.M3 ELEVADOS | C41: 20685170
B43: 5.M3 FACTURADOS | C43: 11415090
B46: 6. COSTO PROMEDIO
B48: 6.1 COSTO VARIABLE/ M3ELEVADOS | C48: 3.88
B50: 6.2 COSTO VARIABLE / M3FACTURADOS | C50: 7.03
B52: 6.3 COSTO EXPLOTACION/M3FACT | C52: 33.38
B54: 6.4 TOTAL/M3FACT | C54: 26.27
B57: 7. INGRESOS PROMEDIO
B59: 7.1 VARIABLE/M3 FACT | C59: 36.16
B61: 7.2 FIJO/CONEXIONES | C61: 288.05
B63: 7.3 INGRESO EXPLOTACION/M3FACT | C63: 61.02
B65: 7.4 TOTAL/M3FACT | C65: 64.38
